Workbook

Sheet Pułtusk_Płocochowo_Pułtusk (hidden)
B2: "Sanimax-Transport s.c." Janusz Sosnowski i Monika Sosnowska ul. Sokołowska 9/286 01-142 Warszawa | H2: Pięczęć organu wydającego zezwolenie | P2: Załącznik do zezwolenia nr:
B9: linia regularna
B10: komunikacja zwykła
B14: Linia nr 20 - Pułtusk ZS4 - Płocochowo - Pułtusk ZS4
C15: odl. | E15: 2001 | H15: 2003 | K15: 2005 | N15: kurs
D16: km | E16: S, Zw | H16: S, Zw | K16: S, Zw | N16: kursuje w:
E17: godz | F17: czas | G17: prędk. * | H17: godz | I17: czas | J17: prędk. * | K17: godz | L17: czas | M17: prędk. * | N17: PT | O17: przystanek
C18: =D19-D18 -> 0.5 | D18: 0 | E18: 07:10:00 | F18: 00:01:00 | G18: =IF(D19-D18>3,"licz predkosc","|") -> | | H18: 14:40:00 | I18: =F18 -> 00:01:00 | J18: | | K18: 15:30:00 | L18: 00:01:00 | M18: I | N18: 1 | O18: Pułtusk ZS4
C19: 4.6 | D19: 0.5 | E19: =E18+F18 -> 07:11:00 | F19: 00:07:00 | G19: 46km/h | H19: =H18+I18 -> 14:41:00 | I19: =F19 -> 00:07:00 | J19: =G19 -> 46km/h | K19: =+K18+L18 -> 15:31:00 | L19: 00:07:00 | M19: 46km/h | N19: 2 | O19: Pułtusk Szkoła Podstawowa nr. 3
C20: 1 | D20: 5.1 | E20: 07:18:00 | F20: 00:02:00 | G20: =IF(D21-D20>3,"licz predkosc","|") -> | | H20: =H19+I19 -> 14:48:00 | I20: =F20 -> 00:02:00 | J20: =G20 -> | | K20: 15:38:00 | L20: 00:02:00 | M20: I | N20: 3 | O20: Kacice I
C21: 1.7 | D21: 6.1 | E21: 07:20:00 | F21: 00:03:00 | G21: =IF(D22-D21>3,"licz predkosc","|") -> | | H21: =H20+I20 -> 14:50:00 | I21: =F21 -> 00:03:00 | J21: =G21 -> | | K21: 15:40:00 | L21: 00:03:00 | M21: I | N21: 4 | O21: Kacice II
C22: 1.7 | D22: 7.8 | E22: 07:23:00 | F22: 00:03:00 | G22: =IF(D23-D22>3,"licz predkosc","|") -> | | H22: =H21+I21 -> 14:53:00 | I22: 00:20:00 | J22: 48km/h | K22: 15:43:00 | L22: 00:03:00 | M22: I | N22: 5 | O22: Jeżewo
C23: 1.4 | D23: 9.5 | E23: 07:26:00 | F23: 00:03:00 | G23: =IF(D24-D23>3,"licz predkosc","|") -> | | H23: I | I23: I | J23: =G23 -> | | K23: 15:46:00 | L23: 00:03:00 | M23: I | N23: 6 | O23: Płocochowo
C24: 3.8 | D24: 10.9 | E24: 07:29:00 | F24: 00:05:00 | G24: 48km/h | H24: I | I24: I | J24: I | K24: 15:49:00 | L24: 00:05:00 | M24: 48km/h | N24: 7 | O24: Kokoszka
C25: 1.1 | D25: 14.7 | E25: 07:34:00 | F25: 00:02:00 | G25: =IF(D26-D25>3,"licz predkosc","|") -> | | H25: I | I25: I | J25: =G25 -> | | K25: 15:54:00 | L25: 00:02:00 | M25: I | N25: 8 | O25: Płocochowo Wieś
C26: 0.7 | D26: 15.8 | E26: 07:36:00 | F26: 00:01:00 | G26: =IF(D27-D26>3,"licz predkosc","|") -> | | H26: I | I26: I | J26: =G26 -> | | K26: 15:56:00 | L26: 00:01:00 | M26: I | N26: 9 | O26: Płocochowo skrzyżowanie
C27: 1.8 | D27: 16.5 | E27: 07:37:00 | F27: 00:03:00 | G27: =IF(D28-D27>3,"licz predkosc","|") -> | | H27: I | I27: I | J27: =G27 -> | | K27: 15:57:00 | L27: 00:03:00 | M27: I | N27: 10 | O27: Płocochowo PGR
C28: 1.1 | D28: 18.3 | E28: 07:40:00 | F28: 00:01:00 | G28: =IF(D29-D28>3,"licz predkosc","|") -> | | H28: I | I28: I | J28: =G28 -> | | K28: 16:00:00 | L28: 00:01:00 | M28: I | N28: 11 | O28: Lipniki I
C29: 1.5 | D29: 19.4 | E29: 07:41:00 | F29: 00:01:00 | G29: =IF(D30-D29>3,"licz predkosc","|") -> | | H29: I | I29: I | J29: =G29 -> | | K29: 16:01:00 | L29: 00:01:00 | M29: I | N29: 12 | O29: Lipniki II
C30: 5.4 | D30: 20.9 | E30: 07:42:00 | F30: 00:06:00 | G30: 48km/h | H30: I | I30: I | J30: I | K30: 16:02:00 | L30: 00:06:00 | M30: 48km/h | N30: 13 | O30: Lipniki I
C31: 0.5 | D31: 26.3 | E31: 07:48:00 | F31: 00:02:00 | G31: | | H31: I | I31: I | J31: =G31 -> | | K31: 16:08:00 | L31: 00:02:00 | M31: I | N31: 14 | O31: Pułtusk Szkoła Podstawowa nr. 3
C32: | | D32: 26.8 | E32: 07:50:00 | F32: | | G32: =IF(D33-D32>3,"licz predkosc","|") -> | | H32: =+H22+I22 -> 15:13:00 | I32: =F32 -> | | J32: =G32 -> | | K32: 16:10:00 | L32: I | M32: I | N32: 15 | O32: Pułtusk ZS4
F33: =SUM(F18:F32) -> 00:40:00 | I33: =SUM(I18:I32) -> 00:33:00 | L33: =SUM(L18:L32) -> 00:40:00 | O33: czas przejazdu
F34: =60*D32/VALUE(MINUTE(F33)) -> 40.2 | I34: =F34 -> 40.2 | L34: 40.2 | O34: prędkość handlowa [km/h]
F35: 47 | I35: 47 | L35: 47 | O35: prędkość techniczna [km/h]
B37: Liczba pojazdów niezbędnych do wykonania codziennych przejazdów: 1
B38: Osoba zarządzająca transportem: Janusz Sosnowski
B41: Legenda:
B42: S - kursuje w dni nauki szkolnej
B43: Zw - kurs zwykły
B45: * prędkość techniczna pojazdu

Sheet Pułtusk_Lipa_Chmielewo_Gnojno (hidden)
C1: "Sanimax-Transport s.c." Janusz Sosnowski i Monika Sosnowska ul. Sokołowska 9/286 01-142 Warszawa | I1: Pięczęć organu wydającego zezwolenie | N1: Załącznik do zezwolenia nr:
C8: linia regularna
C9: komunikacja zwykła
C11: Linia nr 30 - Pułtusk - Boby - Pułtusk
D12: 3001 | I12: kurs | L12: 3002 | Q12: 3003
D13: S, Zw | I13: kursuje w: | L13: S, Zw | Q13: S, Zw
D14: km | E14: odl. | F14: godz | G14: czas | H14: prędk.* | I14: PT | J14: przystanek | K14: PT | L14: godz | M14: czas | N14: km | O14: odl. | P14: prędk.* | Q14: godz | R14: czas | S14: km | T14: odl. | U14: prędk.*
D15: 0 | E15: 12.5 | F15: 06:50:00 | G15: 00:20:00 | H15: 49km/h | I15: 1 | J15: Pułtusk szkoła ZS4 | K15: 26 | L15: =+L24+M24 -> 15:32:00 | M15: | | N15: 31.3 | O15: | | P15: | | Q15: =+Q24+R24 -> 16:22:00 | R15: I | S15: 31.3 | T15: I | U15: I
D16: I | E16: I | F16: I | G16: I | H16: I | I16: 2 | J16: Pułtusk ul.Kościuszki | K16: 25 | L16: I | M16: I | N16: I | O16: I | P16: | | Q16: I | R16: I | S16: I | T16: I | U16: I
D17: I | E17: I | F17: I | G17: I | H17: =IF(B17>3,"licz"," |") -> | | I17: 3 | J17: Lipa I | K17: 24 | L17: I | M17: =G16 -> I | N17: I | O17: I | P17: I | Q17: I | R17: I | S17: I | T17: I | U17: I
D18: I | E18: I | F18: I | G18: I | H18: | | I18: 4 | J18: Lipa II | K18: 23 | L18: I | M18: I | N18: I | O18: I | P18: | | Q18: I | R18: I | S18: I | T18: I | U18: I
D19: I | E19: I | F19: I | G19: I | H19: | | I19: 5 | J19: Chmielewo I | K19: 22 | L19: I | M19: I | N19: I | O19: I | P19: | | Q19: I | R19: I | S19: I | T19: I | U19: I
D20: I | E20: I | F20: I | G20: I | H20: | | I20: 6 | J20: Chmielewo II | K20: 21 | L20: I | M20: I | N20: I | O20: I | P20: | | Q20: I | R20: I | S20: I | T20: I | U20: I
D21: I | E21: I | F21: I | G21: I | H21: | | I21: 7 | J21: Chmielewo d.k. | K21: 20 | L21: I | M21: I | N21: I | O21: I | P21: | | Q21: I | R21: I | S21: I | T21: I | U21: I
D22: I | E22: I | F22: I | G22: I | H22: | | I22: 8 | J22: Boby szkoła | K22: 19 | L22: I | M22: I | N22: I | O22: I | P22: | | Q22: I | R22: I | S22: I | T22: I | U22: I
D23: I | E23: I | F23: I | G23: I | H23: | | I23: 9 | J23: Gnojno I | K23: 18 | L23: I | M23: I | N23: I | O23: I | P23: | | Q23: I | R23: I | S23: I | T23: I | U23: I
D24: 12.5 | E24: =D25-D24 -> 1 | F24: =F15+G15 -> 07:10:00 | G24: 00:02:00 | H24: | | I24: 10 | J24: Gnojno II | K24: 17 | L24: =L25+M25 -> 15:12:00 | M24: 00:20:00 | N24: =N25+D25-D24 -> 18.8 | O24: =12.5 -> 12.5 | P24: 49km/h | Q24: =+Q25+R25 -> 16:02:00 | R24: 00:20:00 | S24: 18.8 | T24: 12.5 | U24: 49km/h
D25: 13.5 | E25: 1.6 | F25: =F24+G24 -> 07:12:00 | G25: 00:02:00 | H25: | | I25: 11 | J25: Gnojno I | K25: 16 | L25: 15:10:00 | M25: =G24 -> 00:02:00 | N25: 17.8 | O25: =N24-N25 -> 1 | P25: | | Q25: 16:00:00 | R25: 00:02:00 | S25: 17.8 | T25: 1 | U25: |
D26: 15.1 | E26: 0.3 | F26: 07:14:00 | G26: 00:01:00 | H26: | | I26: 12 | J26: Boby szkoła | K26: 15 | L26: 15:08:00 | M26: 00:02:00 | N26: 16.2 | O26: 1.6 | P26: | | Q26: 15:58:00 | R26: 00:02:00 | S26: 16.2 | T26: 1.6 | U26: |
D27: 15.4 | E27: 1.4 | F27: 07:15:00 | G27: 00:02:00 | H27: | | I27: 13 | J27: Boby | K27: 14 | L27: 15:07:00 | M27: 00:01:00 | N27: 15.9 | O27: 0.3 | P27: | | Q27: 15:57:00 | R27: 00:01:00 | S27: 15.9 | T27: 0.3 | U27: |
D28: 16.8 | E28: 1 | F28: 07:17:00 | G28: 00:01:00 | H28: | | I28: 14 | J28: Boby wieś I | K28: 13 | L28: 15:05:00 | M28: 00:02:00 | N28: 14.5 | O28: 1.4 | P28: | | Q28: 15:55:00 | R28: 00:02:00 | S28: 14.5 | T28: 1.4 | U28: |
D29: 17.8 | E29: 1.5 | F29: 07:18:00 | G29: 00:02:00 | H29: | | I29: 15 | J29: Boby wieś II | K29: 12 | L29: 15:04:00 | M29: 00:01:00 | N29: 13.5 | O29: 1 | P29: | | Q29: 15:54:00 | R29: 00:01:00 | S29: 13.5 | T29: 1 | U29: |
D30: 19.3 | E30: 1.3 | F30: 07:20:00 | G30: 00:02:00 | H30: | | I30: 16 | J30: Chmielewo d.k. | K30: 11 | L30: 15:02:00 | M30: 00:02:00 | N30: 12 | O30: 1.5 | P30: | | Q30: 15:52:00 | R30: 00:02:00 | S30: 12 | T30: 1.5 | U30: |
D31: 20.6 | E31: 1 | F31: 07:22:00 | G31: 00:02:00 | H31: | | I31: 17 | J31: Chmielewo II | K31: 10 | L31: 15:00:00 | M31: 00:02:00 | N31: 10.7 | O31: 1.3 | P31: | | Q31: 15:50:00 | R31: 00:02:00 | S31: 10.7 | T31: 1.3 | U31: |
D32: 21.6 | E32: 1.1 | F32: 07:24:00 | G32: 00:02:00 | H32: | | I32: 18 | J32: Chmielewo I | K32: 9 | L32: 14:58:00 | M32: 00:02:00 | N32: 9.7 | O32: 1 | P32: | | Q32: 15:48:00 | R32: 00:02:00 | S32: 9.7 | T32: 1 | U32: |
D33: 22.7 | E33: 1 | F33: 07:26:00 | G33: 00:02:00 | H33: | | I33: 19 | J33: Lipa II | K33: 8 | L33: 14:56:00 | M33: 00:02:00 | N33: 8.6 | O33: 1.1 | P33: | | Q33: 15:46:00 | R33: 00:02:00 | S33: 8.6 | T33: 1.1 | U33: |
D34: 24 | E34: 0 | F34: 07:28:00 | G34: 00:01:00 | H34: | | I34: 20 | J34: Lipa I | K34: 7 | L34: 14:54:00 | M34: 00:02:00 | N34: 8 | O34: 1 | P34: | | Q34: 15:44:00 | R34: 00:02:00 | S34: 8 | T34: 1 | U34: |
D35: 24 | E35: 1 | F35: 07:29:00 | G35: 00:02:00 | H35: | | I35: 21 | J35: Kleszewo wieś I | K35: 6 | L35: 14:53:00 | M35: 00:01:00 | N35: 7 | O35: 0 | P35: | | Q35: 15:43:00 | R35: 00:01:00 | S35: 7 | T35: 0 | U35: |
D36: 25.1 | E36: 1.1 | F36: 07:31:00 | G36: 00:02:00 | H36: | | I36: 22 | J36: Kleszewo wieś II | K36: 5 | L36: 14:51:00 | M36: 00:02:00 | N36: 6.2 | O36: 1.1 | P36: | | Q36: 15:41:00 | R36: 00:02:00 | S36: 6.2 | T36: 1.1 | U36: |
D37: 26.2 | E37: 0.7 | F37: 07:33:00 | G37: 00:01:00 | H37: | | I37: 23 | J37: Kleszewo wieś I | K37: 4 | L37: 14:49:00 | M37: 00:02:00 | N37: 5.1 | O37: 1.1 | P37: | | Q37: 15:39:00 | R37: 00:02:00 | S37: 5.1 | T37: 1.1 | U37: |
D38: 26.9 | E38: 4 | F38: 07:34:00 | G38: 00:06:00 | H38: 43km/h | I38: 24 | J38: Kleszewo d.k. | K38: 3 | L38: 14:48:00 | M38: 00:01:00 | N38: 4.4 | O38: 0.7 | P38: | | Q38: 15:38:00 | R38: 00:01:00 | S38: 4.4 | T38: 0.7 | U38: |
D39: 30.9 | E39: 0.4 | F39: 07:40:00 | G39: 00:02:00 | H39: =IF(B39>3,"licz"," |") -> | | I39: 25 | J39: Pułtusk ul.Kościuszki | K39: 2 | L39: 14:42:00 | M39: 00:06:00 | N39: 0.4 | O39: 4 | P39: 43km/h | Q39: 15:32:00 | R39: 00:06:00 | S39: 0.4 | T39: 4 | U39: 43km/h
D40: 31.3 | E40: | | F40: 07:42:00 | G40: | | H40: =IF(B40>3,"licz"," |") -> | | I40: 26 | J40: Pułtusk szkoła ZS4 | K40: 1 | L40: 14:40:00 | M40: 00:02:00 | N40: 0 | O40: 0.4 | P40: | | Q40: 15:30:00 | R40: 00:02:00 | S40: 0 | T40: 0.4 | U40: |
G41: =SUM(G$15:G40) -> 00:52:00 | J41: czas przejazdu | M41: =SUM(M$15:M40) -> 00:52:00 | R41: =SUM(R15:R40) -> 00:52:00
G42: =D40*60/MINUTE(G41) -> 36.1 | J42: prędkość handlowa [km/h] | M42: =N15*60/MINUTE(M41) -> 36.1 | R42: 36.1
G43: 45 | J43: prędkość techniczna [km/h] | M43: 45 | R43: 45
C45: Liczba pojazdów niezbędnych do wykonania codziennych przejazdów: 1
C46: Osoba zarządzająca transportem: Janusz Sosnowski
C48: Legenda:
C49: S - kursuje w dni nauki szkolnej
C50: Zw - kurs zwykły
C52: * prędkość techniczna pojazdu

Sheet Pułtusk_Gromin_Moszyn (hidden)
A2: "Sanimax-Transport s.c." Janusz Sosnowski i Monika Sosnowska ul. Sokołowska 9/286 01-142 Warszawa | G2: Pięczęć organu wydającego zezwolenie | M2: Załącznik do zezwolenia nr:
A9: linia regularna
A10: komunikacja zwykła
A15: Linia nr 40 - Pułtusk ZS4 - Gromin - Pułtusk ZS4
B16: odl. | C16: km | D16: 4001 | G16: kurs | J16: 4002 | M16: 4003 | P16: km | Q16: odl.
D17: S, Zw | G17: kursuje w: | J17: S, Zw | M17: S, Zw
D18: godz | E18: czas | F18: prędk.* | G18: PT | H18: przystanek | I18: PT | J18: godz | K18: czas | L18: prędk.* | M18: godz | N18: czas | O18: prędk. *
B19: =C20-C19 -> 0.6 | C19: 0 | D19: 07:20:00 | E19: 00:02:00 | F19: | | G19: 1 | H19: Pułtusk ZS4 | I19: 14 | J19: =J22+K22 -> 15:10:00 | K19: | | L19: | | M19: =+M22+N22 -> 15:55:00 | N19: | | O19: | | P19: 15.5 | Q19: |
B20: =C23-C20 -> 3.4 | C20: 0.6 | D20: =D19+E19 -> 07:22:00 | E20: 00:04:00 | F20: | | G20: 2 | H20: Pułtusk ul. Mickiewicza | I20: | | J20: | | K20: | | L20: | | M20: | | N20: | | O20: | | P20: | | Q20: |
B21: | | C21: | | D21: | | E21: | | F21: | | G21: | | H21: Pułtusk Szkoła Podstawowa nr. 3 | I21: | | J21: | | K21: | | L21: | | M21: | | N21: | | O21: | | P21: | | Q21: |
B22: | | C22: | | D22: | | E22: | | F22: | | G22: | | H22: Pułtusk ul. Wojska Polskiego 02 | I22: 13 | J22: =J24+K24 -> 15:08:00 | K22: 00:02:00 | L22: | | M22: =+M24+N24 -> 15:53:00 | N22: 00:02:00 | O22: | | P22: 15.1 | Q22: =P19-P22 -> 0.4
B23: =C24-C23 -> 2.5 | C23: 4 | D23: =D20+E20 -> 07:26:00 | E23: 00:02:00 | F23: | | G23: 4 | H23: Lipniki Nowe Wieś | I23: | | J23: | | K23: | | L23: | | M23: | | N23: | | O23: | | P23: | | Q23: |
B24: 1.2 | C24: 6.5 | D24: =D23+E23 -> 07:28:00 | E24: 00:03:00 | F24: | | G24: 5 | H24: Moszyn Wieś | I24: 12 | J24: =J25+K25 -> 15:03:00 | K24: 00:05:00 | L24: 47km/h | M24: =+M25+N25 -> 15:48:00 | N24: 00:05:00 | O24: 47km/h | P24: 11.2 | Q24: =P22-P24 -> 3.9
B25: 0.6 | C25: 7.7 | D25: 07:31:00 | E25: 00:01:00 | F25: | | G25: 6 | H25: Gromin Wieś I | I25: 11 | J25: 15:01:00 | K25: 00:02:00 | L25: | | M25: 15:46:00 | N25: 00:02:00 | O25: | | P25: 10 | Q25: =P24-P25 -> 1.2
B26: 1 | C26: 8.3 | D26: 07:32:00 | E26: 00:02:00 | F26: | | G26: 7 | H26: Gromin Wieś II | I26: 10 | J26: 15:00:00 | K26: 00:01:00 | L26: | | M26: 15:45:00 | N26: 00:01:00 | O26: | | P26: 9.4 | Q26: 0.6
B27: 1 | C27: 9.3 | D27: 07:34:00 | E27: 00:01:00 | F27: | | G27: 8 | H27: Gromin II | I27: 9 | J27: 14:58:00 | K27: 00:02:00 | L27: | | M27: 15:43:00 | N27: 00:02:00 | O27: | | P27: 8.4 | Q27: 1
B28: 1.1 | C28: 10.3 | D28: 07:35:00 | E28: 00:02:00 | F28: | | G28: 9 | H28: Gromin I | I28: 8 | J28: 14:57:00 | K28: 00:01:00 | L28: | | M28: 15:42:00 | N28: 00:01:00 | O28: | | P28: 7.4 | Q28: 1
B29: =C32-C29 -> 3.7 | C29: 11.4 | D29: 07:37:00 | E29: 00:06:00 | F29: 45km/h | G29: 10 | H29: Moszyn | I29: 7 | J29: 14:55:00 | K29: 00:02:00 | L29: | | M29: 15:40:00 | N29: 00:02:00 | O29: | | P29: 6.2 | Q29: 1.2
B30: | | C30: | | D30: | | E30: | | F30: | | G30: | | H30: Lipniki Nowe Wieś | I30: 6 | J30: 14:53:00 | K30: 00:02:00 | L30: | | M30: 15:38:00 | N30: 00:02:00 | O30: | | P30: 5 | Q30: 1.2
B31: | | C31: | | D31: | | E31: | | F31: | | G31: | | H31: Pułtusk ul. Mickiewicza | I31: 4 | J31: 14:48:00 | K31: 00:05:00 | L31: 48km/h | M31: 15:33:00 | N31: 00:05:00 | O31: 48km/h | P31: 1.5 | Q31: 3.5
B32: =C34-C32 -> 0.7 | C32: 15.1 | D32: =D29+E29 -> 07:43:00 | E32: 00:03:00 | F32: | | G32: 11 | H32: Pułtusk Szkoła Podstawowa nr. 3 | I32: 3 | J32: 14:47:00 | K32: 00:01:00 | L32: | | M32: 15:32:00 | N32: 00:01:00 | O32: | | P32: 1 | Q32: 0.5
B33: | | C33: | | D33: | | E33: | | F33: | | G33: | | H33: Pułtusk ul. Wojska Polskiego 01 | I33: 2 | J33: 14:46:00 | K33: 00:01:00 | L33: | | M33: =M34+N34 -> 15:31:00 | N33: 00:01:00 | O33: | | P33: 0.3 | Q33: 0.7
B34: | | C34: 15.8 | D34: =D32+E32 -> 07:46:00 | E34: | | F34: | | G34: 12 | H34: Pułtusk ZS4 | I34: 1 | J34: 14:45:00 | K34: 00:01:00 | L34: | | M34: 15:30:00 | N34: 00:01:00 | O34: | | P34: 0 | Q34: 0.3
E35: =SUM(E$19:E34) -> 00:26:00 | H35: czas przejazdu | K35: =SUM(K$19:K34) -> 00:25:00 | N35: =SUM(N19:N34) -> 00:25:00
E36: =C34*60/MINUTE(E35) -> 36.5 | H36: prędkość handlowa [km/h] | K36: =P19*60/MINUTE(K35) -> 37.2 | N36: =P19*60/MINUTE(N35) -> 37.2
E37: 45 | H37: prędkość techniczna [km/h] | K37: 43 | N37: 43
A39: Liczba pojazdów niezbędnych do wykonania codziennych przejazdów: 1
A40: Osoba zarządzająca transportem: Janusz Sosnowski
A42: Legenda:
A43: S - kursuje w dni nauki szkolnej
A44: Zw - kurs zwykły
A46: * prędkość techniczna pojazdu

Sheet boby (hidden)
C1: "Sanimax-Transport s.c." Janusz Sosnowski i Monika Sosnowska ul. Sokołowska 9/286 01-142 Warszawa | I1: Pięczęć organu wydającego zezwolenie | N1: Załącznik do zezwolenia nr:
C8: linia regularna
C9: komunikacja zwykła
C11: Linia nr 50 - Pułtusk - Boby - Pułtusk
D12: 5001 | I12: kurs | L12: 5002
D13: S, Zw | I13: kursuje w: | L13: S, Zw
D14: km | E14: odl. | F14: godz | G14: czas | H14: prędk.* | I14: PT | J14: przystanek | K14: PT | L14: godz | M14: czas | N14: km | O14: odl. | P14: prędk.*
D15: 0 | E15: 12.5 | F15: 06:50:00 | G15: 00:20:00 | H15: 49km/h | I15: 1 | J15: Pułtusk szkoła ZS4 | K15: 26 | L15: =+L24+M24 -> 14:32:00 | M15: | | N15: 31.3 | O15: | | P15: |
D16: I | E16: I | F16: I | G16: I | H16: I | I16: 2 | J16: Pułtusk ul.Kościuszki | K16: 25 | L16: I | M16: I | N16: I | O16: I | P16: |
D17: I | E17: I | F17: I | G17: I | H17: =IF(B17>3,"licz"," |") -> | | I17: 3 | J17: Lipa I | K17: 24 | L17: I | M17: =G16 -> I | N17: I | O17: I | P17: I
D18: I | E18: I | F18: I | G18: I | H18: | | I18: 4 | J18: Lipa II | K18: 23 | L18: I | M18: I | N18: I | O18: I | P18: |
D19: I | E19: I | F19: I | G19: I | H19: | | I19: 5 | J19: Chmielewo I | K19: 22 | L19: I | M19: I | N19: I | O19: I | P19: |
D20: I | E20: I | F20: I | G20: I | H20: | | I20: 6 | J20: Chmielewo II | K20: 21 | L20: I | M20: I | N20: I | O20: I | P20: |
D21: I | E21: I | F21: I | G21: I | H21: | | I21: 7 | J21: Chmielewo d.k. | K21: 20 | L21: I | M21: I | N21: I | O21: I | P21: |
D22: I | E22: I | F22: I | G22: I | H22: | | I22: 8 | J22: Boby szkoła | K22: 19 | L22: I | M22: I | N22: I | O22: I | P22: |
D23: I | E23: I | F23: I | G23: I | H23: | | I23: 9 | J23: Gnojno I | K23: 18 | L23: I | M23: I | N23: I | O23: I | P23: |
D24: 12.5 | E24: =D25-D24 -> 1 | F24: =F15+G15 -> 07:10:00 | G24: 00:02:00 | H24: | | I24: 10 | J24: Gnojno II | K24: 17 | L24: =L25+M25 -> 14:12:00 | M24: 00:20:00 | N24: =N25+D25-D24 -> 18.8 | O24: =12.5 -> 12.5 | P24: 49km/h
D25: 13.5 | E25: 1.6 | F25: =F24+G24 -> 07:12:00 | G25: 00:02:00 | H25: | | I25: 11 | J25: Gnojno I | K25: 16 | L25: 14:10:00 | M25: =G24 -> 00:02:00 | N25: 17.8 | O25: =N24-N25 -> 1 | P25: |
D26: 15.1 | E26: 0.3 | F26: 07:14:00 | G26: 00:01:00 | H26: | | I26: 12 | J26: Boby szkoła | K26: 15 | L26: 14:08:00 | M26: 00:02:00 | N26: 16.2 | O26: 1.6 | P26: |
D27: 15.4 | E27: 1.4 | F27: 07:15:00 | G27: 00:02:00 | H27: | | I27: 13 | J27: Boby | K27: 14 | L27: 14:07:00 | M27: 00:01:00 | N27: 15.9 | O27: 0.3 | P27: |
D28: 16.8 | E28: 1 | F28: 07:17:00 | G28: 00:01:00 | H28: | | I28: 14 | J28: Boby wieś I | K28: 13 | L28: 14:05:00 | M28: 00:02:00 | N28: 14.5 | O28: 1.4 | P28: |
D29: 17.8 | E29: 1.5 | F29: 07:18:00 | G29: 00:02:00 | H29: | | I29: 15 | J29: Boby wieś II | K29: 12 | L29: 14:04:00 | M29: 00:01:00 | N29: 13.5 | O29: 1 | P29: |
D30: 19.3 | E30: 1.3 | F30: 07:20:00 | G30: 00:02:00 | H30: | | I30: 16 | J30: Chmielewo d.k. | K30: 11 | L30: 14:02:00 | M30: 00:02:00 | N30: 12 | O30: 1.5 | P30: |
D31: 20.6 | E31: 1 | F31: 07:22:00 | G31: 00:02:00 | H31: | | I31: 17 | J31: Chmielewo II | K31: 10 | L31: 14:00:00 | M31: 00:02:00 | N31: 10.7 | O31: 1.3 | P31: |
D32: 21.6 | E32: 1.1 | F32: 07:24:00 | G32: 00:02:00 | H32: | | I32: 18 | J32: Chmielewo I | K32: 9 | L32: 13:58:00 | M32: 00:02:00 | N32: 9.7 | O32: 1 | P32: |
D33: 22.7 | E33: 1 | F33: 07:26:00 | G33: 00:02:00 | H33: | | I33: 19 | J33: Lipa II | K33: 8 | L33: 13:56:00 | M33: 00:02:00 | N33: 8.6 | O33: 1.1 | P33: |
D34: 24 | E34: 0 | F34: 07:28:00 | G34: 00:01:00 | H34: | | I34: 20 | J34: Lipa I | K34: 7 | L34: 13:54:00 | M34: 00:02:00 | N34: 8 | O34: 1 | P34: |
D35: 24 | E35: 1 | F35: 07:29:00 | G35: 00:02:00 | H35: | | I35: 21 | J35: Kleszewo wieś I | K35: 6 | L35: 13:53:00 | M35: 00:01:00 | N35: 7 | O35: 0 | P35: |
D36: 25.1 | E36: 1.1 | F36: 07:31:00 | G36: 00:02:00 | H36: | | I36: 22 | J36: Kleszewo wieś II | K36: 5 | L36: 13:51:00 | M36: 00:02:00 | N36: 6.2 | O36: 1.1 | P36: |
D37: 26.2 | E37: 0.7 | F37: 07:33:00 | G37: 00:01:00 | H37: | | I37: 23 | J37: Kleszewo wieś I | K37: 4 | L37: 13:49:00 | M37: 00:02:00 | N37: 5.1 | O37: 1.1 | P37: |
D38: 26.9 | E38: 4 | F38: 07:34:00 | G38: 00:06:00 | H38: 43km/h | I38: 24 | J38: Kleszewo d.k. | K38: 3 | L38: 13:48:00 | M38: 00:01:00 | N38: 4.4 | O38: 0.7 | P38: |
D39: 30.9 | E39: 0.4 | F39: 07:40:00 | G39: 00:02:00 | H39: =IF(B39>3,"licz"," |") -> | | I39: 25 | J39: Pułtusk ul.Kościuszki | K39: 2 | L39: 13:42:00 | M39: 00:06:00 | N39: 0.4 | O39: 4 | P39: 43km/h
D40: 31.3 | E40: | | F40: 07:42:00 | G40: | | H40: =IF(B40>3,"licz"," |") -> | | I40: 26 | J40: Pułtusk szkoła ZS4 | K40: 1 | L40: 13:40:00 | M40: 00:02:00 | N40: 0 | O40: 0.4 | P40: |
G41: =SUM(G$15:G40) -> 00:52:00 | J41: czas przejazdu | M41: =SUM(M$15:M40) -> 00:52:00
G42: =D40*60/MINUTE(G41) -> 36.1 | J42: prędkość handlowa [km/h] | M42: =N15*60/MINUTE(M41) -> 36.1
G43: 45 | J43: prędkość techniczna [km/h] | M43: 45
C45: Liczba pojazdów niezbędnych do wykonania codziennych przejazdów: 1
C46: Osoba zarządzająca transportem: Janusz Sosnowski
C48: Legenda:
C49: S - kursuje w dni nauki szkolnej
C50: Zw - kurs zwykły
C52: * prędkość techniczna pojazdu

Sheet boby_(2) (hidden)
C1: "Sanimax-Transport s.c." Janusz Sosnowski i Monika Sosnowska ul. Sokołowska 9/286 01-142 Warszawa | I1: Pięczęć organu wydającego zezwolenie | N1: Załącznik do zezwolenia nr:
C8: linia regularna
C9: komunikacja zwykła
C11: Linia nr 50 - Pułtusk - Boby - Pułtusk
D12: 5001 | I12: kurs | L12: 5002
D13: S, Zw | I13: kursuje w: | L13: S, Zw
D14: km | E14: odl. | F14: godz | G14: czas | H14: prędk.* | I14: PT | J14: przystanek | K14: PT | L14: godz | M14: czas | N14: km | O14: odl. | P14: prędk.*
D15: 0 | E15: 0.6 | F15: 06:50:00 | G15: 00:02:00 | H15: I | I15: 1 | J15: Pułtusk szkoła ZS4 | K15: 26 | L15: =L16+M16 -> 14:23:00 | M15: | | N15: 32.3 | O15: | | P15: |
D16: 0.6 | E16: 4.6 | F16: =F15+G15 -> 06:52:00 | G16: 00:06:00 | H16: 46km/h | I16: 2 | J16: Pułtusk ul.Kościuszki | K16: 25 | L16: 14:21:00 | M16: 00:02:00 | N16: 31.7 | O16: 0.6 | P16: |
D17: 5.2 | E17: 1.1 | F17: 06:58:00 | G17: 00:02:00 | H17: =IF(B17>3,"licz"," |") -> | | I17: 3 | J17: Lipa I | K17: 24 | L17: 14:15:00 | M17: =G16 -> 00:06:00 | N17: 27.1 | O17: 4.6 | P17: 46km/h
D18: 6.3 | E18: 1 | F18: 07:00:00 | G18: 00:02:00 | H18: | | I18: 4 | J18: Lipa II | K18: 23 | L18: 14:13:00 | M18: 00:02:00 | N18: 26 | O18: 1.1 | P18: |
D19: 7.3 | E19: 1 | F19: 07:02:00 | G19: 00:01:00 | H19: | | I19: 5 | J19: Chmielewo I | K19: 22 | L19: 14:11:00 | M19: 00:02:00 | N19: 25 | O19: 1 | P19: |
D20: 8.3 | E20: 1.2 | F20: 07:03:00 | G20: 00:02:00 | H20: | | I20: 6 | J20: Chmielewo II | K20: 21 | L20: 14:10:00 | M20: 00:01:00 | N20: 24 | O20: 1 | P20: |
D21: 9.5 | E21: 1.5 | F21: 07:05:00 | G21: 00:02:00 | H21: | | I21: 7 | J21: Chmielewo d.k. | K21: 20 | L21: 14:08:00 | M21: 00:02:00 | N21: 22.8 | O21: 1.2 | P21: |
D22: 11 | E22: 1.6 | F22: 07:07:00 | G22: 00:02:00 | H22: | | I22: 8 | J22: Boby szkoła | K22: 19 | L22: 14:06:00 | M22: 00:02:00 | N22: 21.3 | O22: 1.5 | P22: |
D23: 12.6 | E23: 0.9 | F23: 07:09:00 | G23: 00:02:00 | H23: | | I23: 9 | J23: Gnojno I | K23: 18 | L23: 14:04:00 | M23: 00:02:00 | N23: 19.7 | O23: 1.6 | P23: |
D24: 13.5 | E24: 1 | F24: 07:11:00 | G24: 00:02:00 | H24: | | I24: 10 | J24: Gnojno II | K24: 17 | L24: 14:02:00 | M24: 00:02:00 | N24: =N25+D25-D24 -> 18.8 | O24: 0.9 | P24: I
D25: 14.5 | E25: 1.6 | F25: 07:13:00 | G25: 00:02:00 | H25: | | I25: 11 | J25: Gnojno I | K25: 16 | L25: 14:00:00 | M25: =G24 -> 00:02:00 | N25: 17.8 | O25: =N24-N25 -> 1 | P25: |
D26: 16.1 | E26: =D27-D26 -> 0.3 | F26: 07:15:00 | G26: 00:01:00 | H26: | | I26: 12 | J26: Boby szkoła | K26: 15 | L26: 13:58:00 | M26: 00:02:00 | N26: 16.2 | O26: 1.6 | P26: |
D27: 16.4 | E27: 1.4 | F27: 07:16:00 | G27: 00:02:00 | H27: | | I27: 13 | J27: Boby | K27: 14 | L27: 13:57:00 | M27: 00:01:00 | N27: 15.9 | O27: 0.3 | P27: |
D28: 17.8 | E28: 1 | F28: 07:18:00 | G28: 00:01:00 | H28: | | I28: 14 | J28: Boby wieś I | K28: 13 | L28: 13:55:00 | M28: 00:02:00 | N28: 14.5 | O28: 1.4 | P28: |
D29: 18.8 | E29: 1.5 | F29: 07:19:00 | G29: 00:02:00 | H29: | | I29: 15 | J29: Boby wieś II | K29: 12 | L29: 13:54:00 | M29: 00:01:00 | N29: 13.5 | O29: 1 | P29: |
D30: 20.3 | E30: 1.3 | F30: 07:21:00 | G30: 00:02:00 | H30: | | I30: 16 | J30: Chmielewo d.k. | K30: 11 | L30: 13:52:00 | M30: 00:02:00 | N30: 12 | O30: 1.5 | P30: |
D31: 21.6 | E31: 1 | F31: 07:23:00 | G31: 00:02:00 | H31: | | I31: 17 | J31: Chmielewo II | K31: 10 | L31: 13:50:00 | M31: 00:02:00 | N31: 10.7 | O31: 1.3 | P31: |
D32: 22.6 | E32: 1.1 | F32: 07:25:00 | G32: 00:02:00 | H32: | | I32: 18 | J32: Chmielewo I | K32: 9 | L32: 13:48:00 | M32: 00:02:00 | N32: 9.7 | O32: 1 | P32: |
D33: 23.7 | E33: 1 | F33: 07:27:00 | G33: 00:02:00 | H33: | | I33: 19 | J33: Lipa II | K33: 8 | L33: 13:46:00 | M33: 00:02:00 | N33: 8.6 | O33: 1.1 | P33: |
D34: 25 | E34: 0 | F34: 07:29:00 | G34: 00:01:00 | H34: | | I34: 20 | J34: Lipa I | K34: 7 | L34: 13:44:00 | M34: 00:02:00 | N34: 8 | O34: 1 | P34: |
D35: 25 | E35: 1 | F35: 07:30:00 | G35: 00:02:00 | H35: | | I35: 21 | J35: Kleszewo wieś I | K35: 6 | L35: 13:43:00 | M35: 00:01:00 | N35: 7 | O35: 0 | P35: |
D36: 26.1 | E36: 1.1 | F36: 07:32:00 | G36: 00:02:00 | H36: | | I36: 22 | J36: Kleszewo wieś II | K36: 5 | L36: 13:41:00 | M36: 00:02:00 | N36: 6.2 | O36: 1.1 | P36: |
D37: 27.2 | E37: 0.7 | F37: 07:34:00 | G37: 00:01:00 | H37: | | I37: 23 | J37: Kleszewo wieś I | K37: 4 | L37: 13:39:00 | M37: 00:02:00 | N37: 5.1 | O37: 1.1 | P37: |
D38: 27.9 | E38: 4 | F38: 07:35:00 | G38: 00:06:00 | H38: 43km/h | I38: 24 | J38: Kleszewo d.k. | K38: 3 | L38: 13:38:00 | M38: 00:01:00 | N38: 4.4 | O38: 0.7 | P38: |
D39: 31.9 | E39: 0.4 | F39: 07:41:00 | G39: 00:02:00 | H39: =IF(B39>3,"licz"," |") -> | | I39: 25 | J39: Pułtusk ul.Kościuszki | K39: 2 | L39: 13:32:00 | M39: 00:06:00 | N39: 0.4 | O39: 4.0 | P39: 43km/h
D40: 32.3 | E40: | | F40: 07:43:00 | G40: | | H40: =IF(B40>3,"licz"," |") -> | | I40: 26 | J40: Pułtusk szkoła ZS4 | K40: 1 | L40: 13:30:00 | M40: 00:02:00 | N40: 0 | O40: 0.4 | P40: |
G41: =SUM(G$15:G40) -> 00:53:00 | J41: czas przejazdu | M41: =SUM(M$15:M40) -> 00:53:00
G42: =D40*60/MINUTE(G41) -> 36.6 | J42: prędkość handlowa [km/h] | M42: 36.6
G43: 45 | J43: prędkość techniczna [km/h] | M43: 45
C45: Liczba pojazdów niezbędnych do wykonania codziennych przejazdów: 1
C46: Osoba zarządzająca transportem: Janusz Sosnowski
C48: Legenda:
C49: S - kursuje w dni nauki szkolnej
C50: Zw - kurs zwykły
C52: * prędkość techniczna pojazdu

Sheet PSP3_trzciniec (hidden)
B1: "Sanimax-Transport s.c." Janusz Sosnowski i Monika Sosnowska ul. Sokołowska 9/286 01-142 Warszawa | I1: Pięczęć organu wydającego zezwolenie | R1: Załącznik do zezwolenia nr:
B9: linia regularna
B10: komunikacja zwykła
B14: Linia nr 60 - Pułtusk ZS4 - Przemiarowo - Pułtusk
C15: odl. | D15: km | E15: 6001 | H15: 6003 | K15: 6005 | N15: 6007 | Q15: kurs
E16: S, Zw | H16: S, Zw | K16: S, Zw | N16: S, Zw | R16: kursuje w:
E17: godz | F17: czas | G17: prędk.* | H17: godz | I17: czas | J17: prędk.* | K17: godz | L17: czas | M17: prędk.* | N17: godz | O17: czas | P17: prędk.* | Q17: PT | R17: przystanek
C18: =D19-D18 -> 0.5 | D18: 0 | E18: 07:10:00 | F18: 00:02:00 | G18: | | H18: 07:15:00 | I18: =F18 -> 00:02:00 | J18: =G18 -> | | K18: 13:40:00 | L18: =I18 -> 00:02:00 | M18: =J18 -> | | N18: 15:25:00 | O18: =L18 -> 00:02:00 | P18: =M18 -> | | Q18: 1 | R18: Pułtusk ZS4
C19: 4 | D19: 0.5 | E19: =E18+F18 -> 07:12:00 | F19: 00:05:00 | G19: 46,8km/h | H19: =H18+I18 -> 07:17:00 | I19: 00:05:00 | J19: 46,8km/h | K19: =K18+L18 -> 13:42:00 | L19: 00:05:00 | M19: 46,8km/h | N19: =N18+O18 -> 15:27:00 | O19: 00:05:00 | P19: 46,8km/h | Q19: 2 | R19: Pułtusk Szkoła Podstawowa nr. 3
C20: 1.2 | D20: 4.5 | E20: 07:17:00 | F20: 00:03:00 | G20: =IF(D21-D20>=3,"licz predkosc!","|") -> | | H20: 07:22:00 | I20: 00:03:00 | J20: | | K20: 13:47:00 | L20: 00:03:00 | M20: | | N20: 15:32:00 | O20: 00:03:00 | P20: | | Q20: 3 | R20: Kleszewo
C21: 2 | D21: 5.7 | E21: 07:20:00 | F21: 00:02:00 | G21: | | H21: 07:25:00 | I21: 00:02:00 | J21: | | K21: 13:50:00 | L21: 00:02:00 | M21: | | N21: 15:35:00 | O21: 00:02:00 | P21: | | Q21: 4 | R21: Przemiarowo II D.G.
C22: 1.6 | D22: 7.7 | E22: 07:22:00 | F22: 00:01:00 | G22: | | H22: 07:27:00 | I22: 00:01:00 | J22: | | K22: 13:52:00 | L22: 00:01:00 | M22: | | N22: 15:37:00 | O22: 00:01:00 | P22: | | Q22: 5 | R22: Przemiarowo Szkoła
C23: 1.6 | D23: 9.3 | E23: 07:23:00 | F23: 00:01:00 | G23: | | H23: 07:28:00 | I23: 00:01:00 | J23: | | K23: 13:53:00 | L23: 00:01:00 | M23: | | N23: 15:38:00 | O23: 00:01:00 | P23: | | Q23: 6 | R23: Głodowo
C24: 1.5 | D24: 10.9 | E24: 07:24:00 | F24: 00:02:00 | G24: | | H24: 07:29:00 | I24: 00:02:00 | J24: | | K24: 13:54:00 | L24: 00:02:00 | M24: | | N24: 15:39:00 | O24: 00:02:00 | P24: | | Q24: 7 | R24: Gościejewo
C25: 1.1 | D25: 12.4 | E25: 07:26:00 | F25: 00:02:00 | G25: | | H25: 07:31:00 | I25: 00:02:00 | J25: | | K25: 13:56:00 | L25: 00:02:00 | M25: | | N25: 15:41:00 | O25: 00:02:00 | P25: | | Q25: 8 | R25: Trzciniec IV
C26: 0.6 | D26: 13.5 | E26: 07:28:00 | F26: 00:02:00 | G26: | | H26: 07:33:00 | I26: 00:02:00 | J26: | | K26: 13:58:00 | L26: 00:02:00 | M26: | | N26: 15:43:00 | O26: 00:02:00 | P26: | | Q26: 9 | R26: Trzciniec III
C27: 1.2 | D27: 14.1 | E27: 07:30:00 | F27: 00:03:00 | G27: | | H27: 07:35:00 | I27: 00:03:00 | J27: | | K27: 14:00:00 | L27: 00:03:00 | M27: | | N27: 15:45:00 | O27: 00:03:00 | P27: | | Q27: 10 | R27: Trzciniec II
C28: 2.8 | D28: 15.3 | E28: 07:33:00 | F28: 00:03:00 | G28: | | H28: 07:38:00 | I28: 00:03:00 | J28: | | K28: 14:03:00 | L28: 00:03:00 | M28: | | N28: 15:48:00 | O28: 00:03:00 | P28: | | Q28: 11 | R28: Trzciniec I
C29: 3.4 | D29: 18.1 | E29: 07:36:00 | F29: 00:05:00 | G29: 44km/h | H29: 07:41:00 | I29: 00:05:00 | J29: 44km/h | K29: 14:06:00 | L29: 00:05:00 | M29: 44km/h | N29: 15:51:00 | O29: 00:05:00 | P29: 44km/h | Q29: 12 | R29: Białowieża
C30: 0.5 | D30: 21.5 | E30: 07:41:00 | F30: 00:01:00 | G30: =IF(D32-D30>=3,"licz predkosc!","|") -> | | H30: 07:46:00 | I30: 00:01:00 | J30: | | K30: 14:11:00 | L30: 00:01:00 | M30: | | N30: 15:56:00 | O30: 00:01:00 | P30: =M30 -> | | Q30: 13 | R30: Pułtusk Szkoła Podstawowa nr. 3
C31: | | D31: 22 | E31: 07:42:00 | F31: 00:03:00 | G31: =IF(D32-D31>=3,"licz predkosc!","|") -> | | H31: 07:47:00 | I31: 00:03:00 | J31: | | K31: 14:12:00 | L31: 00:03:00 | M31: | | N31: 15:57:00 | O31: =L31 -> 00:03:00 | P31: =M31 -> | | Q31: 14 | R31: Pułtusk ZS4
F32: =SUM(F$18:F30) -> 00:32:00 | I32: =SUM(I$18:I30) -> 00:32:00 | L32: =SUM(L$18:L30) -> 00:32:00 | O32: =SUM(O$18:O30) -> 00:32:00
F33: =D31*60/MINUTE(F32) -> 41.3 | I33: =F33 -> 41.3 | L33: =F33 -> 41.3 | O33: =F33 -> 41.3
F34: 45 | I34: 45 | L34: 45 | O34: 45
B37: Liczba pojazdów niezbędnych do wykonania codziennych przejazdów: 2
B38: Osoba zarządzająca transportem: Janusz Sosnowski
B40: Legenda:
B41: S - kursuje w dni nauki szkolnej
B42: Zw - kurs zwykły
B44: * prędkość techniczna pojazdu

Sheet PSP3_gromin (hidden)
A2: "Sanimax-Transport s.c." Janusz Sosnowski i Monika Sosnowska ul. Sokołowska 9/286 01-142 Warszawa | G2: Pięczęć organu wydającego zezwolenie | M2: Załącznik do zezwolenia nr:
A9: linia regularna
A10: komunikacja zwykła
A15: Linia nr 70 - Pułtusk ZS4 - Gromin - Pułtusk ZS4
B16: odl. | C16: km | D16: 7001 | G16: kurs | J16: 7002 | M16: 7003 | P16: km | Q16: odl.
D17: S, Zw | G17: kursuje w: | J17: S, Zw | M17: S, Zw
D18: godz | E18: czas | F18: prędk.* | G18: PT | H18: przystanek | I18: PT | J18: godz | K18: czas | L18: prędk.* | M18: godz | N18: czas | O18: prędk. *
B19: 0.3 | C19: 0 | D19: 07:15:00 | E19: 00:02:00 | F19: | | G19: 1 | H19: Pułtusk ZS4 | I19: 14 | J19: =J22+K22 -> 15:05:00 | K19: | | L19: | | M19: =+M22+N22 -> 15:50:00 | N19: | | O19: | | P19: 15.5 | Q19: |
B20: 0.7 | C20: 0.3 | D20: =D19+E19 -> 07:17:00 | E20: 00:04:00 | F20: | | G20: 2 | H20: Pułtusk ul. Wojska Polskiego 01 | I20: | | J20: | | K20: | | L20: | | M20: | | N20: | | O20: | | P20: | | Q20: |
B21: 0.5 | C21: 1 | D21: | | E21: | | F21: | | G21: | | H21: Pułtusk Szkoła Podstawowa nr. 3 | I21: | | J21: | | K21: | | L21: | | M21: | | N21: | | O21: | | P21: | | Q21: |
B22: 3.5 | C22: 1.5 | D22: | | E22: | | F22: | | G22: | | H22: Pułtusk ul. Mickiewicza | I22: 13 | J22: =J24+K24 -> 15:03:00 | K22: 00:02:00 | L22: | | M22: =+M24+N24 -> 15:48:00 | N22: 00:02:00 | O22: | | P22: 15.1 | Q22: =P19-P22 -> 0.4
B23: 1.2 | C23: 5 | D23: =D20+E20 -> 07:21:00 | E23: 00:02:00 | F23: | | G23: 4 | H23: Lipniki Nowe Wieś | I23: | | J23: | | K23: | | L23: | | M23: | | N23: | | O23: | | P23: | | Q23: |
B24: 1.2 | C24: 6.2 | D24: =D23+E23 -> 07:23:00 | E24: 00:03:00 | F24: | | G24: 5 | H24: Moszyn | I24: 12 | J24: =J25+K25 -> 14:58:00 | K24: 00:05:00 | L24: 47km/h | M24: =+M25+N25 -> 15:43:00 | N24: 00:05:00 | O24: 47km/h | P24: 11.2 | Q24: =P22-P24 -> 3.9
B25: 1 | C25: 7.4 | D25: 07:26:00 | E25: 00:01:00 | F25: | | G25: 6 | H25: Gromin I | I25: 11 | J25: 14:56:00 | K25: 00:02:00 | L25: | | M25: 15:41:00 | N25: 00:02:00 | O25: | | P25: 10 | Q25: =P24-P25 -> 1.2
B26: 1 | C26: 8.4 | D26: 07:27:00 | E26: 00:02:00 | F26: | | G26: 7 | H26: Gromin II | I26: 10 | J26: 14:55:00 | K26: 00:01:00 | L26: | | M26: 15:40:00 | N26: 00:01:00 | O26: | | P26: 9.4 | Q26: 0.6
B27: 0.6 | C27: 9.4 | D27: 07:29:00 | E27: 00:01:00 | F27: | | G27: 8 | H27: Nowa Wieś II | I27: 9 | J27: 14:53:00 | K27: 00:02:00 | L27: | | M27: 15:38:00 | N27: 00:02:00 | O27: | | P27: 8.4 | Q27: 1
B28: 1.2 | C28: 10 | D28: 07:30:00 | E28: 00:02:00 | F28: | | G28: 9 | H28: Nowa Wieś I | I28: 8 | J28: 14:52:00 | K28: 00:01:00 | L28: | | M28: 15:37:00 | N28: 00:01:00 | O28: | | P28: 7.4 | Q28: 1
B29: 3.9 | C29: 11.2 | D29: 07:32:00 | E29: 00:06:00 | F29: 45km/h | G29: 10 | H29: Moszyn Wieś | I29: 7 | J29: 14:50:00 | K29: 00:02:00 | L29: | | M29: 15:35:00 | N29: 00:02:00 | O29: | | P29: 6.2 | Q29: 1.2
B30: | | C30: | | D30: | | E30: | | F30: | | G30: | | H30: Lipniki Nowe Wieś | I30: 6 | J30: 14:48:00 | K30: 00:02:00 | L30: | | M30: 15:33:00 | N30: 00:02:00 | O30: | | P30: 5 | Q30: 1.2
B31: I | C31: I | D31: | | E31: | | F31: | | G31: | | H31: Pułtusk ul. Wojska Polskiego 02 | I31: 4 | J31: 14:43:00 | K31: 00:05:00 | L31: 48km/h | M31: 15:28:00 | N31: 00:05:00 | O31: 48km/h | P31: 1.5 | Q31: 3.5
B32: 0.4 | C32: 15.1 | D32: =D29+E29 -> 07:38:00 | E32: 00:03:00 | F32: | | G32: 11 | H32: Pułtusk Szkoła Podstawowa nr. 3 | I32: 3 | J32: 14:42:00 | K32: 00:01:00 | L32: | | M32: 15:27:00 | N32: 00:01:00 | O32: | | P32: 1 | Q32: 0.5
B33: | | C33: | | D33: | | E33: | | F33: | | G33: | | H33: Pułtusk ul. Mickiewicza | I33: 2 | J33: 14:41:00 | K33: 00:01:00 | L33: | | M33: =M34+N34 -> 15:26:00 | N33: 00:01:00 | O33: | | P33: 0.3 | Q33: 0.7
B34: | | C34: 15.5 | D34: =D32+E32 -> 07:41:00 | E34: | | F34: | | G34: 12 | H34: Pułtusk ZS4 | I34: 1 | J34: 14:40:00 | K34: 00:01:00 | L34: | | M34: 15:25:00 | N34: 00:01:00 | O34: | | P34: 0 | Q34: 0.3
E35: =SUM(E$19:E34) -> 00:26:00 | H35: czas przejazdu | K35: =SUM(K$19:K34) -> 00:25:00 | N35: =SUM(N19:N34) -> 00:25:00
E36: =C34*60/MINUTE(E35) -> 35.8 | H36: prędkość handlowa [km/h] | K36: =P19*60/MINUTE(K35) -> 37.2 | N36: =P19*60/MINUTE(N35) -> 37.2
E37: 45 | H37: prędkość techniczna [km/h] | K37: 43 | N37: 43
A39: Liczba pojazdów niezbędnych do wykonania codziennych przejazdów: 1
A40: Osoba zarządzająca transportem: Janusz Sosnowski
A42: Legenda:
A43: S - kursuje w dni nauki szkolnej
A44: Zw - kurs zwykły
A46: * prędkość techniczna pojazdu

Sheet Linia_46 (hidden)
A1: "Sanimax-Transport s.c." Janusz Sosnowski i Monika Sosnowska ul. Sokołowska 9/286 01-142 Warszawa Oddział KLESZEWO: Kleszewo 60 06-100 Pułtusk | E1: Pięczęć organu wydającego zezwolenie | N1: Załącznik do zezwolenia nr:
B9: linia regularna
B10: komunikacja zwykła
B13: Linia nr 46 - Pułtusk – Pułtusk przez Gzy, Ostaszewo, Gotardy, Przewodowo
C14: odl. | D14: km | E14: 461 | H14: kurs | K14: odl. | L14: km | M14: 462
I15: kursuje w:
E16: godz | F16: czas | G16: prędk.* | H16: PT | I16: przystanek | M16: godz | N16: czas | O16: Prędk.*
C17: 0.0 | D17: 0.0 | E17: 08:40:00 | F17: 00:01:00 | H17: 1 | I17: Pułtusk ul.Kościuszki | L17: 55.1 | M17: =M18+N18 -> 14:15:00
C18: =D18-C17 -> 1.0 | D18: 1.0 | E18: =E17+F17 -> 08:41:00 | F18: 00:01:00 | H18: 2 | I18: Pułtusk Cmentarz I | K18: =L17-L18 -> 1.0 | L18: 54.1 | M18: =M20+N19 -> 14:14:00 | N18: 00:01:00
C19: =D19-C18 -> 1.0 | D19: 2.0 | E19: =E18+F18 -> 08:42:00 | F19: I | H19: 3 | I19: Pułtusk 3 Maja Rondo | L19: I | M19: I | N19: 00:01:00
D20: | | E20: I | F20: 00:03:00 | H20: 4 | I20: Pułtusk Kościuszki Rondo | K20: =L18-L20 -> 1.0 | L20: 53.1 | M20: =M21+N21 -> 14:13:00 | N20: I
C21: =D21-D19 -> 1.0 | D21: 3.0 | E21: =E19+F20 -> 08:45:00 | F21: I | H21: 5 | I21: Pułtusk Rynek | K21: =L20-L21 -> 1.0 | L21: 52.1 | M21: 14:11:00 | N21: 00:02:00
D22: | | E22: I | F22: 00:02:00 | H22: 6 | I22: Pułtusk 3 Maja Rondo | K22: 1.0 | L22: 51.1 | M22: 14:09:00 | N22: 00:02:00
C23: =D23-D21 -> 1.4 | D23: 4.4 | E23: =E21+F22 -> 08:47:00 | F23: 00:04:00 | H23: 7 | I23: Pułtusk ul.Wojska Polskiego | K23: 0.4 | L23: 50.7 | M23: 14:08:00 | N23: 00:01:00 | O23: =3.3/(4/60) -> 49.50
C24: =D24-D23 -> 3.3 | D24: 7.7 | E24: =E23+F23 -> 08:51:00 | F24: 00:02:00 | G24: =C24/(4/60) -> 49.50 | H24: 8 | I24: Moszyn | K24: 3.3 | L24: 47.4 | M24: 14:04:00 | N24: 00:04:00
C25: 2.0 | D25: 9.7 | E25: 08:53:00 | F25: 00:01:00 | H25: 9 | I25: Gromin I | K25: 2.0 | L25: 45.4 | M25: 14:02:00 | N25: 00:02:00
C26: 0.7 | D26: 10.4 | E26: 08:54:00 | F26: 00:02:00 | H26: 10 | I26: Gromin II | K26: 0.7 | L26: 44.7 | M26: 14:01:00 | N26: 00:01:00
C27: 0.7 | D27: 11.1 | E27: 08:56:00 | F27: 00:02:00 | H27: 11 | I27: Pękowo | K27: 0.7 | L27: 44.0 | M27: 13:59:00 | N27: 00:02:00
C28: 1.5 | D28: 12.6 | E28: 08:58:00 | F28: 00:01:00 | H28: 12 | I28: Przewodowo | K28: 1.5 | L28: 42.5 | M28: 13:57:00 | N28: 00:02:00
C29: 0.8 | D29: 13.4 | E29: 08:59:00 | F29: 00:02:00 | H29: 13 | I29: Kozłówka I | K29: 0.8 | L29: 41.7 | M29: 13:56:00 | N29: 00:01:00
C30: 1.0 | D30: 14.4 | E30: 09:01:00 | F30: 00:02:00 | H30: 14 | I30: Gzy (Urząd Gminy) | K30: 1.0 | L30: 40.7 | M30: 13:54:00 | N30: 00:02:00
C31: 2.0 | D31: 16.4 | E31: 09:03:00 | F31: 00:01:00 | H31: 15 | I31: Gzy Szkoła | K31: 2.0 | L31: 38.7 | M31: 13:52:00 | N31: 00:02:00
C32: 1.0 | D32: 17.4 | E32: 09:04:00 | F32: 00:03:00 | H32: 16 | I32: Gzy kapliczka | K32: 1.0 | L32: 37.7 | M32: 13:51:00 | N32: 00:01:00
C33: 2.0 | D33: 19.4 | E33: 09:07:00 | F33: 00:01:00 | H33: 17 | I33: Borza 1 | K33: 2.0 | L33: 35.7 | M33: 13:48:00 | N33: 00:03:00
C34: 1.0 | D34: 20.4 | E34: 09:08:00 | F34: 00:02:00 | H34: 18 | I34: Borza 2 | K34: 1.0 | L34: 34.7 | M34: 13:47:00 | N34: 00:01:00
C35: 1.0 | D35: 21.4 | E35: 09:10:00 | F35: 00:02:00 | H35: 19 | I35: Begno I | K35: 1.0 | L35: 33.7 | M35: 13:45:00 | N35: 00:02:00
C36: 2.0 | D36: 23.4 | E36: 09:12:00 | F36: 00:02:00 | H36: 20 | I36: Ostaszewo Wielkie skrz. | K36: 2.0 | L36: 31.7 | M36: 13:43:00 | N36: 00:02:00
C37: 1.5 | D37: 24.9 | E37: 09:14:00 | F37: 00:03:00 | H37: 21 | I37: Szyszki Folwark | K37: 1.5 | L37: 30.2 | M37: 13:41:00 | N37: 00:02:00
C38: 2.5 | D38: 27.4 | E38: 09:17:00 | F38: 00:01:00 | H38: 22 | I38: Słończewo I | K38: 2.5 | L38: 27.7 | M38: 13:38:00 | N38: 00:03:00
C39: 0.9 | D39: 28.3 | E39: 09:18:00 | F39: 00:02:00 | H39: 23 | I39: Słończewo II | K39: 0.9 | L39: 26.8 | M39: 13:37:00 | N39: 00:01:00
C40: 0.8 | D40: 29.1 | E40: 09:20:00 | F40: 00:01:00 | H40: 24 | I40: Gotardy 01/02 | K40: 0.8 | L40: 26.0 | M40: 13:35:00 | N40: 00:02:00
C41: 0.8 | D41: 29.9 | E41: 09:21:00 | F41: 00:01:00 | H41: 25 | I41: Słończewo II | K41: 0.8 | L41: 25.2 | M41: 13:34:00 | N41: 00:01:00
C42: 0.9 | D42: 30.8 | E42: 09:22:00 | F42: 00:02:00 | H42: 26 | I42: Słończewo I | K42: 0.9 | L42: 24.3 | M42: 13:33:00 | N42: 00:01:00
C43: 0.9 | D43: 31.7 | E43: 09:24:00 | F43: 00:02:00 | H43: 27 | I43: Szyszki | K43: 0.9 | L43: 23.4 | M43: 13:31:00 | N43: 00:02:00
C44: 1.6 | D44: 33.3 | E44: 09:26:00 | F44: 00:02:00 | H44: 28 | I44: Skaszewo Włosciańskie | K44: 1.6 | L44: 21.8 | M44: 13:29:00 | N44: 00:02:00
C45: 1.4 | D45: 34.7 | E45: 09:28:00 | F45: 00:02:00 | H45: 29 | I45: Żebry Falbogi | K45: 1.4 | L45: 20.4 | M45: 13:27:00 | N45: 00:02:00
C46: 1.5 | D46: 36.2 | E46: 09:30:00 | F46: 00:02:00 | H46: 30 | I46: Żebry Włosty | K46: 1.5 | L46: 18.9 | M46: 13:25:00 | N46: 00:02:00
C47: 2.4 | D47: 38.6 | E47: 09:32:00 | F47: 00:01:00 | H47: 31 | I47: Ołdaki | K47: 2.4 | L47: 16.5 | M47: 13:23:00 | N47: 00:02:00
C48: 1.0 | D48: 39.6 | E48: 09:33:00 | F48: 00:02:00 | H48: 32 | I48: Łady | K48: 1.0 | L48: 15.5 | M48: 13:22:00 | N48: 00:01:00
C49: 1.4 | D49: 41.0 | E49: 09:35:00 | F49: 00:01:00 | H49: 33 | I49: Przewodowo | K49: 1.4 | L49: 14.1 | M49: 13:20:00 | N49: 00:02:00
C50: 0.5 | D50: 41.5 | E50: 09:36:00 | F50: 00:02:00 | H50: 34 | I50: Przewodowo | K50: 0.5 | L50: 13.6 | M50: 13:19:00 | N50: 00:01:00
C51: 1.5 | D51: 43.0 | E51: 09:38:00 | F51: 00:01:00 | H51: 35 | I51: Pękowo | K51: 1.5 | L51: 12.1 | M51: 13:17:00 | N51: 00:02:00
C52: 0.7 | D52: 43.7 | E52: 09:39:00 | F52: 00:01:00 | H52: 36 | I52: Gromin II | K52: 0.7 | L52: 11.4 | M52: 13:16:00 | N52: 00:01:00
C53: 0.7 | D53: 44.4 | E53: 09:40:00 | F53: 00:03:00 | H53: 37 | I53: Gromin I | K53: 0.7 | L53: 10.7 | M53: 13:15:00 | N53: 00:01:00
C54: 2.0 | D54: 46.4 | E54: 09:43:00 | F54: 00:05:00 | H54: 38 | I54: Moszyn | K54: 2.0 | L54: 8.7 | M54: 13:12:00 | N54: 00:03:00 | O54: =3.3/(5/60) -> 39.60
C55: 3.3 | D55: 49.7 | E55: 09:48:00 | F55: 00:01:00 | G55: =3.3/(5/60) -> 39.60 | H55: 39 | I55: Pułtusk ul.Wojska Polskiego | K55: 3.3 | L55: 5.4 | M55: =M57+N56 -> 13:07:00 | N55: 00:05:00
C56: 1.4 | D56: 51.1 | E56: 09:49:00 | F56: 00:03:00 | H56: 40 | I56: Pułtusk 3 Maja Rondo | K56: 2.4 | L56: I | M56: I | N56: 00:04:00
C57: 1.0 | D57: 52.1 | E57: 09:52:00 | F57: 00:01:00 | H57: 41 | I57: Pułtusk Rynek | L57: 3.0 | M57: =M59+N58 -> 13:03:00 | N57: I
C58: 1.0 | D58: 53.1 | E58: 09:53:00 | F58: I | H58: 42 | I58: Pułtusk Kościuszki Rondo | K58: 1.0 | L58: I | M58: I | N58: 00:01:00
D59: | | E59: I | F59: 00:01:00 | H59: 43 | I59: Pułtusk 3 Maja Rondo | L59: 2.0 | M59: =M60+N60 -> 13:02:00 | N59: I
C60: =D60-D58 -> 1.0 | D60: 54.1 | E60: =E58+F59 -> 09:54:00 | F60: 00:01:00 | H60: 44 | I60: Pułtusk Cmentarz I | K60: 1.0 | L60: 1.0 | M60: =M61+N61 -> 13:01:00 | N60: 00:01:00
C61: =D61-D60 -> 1.0 | D61: 55.1 | E61: =E60+F60 -> 09:55:00 | H61: 45 | I61: Pułtusk ul.Kościuszki | K61: 1.0 | L61: 0.0 | M61: 13:00:00 | N61: 00:01:00
F62: =SUM(F$17:F61) -> 01:15:00 | H62: Czas przejazdu | N62: =SUM(N$17:N61) -> 01:15:00
F63: =D61*60/75 -> 44.08 | H63: Prędkość komunikacyjna | N63: =L17*60/75 -> 44.08
F64: =F63*(75/60) -> 55.10 | H64: Prędkość techniczna | N64: =N63*(75/60) -> 55.10
B66: Liczba pojazdów niezbędnych do wykonania codziennych przejazdów: 1
B67: Osoba zarządzająca transportem: Janusz Sosnowski
B68: Legenda:
B69: S - kursuje w dni nauki szkolnej
B70: * prędkość techniczna pojazdu

Sheet Linia_47 (hidden)
A1: "Sanimax-Transport s.c." Janusz Sosnowski i Monika Sosnowska ul. Sokołowska 9/286 01-142 Warszawa Oddział KLESZEWO: Kleszewo 60 06-100 Pułtusk | E1: Pięczęć organu wydającego zezwolenie | N1: Załącznik do zezwolenia nr:
B9: linia regularna
B10: komunikacja zwykła
B13: Linia nr 47 - Pułtusk – Pułtusk przez Winnica, Kowalewice, Świercze, Lipniki St.
C14: odl. | D14: km | E14: 471 | H14: kurs | K14: odl. | L14: km | M14: 472
I15: kursuje w:
E16: godz | F16: czas | G16: prędk.* | H16: PT | I16: przystanek | M16: godz | N16: czas | O16: Prędk.*
C17: 0.0 | D17: 0.0 | E17: 08:30:00 | F17: 00:01:00 | H17: 1 | I17: Pułtusk ul.Kościuszki | K17: 1.0 | L17: =L18+K17 -> 65.3 | M17: =M18+N18 -> 15:00:00
C18: =D18-D17 -> 1.0 | D18: 1.0 | E18: =E17+F17 -> 08:31:00 | F18: 00:03:00 | H18: 2 | I18: Pułtusk Cmentarz I | K18: 0.6 | L18: 64.3 | M18: 14:59:00 | N18: 00:01:00
C19: =D19-D18 -> 1.0 | D19: 2.0 | E19: I | F19: I | H19: 3 | I19: Pułtusk Kościuszki Rondo | K19: 0.4 | L19: 63.7 | M19: 14:57:00 | N19: 00:02:00
C20: =D20-D19 -> 0.4 | D20: 2.4 | E20: =E18+F18 -> 08:34:00 | F20: 00:01:00 | H20: 4 | I20: Pułtusk ul.Wojska Polskiego | K20: 0.5 | L20: 63.3 | M20: 14:56:00 | N20: 00:01:00
C21: =D21-D20 -> 0.5 | D21: 2.9 | E21: =E20+F20 -> 08:35:00 | F21: 00:01:00 | H21: 5 | I21: Pułtusk, ul. Tysiąclecia | K21: 0.4 | L21: 62.8 | M21: 14:55:00 | N21: 00:01:00
C22: =D22-D21 -> 0.4 | D22: 3.3 | E22: 08:36:00 | F22: 00:04:00 | H22: 6 | I22: Pułtusk, ul. Mickiewicza | K22: 1.8 | L22: 62.4 | M22: 14:54:00 | N22: 00:01:00
C23: =D23-D21 -> 1.8 | D23: 4.7 | E23: 08:40:00 | F23: 00:01:00 | H23: 7 | I23: Pułtusk DA Nowy Rynek | K23: 1.0 | L23: 60.6 | M23: 14:50:00 | N23: 00:04:00
C24: =D24-D23 -> 1.0 | D24: 5.7 | E24: 08:41:00 | F24: 00:02:00 | H24: 8 | I24: Pułtusk, ul. Nasielska | K24: 2.0 | L24: 59.6 | M24: 14:49:00 | N24: 00:01:00
C25: 2.0 | D25: 7.7 | E25: 08:43:00 | F25: 00:02:00 | H25: 9 | I25: Jeżewo | K25: 2.0 | L25: 57.6 | M25: 14:47:00 | N25: 00:02:00
C26: 2.0 | D26: 9.7 | E26: 08:45:00 | F26: 00:01:00 | H26: 10 | I26: Płocochowo kol. | K26: 1.0 | L26: 55.6 | M26: 14:45:00 | N26: 00:02:00
C27: 1.0 | D27: 10.7 | E27: 08:46:00 | F27: 00:01:00 | H27: 11 | I27: Płocochowo II | K27: 1.0 | L27: 54.6 | M27: 14:44:00 | N27: 00:01:00
C28: 1.0 | D28: 11.7 | E28: 08:47:00 | F28: 00:02:00 | H28: 12 | I28: Kokoszka | K28: 1.0 | L28: 53.6 | M28: 14:43:00 | N28: 00:01:00
C29: 1.0 | D29: 12.7 | E29: 08:49:00 | F29: 00:02:00 | H29: 13 | I29: Golądkowo Kolonia | K29: 2.0 | L29: 52.6 | M29: 14:41:00 | N29: 00:02:00
C30: 2.0 | D30: 14.7 | E30: 08:51:00 | F30: 00:02:00 | H30: 14 | I30: Golądkowo Kolonia | K30: 2.0 | L30: 50.6 | M30: 14:39:00 | N30: 00:02:00
C31: 2.0 | D31: 16.7 | E31: 08:53:00 | F31: 00:02:00 | H31: 15 | I31: Zbroszki | K31: 1.0 | L31: 48.6 | M31: 14:37:00 | N31: 00:02:00
C32: 1.0 | D32: 17.7 | E32: 08:55:00 | F32: 00:03:00 | H32: 16 | I32: Winnica | K32: 2.3 | L32: 47.6 | M32: 14:35:00 | N32: 00:02:00
C33: 2.3 | D33: 20.0 | E33: 08:58:00 | F33: 00:02:00 | H33: 17 | I33: Gnaty Szczerbaki (skrz) | K33: 1.4 | L33: 45.3 | M33: 14:32:00 | N33: 00:03:00
C34: 1.4 | D34: 21.4 | E34: 09:00:00 | F34: 00:02:00 | H34: 18 | I34: Gnaty Szczerbaki | K34: 1.4 | L34: 43.9 | M34: 14:30:00 | N34: 00:02:00
C35: 1.4 | D35: 22.8 | E35: 09:02:00 | F35: 00:01:00 | H35: 19 | I35: Górki Witowice | K35: 1.0 | L35: 42.5 | M35: 14:28:00 | N35: 00:02:00
C36: 1.0 | D36: 23.8 | E36: 09:03:00 | F36: 00:01:00 | H36: 20 | I36: Górki Baćki | K36: 0.9 | L36: 41.5 | M36: 14:27:00 | N36: 00:01:00
C37: 0.9 | D37: 24.7 | E37: 09:04:00 | F37: 00:01:00 | H37: 21 | I37: Kowalewice Nowe | K37: 1.5 | L37: 40.6 | M37: 14:26:00 | N37: 00:01:00
C38: 1.5 | D38: 26.2 | E38: 09:05:00 | F38: 00:02:00 | H38: 22 | I38: Kowalewice Włościańskie (skrz) | K38: 1.0 | L38: 39.1 | M38: 14:25:00 | N38: 00:01:00
C39: 1.0 | D39: 27.2 | E39: 09:07:00 | F39: 00:01:00 | H39: 23 | I39: Kowalewice Włościańskie (wieś) | K39: 0.9 | L39: 38.1 | M39: 14:23:00 | N39: 00:02:00
C40: 0.9 | D40: 28.1 | E40: 09:08:00 | F40: 00:02:00 | H40: 24 | I40: Ostrzeniewo (skrz.) | K40: 1.6 | L40: 37.2 | M40: 14:22:00 | N40: 00:01:00
C41: 1.6 | D41: 29.7 | E41: 09:10:00 | F41: 00:02:00 | H41: 25 | I41: Ostrzeniewo II (figurka) | K41: 1.7 | L41: 35.6 | M41: 14:20:00 | N41: 00:02:00
C42: 1.7 | D42: 31.4 | E42: 09:12:00 | F42: 00:03:00 | H42: 26 | I42: Świercze, ul. Pułtuska (SKR) | K42: 1.8 | L42: 33.9 | M42: 14:18:00 | N42: 00:02:00
C43: 1.8 | D43: 33.2 | E43: 09:15:00 | F43: 00:02:00 | H43: 27 | I43: Świercze ul. Zwycięzców | K43: 1.8 | L43: 32.1 | M43: 14:15:00 | N43: 00:03:00
C44: 1.8 | D44: 35.0 | E44: 09:17:00 | F44: 00:01:00 | H44: 28 | I44: Świercze, ul. Pułtuska (SKR) | K44: 1.0 | L44: 30.3 | M44: 14:13:00 | N44: 00:02:00
C45: 1.0 | D45: 36.0 | E45: 09:18:00 | F45: 00:02:00 | H45: 29 | I45: Prusinowice | K45: 1.9 | L45: 29.3 | M45: 14:12:00 | N45: 00:01:00
C46: 1.9 | D46: 37.9 | E46: 09:20:00 | F46: 00:03:00 | H46: 30 | I46: Sulkowo | K46: 2.1 | L46: 27.4 | M46: 14:10:00 | N46: 00:02:00
C47: 2.1 | D47: 40.0 | E47: 09:23:00 | F47: 00:01:00 | H47: 31 | I47: Strzegocin | K47: 1.0 | L47: 25.3 | M47: 14:07:00 | N47: 00:03:00
C48: 1.0 | D48: 41.0 | E48: 09:24:00 | F48: 00:02:00 | H48: 32 | I48: Kosiorowo | K48: 1.0 | L48: 24.3 | M48: 14:06:00 | N48: 00:01:00
C49: 1.0 | D49: 42.0 | E49: 09:26:00 | F49: 00:02:00 | H49: 33 | I49: Gąsiorowo II | K49: 1.3 | L49: 23.3 | M49: 14:04:00 | N49: 00:02:00
C50: 1.3 | D50: 43.3 | E50: 09:28:00 | F50: 00:06:00 | H50: 34 | I50: Gąsiorowo I (kościół) | K50: 3.0 | L50: 22.0 | M50: 14:02:00 | N50: 00:02:00 | O50: =3/(6/60) -> 30.00
C51: 3.0 | D51: 46.3 | E51: 09:34:00 | F51: 00:01:00 | G51: =3/(6/60) -> 30.00 | H51: 35 | I51: Tąsewy | K51: 1.0 | L51: 19.0 | M51: 13:56:00 | N51: 00:06:00
C52: 1.0 | D52: 47.3 | E52: 09:35:00 | F52: 00:01:00 | H52: 36 | I52: Skórznice II | K52: 0.5 | L52: 18.0 | M52: 13:55:00 | N52: 00:01:00
C53: 0.5 | D53: 47.8 | E53: 09:36:00 | F53: 00:06:00 | H53: 37 | I53: Skórznice I | K53: 4.0 | L53: 17.5 | M53: 13:54:00 | N53: 00:01:00 | O53: =4/(6/60) -> 40.00
C54: 4.0 | D54: 51.8 | E54: 09:42:00 | F54: 00:01:00 | G54: =4/(6/60) -> 40.00 | H54: 38 | I54: Stare Bulkowo II | K54: 0.5 | L54: 13.5 | M54: 13:48:00 | N54: 00:06:00
C55: 0.5 | D55: 52.3 | E55: 09:43:00 | F55: 00:05:00 | H55: 39 | I55: Stare Bulkowo I | K55: 3.3 | L55: 13.0 | M55: 13:47:00 | N55: 00:01:00 | O55: =3.3/(5/60) -> 39.60
C56: 3.3 | D56: 55.6 | E56: 09:48:00 | F56: 00:02:00 | G56: =3.3/(5/60) -> 39.60 | H56: 40 | I56: Lipniki Stare II | K56: 1.0 | L56: 9.7 | M56: 13:42:00 | N56: 00:05:00
C57: 1.0 | D57: 56.6 | E57: 09:50:00 | F57: 00:02:00 | H57: 41 | I57: Lipniki Stare I | K57: 1.7 | L57: 8.7 | M57: 13:40:00 | N57: 00:02:00
C58: 1.7 | D58: 58.3 | E58: 09:52:00 | F58: 00:03:00 | H58: 42 | I58: Lipniki Nowe | K58: 3.0 | L58: 7.0 | M58: 13:38:00 | N58: 00:02:00
C59: 3.0 | D59: 61.3 | E59: 09:55:00 | F59: 00:02:00 | H59: 43 | I59: Pułtusk, ul. Mickiewicza | K59: 1.0 | L59: 4.0 | M59: 13:35:00 | N59: 00:03:00
C60: 1.0 | D60: 62.3 | E60: 09:57:00 | F60: 00:01:00 | H60: 44 | I60: Pułtusk DA Nowy Rynek | K60: 1.0 | L60: 3.0 | M60: 13:33:00 | N60: 00:02:00
C61: 1.0 | D61: 63.3 | E61: 09:58:00 | F61: 00:01:00 | H61: 45 | I61: Pułtusk Kościuszki (Rondo) | K61: 1.0 | L61: 2.0 | M61: 13:32:00 | N61: 00:01:00
C62: 1.0 | D62: 64.3 | E62: 09:59:00 | F62: 00:01:00 | H62: 46 | I62: Pułtusk Cmentarz I | K62: 1.0 | L62: 1.0 | M62: 13:31:00 | N62: 00:01:00
C63: 1.0 | D63: 65.3 | E63: 10:00:00 | H63: 47 | I63: Pułtusk, ul. Kościuszki | K63: 0.0 | L63: 0.0 | M63: 13:30:00 | N63: 00:01:00
F64: =SUM(F$17:F63) -> 01:30:00 | H64: Czas przejazdu | N64: =SUM(N$17:N63) -> 01:30:00
F65: =D63*60/90 -> 43.53 | H65: Prędkość komunikacyjna | N65: =L17*60/90 -> 43.53
F66: =F65*(90/60) -> 65.30 | H66: Prędkość techniczna | N66: =N65*(90/60) -> 65.30
B68: Liczba pojazdów niezbędnych do wykonania codziennych przejazdów: 1
B69: Osoba zarządzająca transportem: Janusz Sosnowski
B70: Legenda:
B71: S - kursuje w dni nauki szkolnej
B72: * prędkość techniczna pojazdu

Sheet Linia_49 (hidden)
A1: "Sanimax-Transport s.c." Janusz Sosnowski i Monika Sosnowska ul. Sokołowska 9/286 01-142 Warszawa Oddział KLESZEWO: Kleszewo 60 06-100 Pułtusk | E1: Pięczęć organu wydającego zezwolenie | N1: Załącznik do zezwolenia nr:
B9: linia regularna
B10: komunikacja zwykła
B13: Linia nr 49 - Pułtusk – Pułtusk przez Winnica, Błędostowo, Pokrzywnica.
C14: odl. | D14: km | E14: 491 | H14: kurs | K14: odl. | L14: km | M14: 492
I15: kursuje w:
E16: godz | F16: czas | G16: prędk.* | H16: PT | I16: przystanek | M16: godz | N16: czas | O16: Prędk.*
C17: 0.0 | D17: 0.0 | E17: 08:35:00 | F17: 00:01:00 | H17: 1 | I17: Pułtusk ul.Kościuszki | K17: 1.0 | L17: =L18+K17 -> 75.7 | M17: =M18+N18 -> 15:00:00
C18: =D18-D17 -> 1.0 | D18: 1.0 | E18: =E17+F17 -> 08:36:00 | F18: 00:03:00 | H18: 2 | I18: Pułtusk Cmentarz I | K18: 1.0 | L18: =L20+K20 -> 74.7 | M18: =M20+N19 -> 14:59:00 | N18: 00:01:00
C19: =D19-D18 -> 1.0 | D19: 2.0 | E19: I | F19: I | H19: 3 | I19: Pułtusk Kościuszki (Rondo) | M19: I | N19: 00:03:00
E20: =E18+F18 -> 08:39:00 | F20: 00:06:00 | H20: 4 | I20: Pułtusk, 3 Maja (Rondo) | K20: 1.0 | L20: =L21+K20 -> 73.7 | M20: =M21+N21 -> 14:56:00 | N20: I
C21: =D21-D19 -> 1.0 | D21: 3.0 | E21: =E20+F20 -> 08:45:00 | F21: 00:01:00 | H21: 5 | I21: Pułtusk DA Nowy Rynek | K21: 1.0 | L21: 72.7 | M21: 14:50:00 | N21: 00:06:00
C22: =D22-D21 -> 1.0 | D22: 4.0 | E22: 08:46:00 | F22: 00:04:00 | H22: 6 | I22: Pułtusk, ul. Mickiewicza | K22: 3.0 | L22: 71.7 | M22: 14:49:00 | N22: 00:01:00 | O22: =3/(4/60) -> 45.00
C23: 3.0 | D23: 7.0 | E23: 08:50:00 | F23: 00:02:00 | G23: =3/(4/60) -> 45.00 | H23: 7 | I23: Lipniki Nowe I | K23: 1.7 | L23: 68.7 | M23: 14:45:00 | N23: 00:04:00
C24: 1.7 | D24: 8.7 | E24: 08:52:00 | F24: 00:01:00 | H24: 8 | I24: Lipniki Stare I | K24: 1.0 | L24: 67.0 | M24: 14:43:00 | N24: 00:02:00
C25: 1.0 | D25: 9.7 | E25: 08:53:00 | F25: 00:04:00 | H25: 9 | I25: Lipniki Stare II | K25: 2.4 | L25: 66.0 | M25: 14:42:00 | N25: 00:01:00
C26: 2.4 | D26: 12.1 | E26: 08:57:00 | F26: 00:01:00 | H26: 10 | I26: Stare Bulkowo | K26: 0.5 | L26: 63.6 | M26: 14:38:00 | N26: 00:04:00
C27: 0.5 | D27: 12.6 | E27: 08:58:00 | F27: 00:02:00 | H27: 11 | I27: Nowe Bulkowo | K27: 1.0 | L27: 63.1 | M27: 14:37:00 | N27: 00:01:00
C28: 1.0 | D28: 13.6 | E28: 09:00:00 | F28: 00:01:00 | H28: 12 | I28: Łachoń | K28: 1.0 | L28: 62.1 | M28: 14:35:00 | N28: 00:02:00
C29: 1.0 | D29: 14.6 | E29: 09:01:00 | F29: 00:01:00 | H29: 13 | I29: Golądkowo Kol II | K29: 1.0 | L29: 61.1 | M29: 14:34:00 | N29: 00:01:00
C30: 1.0 | D30: 15.6 | E30: 09:02:00 | F30: 00:01:00 | H30: 14 | I30: Golądkowo Kol II | K30: 2.0 | L30: 60.1 | M30: 14:33:00 | N30: 00:01:00
C31: 2.0 | D31: 17.6 | E31: 09:03:00 | F31: 00:02:00 | H31: 15 | I31: Golądkowo (szkoła) | K31: 2.0 | L31: 58.1 | M31: 14:32:00 | N31: 00:01:00
C32: 2.0 | D32: 19.6 | E32: 09:05:00 | F32: 00:01:00 | H32: 16 | I32: Zbroszki | K32: 1.0 | L32: 56.1 | M32: 14:30:00 | N32: 00:02:00
C33: 1.0 | D33: 20.6 | E33: 09:06:00 | F33: 00:02:00 | H33: 17 | I33: Winnica | K33: 1.6 | L33: 55.1 | M33: 14:29:00 | N33: 00:01:00
C34: 1.6 | D34: 22.2 | E34: 09:08:00 | F34: 00:03:00 | H34: 18 | I34: Rębkowo | K34: 2.5 | L34: 53.5 | M34: 14:27:00 | N34: 00:02:00
C35: 2.5 | D35: 24.7 | E35: 09:11:00 | F35: 00:01:00 | H35: 19 | I35: Skoroszki | K35: 0.6 | L35: 51.0 | M35: 14:24:00 | N35: 00:03:00
C36: 0.6 | D36: 25.3 | E36: 09:12:00 | F36: 00:01:00 | H36: 20 | I36: Skorosze | K36: 0.9 | L36: 50.4 | M36: 14:23:00 | N36: 00:01:00
C37: 0.9 | D37: 26.2 | E37: 09:13:00 | F37: 00:02:00 | H37: 21 | I37: Poniaty Wielkie | K37: 1.1 | L37: 49.5 | M37: 14:22:00 | N37: 00:01:00
C38: 1.1 | D38: 27.3 | E38: 09:15:00 | F38: 00:05:00 | H38: 22 | I38: Poniaty (skrz) | K38: 3.9 | L38: 48.4 | M38: 14:20:00 | N38: 00:02:00 | O38: =3.9/(5/60) -> 46.80
C39: 3.9 | D39: 31.2 | E39: 09:20:00 | F39: 00:02:00 | G39: =3.9/(5/60) -> 46.80 | H39: 23 | I39: Smogorzewo Dąbrowa (skrz) | K39: 1.5 | L39: 44.5 | M39: 14:15:00 | N39: 00:05:00
C40: 1.5 | D40: 32.7 | E40: 09:22:00 | F40: 00:02:00 | H40: 24 | I40: Smogorzewo | K40: 1.7 | L40: 43.0 | M40: 14:13:00 | N40: 00:02:00
C41: 1.7 | D41: 34.4 | E41: 09:24:00 | F41: 00:03:00 | H41: 25 | I41: Błędostowo | K41: 2.6 | L41: 41.3 | M41: 14:11:00 | N41: 00:02:00
C42: 2.6 | D42: 37.0 | E42: 09:27:00 | F42: 00:02:00 | H42: 26 | I42: Powielin | K42: 1.4 | L42: 38.7 | M42: 14:08:00 | N42: 00:03:00
C43: 1.4 | D43: 38.4 | E43: 09:29:00 | F43: 00:02:00 | H43: 27 | I43: Wólka Zaleska | K43: 1.3 | L43: 37.3 | M43: 14:06:00 | N43: 00:02:00
C44: 1.3 | D44: 39.7 | E44: 09:31:00 | F44: 00:01:00 | H44: 28 | I44: Budy Pobyłkowskie | K44: 1.7 | L44: 36.0 | M44: 14:04:00 | N44: 00:02:00
C45: 1.7 | D45: 41.4 | E45: 09:32:00 | F45: 00:02:00 | H45: 29 | I45: Pobyłkowo Duże | K45: 1.3 | L45: 34.3 | M45: 14:03:00 | N45: 00:01:00
C46: 1.3 | D46: 42.7 | E46: 09:34:00 | F46: 00:02:00 | H46: 30 | I46: Pobyłkowo Małe | K46: 1.5 | L46: 33.0 | M46: 14:01:00 | N46: 00:02:00
C47: 1.5 | D47: 44.2 | E47: 09:36:00 | F47: 00:02:00 | H47: 31 | I47: Budy Ciepielińskie | K47: 1.5 | L47: 31.5 | M47: 13:59:00 | N47: 00:02:00
C48: 1.5 | D48: 45.7 | E48: 09:38:00 | F48: 00:01:00 | H48: 32 | I48: Trzepowo Parcele (figurka) | K48: 0.7 | L48: 30.0 | M48: 13:57:00 | N48: 00:02:00
C49: 0.7 | D49: 46.4 | E49: 09:39:00 | F49: 00:01:00 | H49: 33 | I49: Trzepowo Parcele | K49: 0.9 | L49: 29.3 | M49: 13:56:00 | N49: 00:01:00
C50: 0.9 | D50: 47.3 | E50: 09:40:00 | F50: 00:02:00 | H50: 34 | I50: Trzepowo Parcele (skrz) | K50: 1.3 | L50: 28.4 | M50: 13:55:00 | N50: 00:01:00
C51: 1.3 | D51: 48.6 | E51: 09:42:00 | F51: 00:02:00 | H51: 35 | I51: Budy Obrębskie II | K51: 1.4 | L51: 27.1 | M51: 13:53:00 | N51: 00:02:00
C52: 1.4 | D52: 50.0 | E52: 09:44:00 | F52: 00:02:00 | H52: 36 | I52: Budy Obrębskie I | K52: 1.5 | L52: =L53+K52 -> 25.7 | M52: =M53+N53 -> 13:51:00 | N52: 00:02:00
C53: 1.5 | D53: 51.5 | E53: =E52+F52 -> 09:46:00 | F53: 00:02:00 | H53: 37 | I53: Obręb (Sołtys) | K53: 1.1 | L53: 24.2 | M53: 13:49:00 | N53: 00:02:00
C54: =D54-D53 -> 1.1 | D54: 52.6 | E54: 09:48:00 | F54: 00:02:00 | H54: 38 | I54: Dzbanice III | K54: 1.2 | L54: 23.1 | M54: 13:47:00 | N54: 00:02:00
C55: 1.2 | D55: 53.8 | E55: 09:50:00 | F55: 00:02:00 | H55: 39 | I55: Dzbanice II (skrz.) | K55: 1.3 | L55: 21.9 | M55: 13:45:00 | N55: 00:02:00
C56: 1.3 | D56: 55.1 | E56: 09:52:00 | F56: 00:01:00 | H56: 40 | I56: Klaski | K56: 0.9 | L56: 20.6 | M56: 13:43:00 | N56: 00:02:00
C57: 0.9 | D57: 56.0 | E57: 09:53:00 | F57: 00:02:00 | H57: 41 | I57: Mory | K57: 1.0 | L57: 19.7 | M57: 13:42:00 | N57: 00:01:00
C58: 1.0 | D58: 57.0 | E58: 09:55:00 | F58: 00:02:00 | H58: 42 | I58: Obrębek (wieś) | K58: 2.0 | L58: 18.7 | M58: 13:40:00 | N58: 00:02:00
C59: 2.0 | D59: 59 | E59: 09:57:00 | F59: 00:02:00 | H59: 43 | I59: Pokrzywnica | K59: 1.6 | L59: 16.7 | M59: 13:38:00 | N59: 00:02:00
C60: 1.6 | D60: 60.6 | E60: 09:59:00 | F60: 00:02:00 | H60: 44 | I60: Obrębek | K60: 1.8 | L60: 15.1 | M60: 13:36:00 | N60: 00:02:00
C61: 1.8 | D61: 62.4 | E61: 10:01:00 | F61: 00:01:00 | H61: 45 | I61: Niestępowo | K61: 0.8 | L61: 13.3 | M61: 13:34:00 | N61: 00:02:00
C62: 0.8 | D62: 63.2 | E62: 10:02:00 | F62: 00:02:00 | H62: 46 | I62: Nowe Niestępowo | K62: 0.9 | L62: 12.5 | M62: 13:33:00 | N62: 00:01:00
C63: 0.9 | D63: 64.1 | E63: 10:04:00 | F63: 00:01:00 | H63: 47 | I63: Olbrachcice | K63: 0.5 | L63: 11.6 | M63: 13:31:00 | N63: 00:02:00
C64: 0.5 | D64: 64.6 | E64: 10:05:00 | F64: 00:03:00 | H64: 48 | I64: Koziegłowy | K64: 2.2 | L64: 11.1 | M64: 13:30:00 | N64: 00:01:00
C65: 2.2 | D65: 66.8 | E65: 10:08:00 | F65: 00:03:00 | H65: 49 | I65: Kacice | K65: 2.3 | L65: 8.9 | M65: 13:27:00 | N65: 00:03:00
C66: 2.3 | D66: 69.1 | E66: 10:11:00 | F66: 00:03:00 | H66: 50 | I66: Pułtusk, ul. Warszawska | K66: 1.3 | L66: 6.6 | M66: 13:24:00 | N66: 00:03:00
C67: 1.3 | D67: 70.4 | E67: 10:14:00 | F67: 00:03:00 | H67: 51 | I67: Pułtusk DA Nowy Rynek | K67: 1.0 | L67: 5.3 | M67: 13:21:00 | N67: 00:03:00
C68: 1.0 | D68: 71.4 | E68: 10:17:00 | F68: 00:02:00 | H68: 52 | I68: Pułtusk, ul. Jana Pawła II | K68: 1.0 | L68: 4.3 | M68: 13:18:00 | N68: 00:03:00
C69: 1.0 | D69: 72.4 | E69: 10:19:00 | F69: 00:01:00 | H69: 53 | I69: Pułtusk, ul. Mickiewicza | K69: 0.4 | L69: 3.3 | M69: 13:16:00 | N69: 00:02:00
C70: 0.4 | D70: 72.8 | E70: 10:20:00 | F70: 00:02:00 | H70: 54 | I70: Pułtusk, ul. Tysiąclecia | K70: 0.5 | L70: 2.9 | M70: 13:15:00 | N70: 00:01:00
C71: 0.5 | D71: 73.3 | E71: 10:22:00 | F71: 00:01:00 | H71: 55 | I71: Pułtusk, ul. Wojska Polskiego | K71: 0.4 | L71: 2.4 | M71: 13:13:00 | N71: 00:02:00
C72: 0.4 | D72: 73.7 | E72: 10:23:00 | F72: 00:01:00 | H72: 56 | I72: Pułtusk Kościuszki (Rondo) | K72: 1.0 | L72: 2.0 | M72: 13:12:00 | N72: 00:01:00
C73: 1.0 | D73: 74.7 | E73: 10:24:00 | F73: 00:01:00 | H73: 57 | I73: Pułtusk Cmentarz I | K73: 1.0 | L73: 1.0 | M73: 13:11:00 | N73: 00:01:00
C74: 1.0 | D74: 75.7 | E74: 10:25:00 | H74: 58 | I74: Pułtusk ul.Kościuszki | K74: 0.0 | L74: 0.0 | M74: 13:10:00 | N74: 00:01:00
F75: =SUM(F$17:F74) -> 01:50:00 | H75: Czas przejazdu | N75: =SUM(N$17:N74) -> 01:50:00
F76: =(D74*60)/110 -> 41.29 | H76: Prędkość komunikacyjna | N76: =(L17*60)/110 -> 41.29
F77: =F76*(110/60) -> 75.70 | H77: Prędkość techniczna | N77: =N76*(110/60) -> 75.70
B79: Liczba pojazdów niezbędnych do wykonania codziennych przejazdów: 1
B80: Osoba zarządzająca transportem: Janusz Sosnowski
B81: Legenda:
B82: S - kursuje w dni nauki szkolnej
B83: * prędkość techniczna pojazdu

Sheet Linia_59 (hidden)
A1: "Sanimax-Transport s.c." Janusz Sosnowski i Monika Sosnowska ul. Sokołowska 9/286 01-142 Warszawa Oddział KLESZEWO: Kleszewo 60 06-100 Pułtusk | E1: Pięczęć organu wydającego zezwolenie | N1: Załącznik do zezwolenia nr:
B9: linia regularna
B10: komunikacja zwykła
B13: Linia nr 59 - Pułtusk – Pułtusk przez Zatory, Pniewo.
C14: odl. | D14: km | E14: 591 | H14: kurs | K14: odl. | L14: km | M14: 592
I15: kursuje w:
E16: godz | F16: czas | G16: prędk.* | H16: PT | I16: przystanek | M16: godz | N16: czas | O16: Prędk.*
C17: 0.0 | D17: 0.0 | E17: 08:40:00 | F17: 00:01:00 | H17: 1 | I17: Pułtusk ul.Kościuszki | K17: 1.0 | L17: =L18+K17 -> 63.9 | M17: =M18+N18 -> 15:00:00
C18: =D18-D17 -> 1.0 | D18: 1.0 | E18: =E17+F17 -> 08:41:00 | F18: 00:03:00 | H18: 2 | I18: Pułtusk Cmentarz I | K18: 1.0 | L18: 62.9 | M18: =M20+N21 -> 14:59:00 | N18: 00:01:00
C19: 1.0 | D19: 2.0 | E19: I | F19: I | H19: 3 | I19: Pułtusk Kościuszki (Rondo) | K19: 0.4 | L19: 61.9 | M19: =M20+N20 -> 14:58:00 | N19: 00:01:00
C20: 0.4 | D20: 2.4 | E20: =E18+F18 -> 08:44:00 | F20: 00:01:00 | H20: 4 | I20: Pułtusk, ul. Wojska Polskiego | K20: 0.5 | L20: 61.5 | M20: 14:57:00 | N20: 00:01:00
C21: 0.5 | D21: 2.9 | E21: =E20+F20 -> 08:45:00 | F21: 00:01:00 | H21: 5 | I21: Pułtusk, ul. Tysiąclecia | K21: 0.4 | L21: 61.0 | M21: 14:55:00 | N21: 00:02:00
C22: 0.4 | D22: 3.3 | E22: 08:46:00 | F22: 00:02:00 | H22: 6 | I22: Pułtusk, ul. Mickiewicza | K22: 1.0 | L22: 60.6 | M22: 14:54:00 | N22: 00:01:00
C23: 1.0 | D23: 4.3 | E23: 08:48:00 | F23: 00:02:00 | H23: 7 | I23: Pułtusk, ul. Jana Pawła II | K23: 1.0 | L23: 59.6 | M23: 14:52:00 | N23: 00:02:00
C24: 1.0 | D24: 5.3 | E24: 08:50:00 | F24: 00:02:00 | H24: 8 | I24: Pułtusk DA Nowy Rynek | K24: 2.0 | L24: 58.6 | M24: 14:50:00 | N24: 00:02:00
C25: 2.0 | D25: 7.3 | E25: 08:52:00 | F25: 00:01:00 | H25: 9 | I25: Pułtusk, ul. Wyszkowska (skrz.) | K25: 1.0 | L25: 56.6 | M25: 14:48:00 | N25: 00:02:00
C26: 1.0 | D26: 8.3 | E26: 08:53:00 | F26: 00:02:00 | H26: 10 | I26: Grabówiec I | K26: 1.0 | L26: 55.6 | M26: 14:47:00 | N26: 00:01:00
C27: 1.0 | D27: 9.3 | E27: 08:55:00 | F27: 00:01:00 | H27: 11 | I27: Grabówiec Nowy | K27: 1.0 | L27: 54.6 | M27: 14:45:00 | N27: 00:02:00
C28: 1.0 | D28: 10.3 | E28: 08:56:00 | F28: 00:01:00 | H28: 12 | I28: Grabówiec Stara Wieś | K28: 1.0 | L28: 53.6 | M28: 14:44:00 | N28: 00:01:00
C29: 1.0 | D29: 11.3 | E29: 08:57:00 | F29: 00:02:00 | H29: 13 | I29: Lemany | K29: 2.0 | L29: 52.6 | M29: 14:43:00 | N29: 00:01:00
C30: 2.0 | D30: 13.3 | E30: 08:59:00 | F30: 00:01:00 | H30: 14 | I30: Borsuki (skrz.) | K30: 1.0 | L30: 50.6 | M30: 14:41:00 | N30: 00:02:00
C31: 1.0 | D31: 14.3 | E31: 09:00:00 | F31: 00:02:00 | H31: 15 | I31: Borsuki (zakręt) | K31: 1.0 | L31: 49.6 | M31: 14:40:00 | N31: 00:01:00
C32: 1.0 | D32: 15.3 | E32: 09:02:00 | F32: 00:01:00 | H32: 16 | I32: Borsuki Kolonia | K32: 1.0 | L32: 48.6 | M32: 14:38:00 | N32: 00:02:00
C33: 1.0 | D33: 16.3 | E33: 09:03:00 | F33: 00:02:00 | H33: 17 | I33: Łęcino | K33: 2.0 | L33: 47.6 | M33: 14:37:00 | N33: 00:01:00
C34: 2.0 | D34: 18.3 | E34: 09:05:00 | F34: 00:01:00 | H34: 18 | I34: Kruczy Borek | K34: 1.0 | L34: 45.6 | M34: 14:35:00 | N34: 00:02:00
C35: 1.0 | D35: 19.3 | E35: 09:06:00 | F35: 00:04:00 | H35: 19 | I35: Śliski (wieś) | K35: 3.0 | L35: 44.6 | M35: 14:34:00 | N35: 00:01:00 | O35: =3/(4/60) -> 45.00
C36: 3.0 | D36: 22.3 | E36: 09:10:00 | F36: 00:01:00 | G36: =3/(4/60) -> 45.00 | H36: 20 | I36: Kępa Zatorska | K36: 1.0 | L36: 41.6 | M36: 14:30:00 | N36: 00:04:00
C37: 1.0 | D37: 23.3 | E37: 09:11:00 | F37: 00:01:00 | H37: 21 | I37: Zatory Ośrodek | K37: 1.0 | L37: 40.6 | M37: 14:29:00 | N37: 00:01:00
C38: 1.0 | D38: 24.3 | E38: 09:12:00 | F38: 00:02:00 | H38: 22 | I38: Zatory | K38: 1.0 | L38: 39.6 | M38: 14:28:00 | N38: 00:01:00
C39: 1.0 | D39: 25.3 | E39: 09:14:00 | F39: 00:02:00 | H39: 23 | I39: Zatory Kolonia | K39: 2.0 | L39: 38.6 | M39: 14:26:00 | N39: 00:02:00
C40: 2.0 | D40: 27.3 | E40: 09:16:00 | F40: 00:02:00 | H40: 24 | I40: Wólka Zatorska | K40: 2.0 | L40: 36.6 | M40: 14:24:00 | N40: 00:02:00
C41: 2.0 | D41: 29.3 | E41: 09:18:00 | F41: 00:01:00 | H41: 25 | I41: Zatory Kolonia | K41: 1.0 | L41: 34.6 | M41: 14:22:00 | N41: 00:02:00
C42: 1.0 | D42: 30.3 | E42: 09:19:00 | F42: 00:01:00 | H42: 26 | I42: Zatory | K42: 1.0 | L42: 33.6 | M42: 14:21:00 | N42: 00:01:00
C43: 1.0 | D43: 31.3 | E43: 09:20:00 | F43: 00:02:00 | H43: 27 | I43: Zatory Ośrodek | K43: 1.5 | L43: 32.6 | M43: 14:20:00 | N43: 00:01:00
C44: 1.5 | D44: 32.8 | E44: 09:22:00 | F44: 00:01:00 | H44: 28 | I44: Ostrówek (skrz. k. Zator) | K44: 0.5 | L44: 31.1 | M44: 14:18:00 | N44: 00:02:00
C45: 0.5 | D45: 33.3 | E45: 09:23:00 | F45: 00:02:00 | H45: 29 | I45: Drwały | K45: 2.0 | L45: 30.6 | M45: 14:17:00 | N45: 00:01:00
C46: 2.0 | D46: 35.3 | E46: 09:25:00 | F46: 00:01:00 | H46: 30 | I46: Cieńsza (skrz.) | K46: 1.4 | L46: 28.6 | M46: 14:15:00 | N46: 00:02:00
C47: 1.4 | D47: 36.7 | E47: 09:26:00 | F47: 00:01:00 | H47: 31 | I47: Cieńsza (OSP) | K47: 1.1 | L47: 27.2 | M47: 14:14:00 | N47: 00:01:00
C48: 1.1 | D48: 37.8 | E48: 09:27:00 | F48: 00:02:00 | H48: 32 | I48: Cieńsza (wieś) | K48: 1.0 | L48: 26.1 | M48: 14:13:00 | N48: 00:01:00
C49: 1.0 | D49: 38.8 | E49: 09:29:00 | F49: 00:02:00 | H49: 33 | I49: Lemany | K49: 2.0 | L49: =L50+K49 -> 25.1 | M49: 14:11:00 | N49: 00:02:00
C50: =D50-D49 -> 2.0 | D50: 40.8 | E50: 09:31:00 | F50: 00:02:00 | H50: 34 | I50: Pniewo Kolonia III | K50: 0.7 | L50: 23.1 | M50: 14:09:00 | N50: 00:02:00
C51: 0.7 | D51: 41.5 | E51: 09:33:00 | F51: 00:01:00 | H51: 35 | I51: Lutobrok Folwark | K51: 0.6 | L51: 22.4 | M51: =M52+N52 -> 14:07:00 | N51: 00:02:00
C52: 0.6 | D52: 42.1 | E52: 09:34:00 | F52: 00:02:00 | H52: 36 | I52: Lutobrok Folwark (skrz.) | K52: 0.8 | L52: 21.8 | M52: 14:06:00 | N52: 00:01:00
C53: 0.8 | D53: 42.9 | E53: =E52+F52 -> 09:36:00 | F53: 00:02:00 | H53: 37 | I53: Lutobrok (skrz.) | K53: 1.6 | L53: 21.0 | M53: 14:04:00 | N53: 00:02:00
C54: 1.6 | D54: 44.5 | E54: 09:38:00 | F54: 00:02:00 | H54: 38 | I54: Pniewo (OSP) | K54: 0.5 | L54: 19.4 | M54: 14:02:00 | N54: 00:02:00
C55: 0.5 | D55: 45.0 | E55: 09:40:00 | F55: 00:02:00 | H55: 39 | I55: Pniewo | K55: 1.3 | L55: 18.9 | M55: 14:00:00 | N55: 00:02:00
C56: 1.3 | D56: 46.3 | E56: 09:42:00 | F56: 00:02:00 | H56: 40 | I56: Pniewo Kolonia | K56: 1.1 | L56: 17.6 | M56: 13:58:00 | N56: 00:02:00
C57: 1.1 | D57: 47.4 | E57: 09:44:00 | F57: 00:02:00 | H57: 41 | I57: Topolnica II | K57: 1.0 | L57: 16.5 | M57: 13:56:00 | N57: 00:02:00
C58: 1.0 | D58: 48.4 | E58: 09:46:00 | F58: 00:01:00 | H58: 42 | I58: Topolnica I | K58: 1.1 | L58: 15.5 | M58: 13:54:00 | N58: 00:02:00
C59: 1.1 | D59: 49.5 | E59: 09:47:00 | F59: 00:01:00 | H59: 43 | I59: Gładczyn Gaj | K59: 0.7 | L59: 14.4 | M59: 13:53:00 | N59: 00:01:00
C60: 0.7 | D60: 50.2 | E60: 09:48:00 | F60: 00:02:00 | H60: 44 | I60: Gładczyn Rządowy (skrz.) | K60: 0.9 | L60: 13.7 | M60: 13:52:00 | N60: 00:01:00
C61: 0.9 | D61: 51.1 | E61: 09:50:00 | F61: 00:04:00 | H61: 45 | I61: Gładczyn | K61: 3.5 | L61: 12.8 | M61: 13:50:00 | N61: 00:02:00 | O61: =3.5/(4/60) -> 52.50
C62: 3.5 | D62: 54.6 | E62: 09:54:00 | F62: 00:01:00 | G62: =3.5/(4/60) -> 52.50 | H62: 46 | I62: Grabówiec (las) | K62: 0.6 | L62: 9.3 | M62: 13:46:00 | N62: 00:04:00
C63: 0.6 | D63: 55.2 | E63: 09:55:00 | F63: 00:01:00 | H63: 47 | I63: Pułtusk, ul. Wyszkowska III | K63: 1.4 | L63: 8.7 | M63: 13:45:00 | N63: 00:01:00
C64: 1.4 | D64: 56.6 | E64: 09:56:00 | F64: 00:02:00 | H64: 48 | I64: Pułtusk, ul. Wyszkowska II | K64: 2.0 | L64: 7.3 | M64: 13:44:00 | N64: 00:01:00
C65: 2.0 | D65: 58.6 | E65: 09:58:00 | F65: 00:02:00 | H65: 49 | I65: Pułtusk DA Nowy Rynek | K65: 1.0 | L65: 5.3 | M65: 13:42:00 | N65: 00:02:00
C66: 1.0 | D66: 59.6 | E66: 10:00:00 | F66: 00:01:00 | H66: 50 | I66: Pułtusk, ul. Jana Pawła II | K66: 1.0 | L66: 4.3 | M66: 13:40:00 | N66: 00:02:00
C67: 1.0 | D67: 60.6 | E67: 10:01:00 | F67: 00:01:00 | H67: 51 | I67: Pułtusk, ul. Mickiewicza | K67: 0.4 | L67: 3.3 | M67: 13:39:00 | N67: 00:01:00
C68: 0.4 | D68: 61.0 | E68: 10:02:00 | F68: 00:02:00 | H68: 52 | I68: Pułtusk, ul. Tysiąclecia | K68: 0.5 | L68: 2.9 | M68: 13:38:00 | N68: 00:01:00
C69: 0.5 | D69: 61.5 | E69: 10:04:00 | F69: 00:02:00 | H69: 53 | I69: Pułtusk, ul. Wojska Polskiego | K69: 0.4 | L69: 2.4 | M69: 13:36:00 | N69: 00:02:00
C70: 0.4 | D70: 61.9 | E70: 10:06:00 | F70: 00:02:00 | H70: 54 | I70: Pułtusk Kościuszki (Rondo) | K70: 1.0 | L70: 2.0 | M70: 13:34:00 | N70: 00:02:00
C71: 1.0 | D71: 62.9 | E71: 10:08:00 | F71: 00:02:00 | H71: 55 | I71: Pułtusk Cmentarz I | K71: 1.0 | L71: 1.0 | M71: 13:32:00 | N71: 00:02:00
C72: 1.0 | D72: 63.9 | E72: 10:10:00 | H72: 56 | I72: Pułtusk ul.Kościuszki | K72: 0.0 | L72: 0.0 | M72: 13:30:00 | N72: 00:02:00
F73: =SUM(F$17:F72) -> 01:30:00 | H73: Czas przejazdu | N73: =SUM(N17:N72) -> 01:30:00
F74: =(D72*60)/90 -> 42.60 | H74: Prędkość komunikacyjna | N74: =(L17*60)/110 -> 34.85
F75: =F74*(90/60) -> 63.90 | H75: Prędkość techniczna | N75: =N74*(110/60) -> 63.90
B77: Liczba pojazdów niezbędnych do wykonania codziennych przejazdów: 1
B78: Osoba zarządzająca transportem: Janusz Sosnowski
B79: Legenda:
B80: S - kursuje w dni nauki szkolnej
B81: * prędkość techniczna pojazdu

Sheet 1_do_PKP_(1)
A1: Organizator:
A2: Gmina Nasielsk
A3: ul. Elektronowa 3
A4: 05-190 Nasielsk
A5: Tel.: 23 693 30 00
A7: Operator:
A8: ….......................................................
A9: ….......................................................
A10: ….......................................................
A11: Tel.:…...................................
A12: KRS: …...................., NIP: ….......................
A14: Rozkład jazdy obowiązuje od 01.01.2026 do 31.12.2026
A16: Nazwa linii komunikacyjnej: linia nr 1 : Nasielsk - Pieścirogi - Mogowo Dworzec Kolejowy
A17: Komunikacja zwykła
A19: ROZKŁAD JAZDY
A20: stanowiący załącznik do Zaświadczenia nr 1/2024 na wykonywanie publicznego transportu zbiorowego
B22: Linia nr 1 : Nasielsk - Pieścirogi - Mogowo Dworzec Kolejowy
B23: kurs | I23: 201 | J23: 203 | K23: 205 | L23: 207 | M23: 209 | N23: 211 | O23: 213 | P23: 215 | Q23: 217 | R23: 219 | S23: 221 | T23: 223 | U23: 225 | V23: 227 | W23: 229 | X23: 231 | Y23: 233 | Z23: 235 | AA23: 237 | AB23: 239 | AC23: 241 | AD23: 243 | AE23: 245
B24: oznaczenie kursu | I24: D | J24: DC | K24: DC | L24: E | M24: DC | N24: DC | O24: D | P24: D | Q24: DC | R24: D | S24: DC | T24: D | U24: DC | V24: DC | W24: DC | X24: D | Y24: C | Z24: DC | AA24: DC | AB24: DC | AC24: D | AD24: C | AE24: DC
B26: Lp. | C26: Przystanek | D26: Kategoria drogi | E26: Odległość między przystankami (km) | F26: Odległość narastająca (km) dot. kursów nr 225, 233, 241 | G26: Odległość narastająca (km) pozostałe kursy | H26: Czas przejazdu | I26: godz. | J26: godz. | K26: godz. | L26: godz. | M26: godz. | N26: godz. | O26: godz. | P26: godz. | Q26: godz. | R26: godz. | S26: godz. | T26: godz. | U26: godz. | V26: godz. | W26: godz. | X26: godz. | Y26: godz. | Z26: godz. | AA26: godz. | AB26: godz. | AC26: godz. | AD26: godz. | AE26: godz.
B27: 1. | C27: Nasielsk ul. Elektronowa (Urząd) 28 | D27: G | E27: 0.0 | F27: 0.0 | H27: 00:00:00 | T27: 08:45:00 | X27: 12:15:00 | AC27: 14:45:00
B28: 2. | C28: Nasielsk ul. Rynek (Skwer) 01 | D28: P | E28: 1.0 | F28: =E28+F27 -> 1.0 | G28: 0.0 | H28: 00:01:00 | I28: 03:40:00 | J28: 04:20:00 | K28: 04:45:00 | L28: 05:20:00 | M28: 05:45:00 | N28: 06:15:00 | O28: 06:40:00 | P28: 07:00:00 | Q28: 07:20 | R28: 08:00:00 | S28: 08:20 | T28: =H28+T27 -> 08:46:00 | U28: 09:20:00 | V28: 10:20:00 | W28: 11:20:00 | X28: =H28+X27 -> 12:16:00 | Y28: 12:20:00 | Z28: 13:10:00 | AA28: 13:35:00 | AB28: 14:15:00 | AC28: =AC27+H28 -> 14:46:00 | AD28: 14:50:00 | AE28: 15:20:00
B29: 3. | C29: Nasielsk ul. Cmentarna 24 | D29: G | E29: 0.8 | F29: 1.8 | G29: =E29+G28 -> 0.8 | H29: 00:01:00 | I29: =H29+I28 -> 03:41:00 | J29: =H29+J28 -> 04:21:00 | K29: =H29+K28 -> 04:46:00 | L29: =H29+L28 -> 05:21:00 | M29: =H29+M28 -> 05:46:00 | N29: =H29+N28 -> 06:16:00 | O29: =H29+O28 -> 06:41:00 | P29: =H29+P28 -> 07:01:00 | Q29: =H29+Q28 -> 07:21:00 | R29: =H29+R28 -> 08:01:00 | S29: =H29+S28 -> 08:21:00 | T29: =H29+T28 -> 08:47:00 | U29: =H29+U28 -> 09:21:00 | V29: =H29+V28 -> 10:21:00 | W29: =H29+W28 -> 11:21:00 | X29: =H29+X28 -> 12:17:00 | Y29: =H29+Y28 -> 12:21:00 | Z29: =H29+Z28 -> 13:11:00 | AA29: =H29+AA28 -> 13:36:00 | AB29: =AB28+H29 -> 14:16:00 | AC29: =AC28+H29 -> 14:47:00 | AD29: =AD28+H28 -> 14:51:00 | AE29: =AE28+H29 -> 15:21:00
B30: 4. | C30: Nasielsk ul. Kościuszki (Krupki) 02 | D30: W | E30: 0.8 | F30: 2.6 | G30: 1.6 | H30: 00:01:00 | I30: 03:42:00 | J30: 04:22:00 | K30: 04:47:00 | L30: 05:22:00 | M30: =M29+H30 -> 05:47:00 | N30: =N29+H30 -> 06:17:00 | O30: 06:42:00 | P30: 07:02:00 | Q30: 07:22:00 | R30: 08:02:00 | S30: 08:22:00 | T30: =H30+T29 -> 08:48:00 | U30: =H30+U29 -> 09:22:00 | V30: =H30+V29 -> 10:22:00 | W30: =H30+W29 -> 11:22:00 | X30: =X29+H30 -> 12:18:00 | Y30: =H30+Y29 -> 12:22:00 | Z30: =Z29+H30 -> 13:12:00 | AA30: =AA29+H30 -> 13:37:00 | AB30: =AB29+H30 -> 14:17:00 | AC30: =AC29+H30 -> 14:48:00 | AD30: =AD29+H29 -> 14:52:00 | AE30: =AE29+H30 -> 15:22:00
B31: 5. | C31: Nasielsk ul. Kolejowa (PKO) 04 | D31: W | E31: 0.4 | F31: 3.0 | G31: 2.0 | H31: 00:01:00 | I31: 03:43:00 | J31: 04:23:00 | K31: 04:48:00 | L31: 05:23:00 | M31: =H31+M30 -> 05:48:00 | N31: =H31+N30 -> 06:18:00 | O31: 06:43:00 | P31: 07:03:00 | Q31: 07:23:00 | R31: 08:03:00 | S31: 08:23:00 | T31: =H31+T30 -> 08:49:00 | U31: =H31+U30 -> 09:23:00 | V31: =H31+V30 -> 10:23:00 | W31: =H31+W30 -> 11:23:00 | X31: =H31+X30 -> 12:19:00 | Y31: =H31+Y30 -> 12:23:00 | Z31: =H31+Z30 -> 13:13:00 | AA31: =AA30+H31 -> 13:38:00 | AB31: =AB30+H31 -> 14:18:00 | AC31: =AC30+H31 -> 14:49:00 | AD31: =AD30+H30 -> 14:53:00 | AE31: =AE30+H31 -> 15:23:00
B32: 6. | C32: Nasielsk ul. Kolejowa (Wiśniewo) 06 | D32: W | E32: 1.2 | F32: 4.2 | G32: 3.2 | H32: 00:01:00 | I32: 03:44:00 | J32: 04:24:00 | K32: 04:49:00 | L32: 05:24:00 | M32: =M31+H32 -> 05:49:00 | N32: =N31+H32 -> 06:19:00 | O32: 06:44:00 | P32: 07:04:00 | Q32: 07:24:00 | R32: 08:04:00 | S32: 08:24:00 | T32: =H32+T31 -> 08:50:00 | U32: =H32+U31 -> 09:24:00 | V32: =H32+V31 -> 10:24:00 | W32: =H32+W31 -> 11:24:00 | X32: =X31+H32 -> 12:20:00 | Y32: =H32+Y31 -> 12:24:00 | Z32: =Z31+H32 -> 13:14:00 | AA32: =AA31+H32 -> 13:39:00 | AB32: =AB31+H32 -> 14:19:00 | AC32: =AC31+H32 -> 14:50:00 | AD32: =AD31+H31 -> 14:54:00 | AE32: =AE31+H32 -> 15:24:00
B33: 7. | C33: Kosewo (Przed wiaduktem) 01 | D33: W | E33: 0.6 | F33: 4.8 | G33: 3.8 | H33: 00:01:00 | I33: 03:45:00 | J33: 04:25:00 | K33: 04:50:00 | L33: 05:25:00 | M33: =H33+M32 -> 05:50:00 | N33: =H33+N32 -> 06:20:00 | O33: 06:45:00 | P33: 07:05:00 | Q33: 07:25:00 | R33: 08:05:00 | S33: 08:25:00 | T33: =H33+T32 -> 08:51:00 | U33: =H33+U32 -> 09:25:00 | V33: =H33+V32 -> 10:25:00 | W33: =H33+W32 -> 11:25:00 | X33: =H33+X32 -> 12:21:00 | Y33: =H33+Y32 -> 12:25:00 | Z33: =H33+Z32 -> 13:15:00 | AA33: =AA32+H33 -> 13:40:00 | AB33: =AB32+H33 -> 14:20:00 | AC33: =AC32+H33 -> 14:51:00 | AD33: =AD32+H32 -> 14:55:00 | AE33: =AE32+H33 -> 15:25:00
B34: 8. | C34: Kosewo (Wiadukt) 03 | D34: W | E34: 0.3 | F34: 5.1 | G34: 4.1 | H34: 00:01:00 | I34: 03:46:00 | J34: 04:26:00 | K34: 04:51:00 | L34: 05:26:00 | M34: =M33+H34 -> 05:51:00 | N34: =N33+H34 -> 06:21:00 | O34: 06:46:00 | P34: 07:06:00 | Q34: 07:26:00 | R34: 08:06:00 | S34: 08:26:00 | T34: =H34+T33 -> 08:52:00 | U34: =H34+U33 -> 09:26:00 | V34: =H34+V33 -> 10:26:00 | W34: =H34+W33 -> 11:26:00 | X34: =X33+H34 -> 12:22:00 | Y34: =H34+Y33 -> 12:26:00 | Z34: =Z33+H34 -> 13:16:00 | AA34: =AA33+H34 -> 13:41:00 | AB34: =AB33+H34 -> 14:21:00 | AC34: =AC33+H34 -> 14:52:00 | AD34: =AD33+H33 -> 14:56:00 | AE34: =AE33+H34 -> 15:26:00
B35: 9. | C35: Stare Pieścirogi ul. Kolejowa 08 | D35: P | E35: 0.4 | F35: 5.5 | G35: 4.5 | H35: 00:01:00 | I35: 03:47:00 | J35: 04:27:00 | K35: 04:52:00 | L35: 05:27:00 | M35: =H35+M34 -> 05:52:00 | N35: =H35+N34 -> 06:22:00 | O35: 06:47:00 | P35: 07:07:00 | Q35: 07:27:00 | R35: 08:07:00 | S35: 08:27:00 | T35: =H35+T34 -> 08:53:00 | U35: =H35+U34 -> 09:27:00 | V35: =H35+V34 -> 10:27:00 | W35: =H35+W34 -> 11:27:00 | X35: =H35+X34 -> 12:23:00 | Y35: =H35+Y34 -> 12:27:00 | Z35: =H35+Z34 -> 13:17:00 | AA35: =AA34+H35 -> 13:42:00 | AB35: =AB34+H35 -> 14:22:00 | AC35: =AC34+H35 -> 14:53:00 | AD35: =AD34+H34 -> 14:57:00 | AE35: =AE34+H35 -> 15:27:00
B36: 10. | C36: Nowe Pieścirogi ul. Kolejowa 02 | D36: P | E36: 0.4 | F36: 5.9 | G36: 4.9 | H36: 00:01:00 | I36: 03:48:00 | J36: 04:28:00 | K36: 04:53:00 | L36: 05:28:00 | M36: =M35+H36 -> 05:53:00 | N36: =N35+H36 -> 06:23:00 | O36: 06:48:00 | P36: 07:08:00 | Q36: 07:28:00 | R36: 08:08:00 | S36: 08:28:00 | T36: =H36+T35 -> 08:54:00 | U36: =H36+U35 -> 09:28:00 | V36: =H36+V35 -> 10:28:00 | W36: =H36+W35 -> 11:28:00 | X36: =X35+H36 -> 12:24:00 | Y36: =H36+Y35 -> 12:28:00 | Z36: =Z35+H36 -> 13:18:00 | AA36: =AA35+H36 -> 13:43:00 | AB36: =AB35+H36 -> 14:23:00 | AC36: =AC35+H36 -> 14:54:00 | AD36: =AD35+H35 -> 14:58:00 | AE36: =AE35+H36 -> 15:28:00
B37: 11. | C37: Mogowo ul. Srebrna (Dworzec PKP) 01 | D37: P | E37: 0.6 | F37: 6.5 | G37: 5.5 | H37: 00:01:00 | I37: 03:49:00 | J37: 04:29:00 | K37: 04:54:00 | L37: 05:29:00 | M37: =H37+M36 -> 05:54:00 | N37: =H37+N36 -> 06:24:00 | O37: 06:49:00 | P37: 07:09:00 | Q37: 07:29:00 | R37: 08:09:00 | S37: 08:29:00 | T37: =H37+T36 -> 08:55:00 | U37: =H37+U36 -> 09:29:00 | V37: =H37+V36 -> 10:29:00 | W37: =H37+W36 -> 11:29:00 | X37: =H37+X36 -> 12:25:00 | Y37: =H37+Y36 -> 12:29:00 | Z37: =H37+Z36 -> 13:19:00 | AA37: =AA36+H37 -> 13:44:00 | AB37: =AB36+H37 -> 14:24:00 | AC37: =AC36+H37 -> 14:55:00 | AD37: =AD36+H36 -> 14:59:00 | AE37: =AE36+H37 -> 15:29:00
B38: Czas przejazdu | I38: =I37-I28 -> 00:09:00 | J38: 00:09:00 | K38: 00:09:00 | L38: 00:09:00 | M38: 00:09:00 | N38: 00:09:00 | O38: 00:09:00 | P38: 00:09:00 | Q38: 00:09:00 | R38: 00:09:00 | S38: 00:09:00 | T38: =T37-T27 -> 00:10:00 | U38: =U37-U28 -> 00:09:00 | V38: =V37-V28 -> 00:09:00 | W38: =W37-W28 -> 00:09:00 | X38: =X37-X27 -> 00:10:00 | Y38: =Y37-Y28 -> 00:09:00 | Z38: =Z37-Z28 -> 00:09:00 | AA38: =AA37-AA28 -> 00:09:00 | AB38: =AB37-AB28 -> 00:09:00 | AC38: =AC37-AC27 -> 00:10:00 | AD38: =AD37-AD28 -> 00:09:00 | AE38: =AE37-AE28 -> 00:09:00
B39: Prędkość komunikacyjna (km/h) | I39: 36.7 | J39: 36.7 | K39: 36.7 | L39: 36.7 | M39: 36.7 | N39: 36.7 | O39: 36.7 | P39: 36.7 | Q39: 36.7 | R39: 36.7 | S39: 36.7 | T39: 39.0 | U39: 36.7 | V39: 36.7 | W39: 36.7 | X39: 39.0 | Y39: 36.7 | Z39: 36.7 | AA39: 36.7 | AB39: 36.7 | AC39: 39.0 | AD39: 36.7 | AE39: 36.7
B40: Liczba przystanków | I40: 10 | J40: 10 | K40: 10 | L40: 10 | M40: 10 | N40: 10 | O40: 10 | P40: 10 | Q40: 10 | R40: 10 | S40: 10 | T40: 11 | U40: 10 | V40: 10 | W40: 10 | X40: 11 | Y40: 10 | Z40: 10 | AA40: 10 | AB40: 10 | AC40: 11 | AD40: 10 | AE40: 10
B46: Linia nr 1 : Nasielsk - Pieścirogi - Mogowo Dworzec Kolejowy
B47: kurs | H47: 247 | I47: 249 | J47: 251 | K47: 253 | L47: 255 | M47: 257 | N47: 259 | O47: 261 | P47: 263 | Q47: 265 | R47: 267 | S47: 269 | T47: 271 | U47: 273
B48: oznaczenie kursu | H48: D | I48: DC | J48: D | K48: DC | L48: D | M48: DC | N48: D | O48: DC | P48: DC | Q48: DC | R48: DC | S48: DC | T48: D | U48: D
B49: Lp. | C49: Przystanek | D49: Kategoria drogi | E49: Odległość między przystankami (km) | F49: Odległość narastająca (km) | G49: Czas przejazdu | H49: godz. | I49: godz. | J49: godz. | K49: godz. | L49: godz. | M49: godz. | N49: godz. | O49: godz. | P49: godz. | Q49: godz. | R49: godz. | S49: godz. | T49: godz. | U49: godz.
B50: 1. | C50: Nasielsk ul. Rynek (Skwer) 01 | D50: P | E50: 0.0 | F50: 0.0 | G50: 00:00:00 | H50: 15:50:00 | I50: 16:10:00 | J50: 16:50:00 | K50: 17:10:00 | L50: 18:00:00 | M50: 18:20:00 | N50: 18:45:00 | O50: 19:20:00 | P50: 19:50:00 | Q50: 20:15:00 | R50: 21:20:00 | S50: 22:15:00 | T50: 22:35:00 | U50: 23:15:00
B51: 2. | C51: Nasielsk ul. Cmentarna 24 | D51: G | E51: 0.8 | F51: =E51+F50 -> 0.8 | G51: 00:01:00 | H51: =G51+H50 -> 15:51:00 | I51: =G51+I50 -> 16:11:00 | J51: =G51+J50 -> 16:51:00 | K51: =G51+K50 -> 17:11:00 | L51: =G51+L50 -> 18:01:00 | M51: =G51+M50 -> 18:21:00 | N51: =G51+N50 -> 18:46:00 | O51: =G51+O50 -> 19:21:00 | P51: =G51+P50 -> 19:51:00 | Q51: =G51+Q50 -> 20:16:00 | R51: =G51+R50 -> 21:21:00 | S51: =G51+S50 -> 22:16:00 | T51: =G51+T50 -> 22:36:00 | U51: =G51+U50 -> 23:16:00
B52: 3. | C52: Nasielsk ul. Kościuszki (Krupki) 02 | D52: W | E52: 0.8 | F52: =F51+E52 -> 1.6 | G52: 00:01:00 | H52: =H51+G52 -> 15:52:00 | I52: =I51+G52 -> 16:12:00 | J52: =J51+G52 -> 16:52:00 | K52: =K51+G52 -> 17:12:00 | L52: =L51+G52 -> 18:02:00 | M52: =M51+G52 -> 18:22:00 | N52: =N51+G52 -> 18:47:00 | O52: =O51+G52 -> 19:22:00 | P52: =P51+G52 -> 19:52:00 | Q52: =Q51+G52 -> 20:17:00 | R52: =R51+G52 -> 21:22:00 | S52: =S51+G52 -> 22:17:00 | T52: =T51+G52 -> 22:37:00 | U52: =G52+U51 -> 23:17:00
B53: 4. | C53: Nasielsk ul. Kolejowa (PKO) 04 | D53: W | E53: 0.4 | F53: 2.0 | G53: 00:01:00 | H53: 15:53:00 | I53: 16:13:00 | J53: 16:53:00 | K53: 17:13:00 | L53: 18:03:00 | M53: 18:23:00 | N53: 18:48:00 | O53: 19:23:00 | P53: 19:53:00 | Q53: 20:18:00 | R53: 21:23:00 | S53: 22:18:00 | T53: =T52+G53 -> 22:38:00 | U53: 23:18:00
B54: 5. | C54: Nasielsk ul. Kolejowa (Wiśniewo) 06 | D54: W | E54: 1.2 | F54: 3.2 | G54: 00:01:00 | H54: 15:54:00 | I54: 16:14:00 | J54: 16:54:00 | K54: 17:14:00 | L54: 18:04:00 | M54: 18:24:00 | N54: 18:49:00 | O54: 19:24:00 | P54: 19:54:00 | Q54: 20:19:00 | R54: 21:24:00 | S54: 22:19:00 | T54: =T53+G54 -> 22:39:00 | U54: 23:19:00
B55: 6. | C55: Kosewo (Przed wiaduktem) 01 | D55: W | E55: 0.6 | F55: 3.8 | G55: 00:01:00 | H55: 15:55:00 | I55: 16:15:00 | J55: 16:55:00 | K55: 17:15:00 | L55: 18:05:00 | M55: 18:25:00 | N55: 18:50:00 | O55: 19:25:00 | P55: 19:55:00 | Q55: 20:20:00 | R55: 21:25:00 | S55: 22:20:00 | T55: =T54+G55 -> 22:40:00 | U55: 23:20:00
B56: 7. | C56: Kosewo (Wiadukt) 03 | D56: W | E56: 0.3 | F56: 4.1 | G56: 00:01:00 | H56: 15:56:00 | I56: 16:16:00 | J56: 16:56:00 | K56: 17:16:00 | L56: 18:06:00 | M56: 18:26:00 | N56: 18:51:00 | O56: 19:26:00 | P56: 19:56:00 | Q56: 20:21:00 | R56: 21:26:00 | S56: 22:21:00 | T56: =T55+G56 -> 22:41:00 | U56: 23:21:00
B57: 8. | C57: Stare Pieścirogi ul. Kolejowa 08 | D57: P | E57: 0.4 | F57: 4.5 | G57: 00:01:00 | H57: 15:57:00 | I57: 16:17:00 | J57: 16:57:00 | K57: 17:17:00 | L57: 18:07:00 | M57: 18:27:00 | N57: 18:52:00 | O57: 19:27:00 | P57: 19:57:00 | Q57: 20:22:00 | R57: 21:27:00 | S57: 22:22:00 | T57: =T56+G57 -> 22:42:00 | U57: 23:22:00
B58: 9. | C58: Nowe Pieścirogi ul. Kolejowa 02 | D58: P | E58: 0.4 | F58: 4.9 | G58: 00:01:00 | H58: 15:58:00 | I58: 16:18:00 | J58: 16:58:00 | K58: 17:18:00 | L58: 18:08:00 | M58: 18:28:00 | N58: 18:53:00 | O58: 19:28:00 | P58: 19:58:00 | Q58: 20:23:00 | R58: 21:28:00 | S58: 22:23:00 | T58: =T57+G58 -> 22:43:00 | U58: 23:23:00
B59: 10. | C59: Mogowo ul. Srebrna (Dworzec PKP) 01 | D59: P | E59: 0.6 | F59: 5.5 | G59: 00:01:00 | H59: 15:59:00 | I59: 16:19:00 | J59: 16:59:00 | K59: 17:19:00 | L59: 18:09:00 | M59: 18:29:00 | N59: 18:54:00 | O59: 19:29:00 | P59: 19:59:00 | Q59: 20:24:00 | R59: 21:29:00 | S59: 22:24:00 | T59: =T58+G59 -> 22:44:00 | U59: 23:24:00
B60: Czas przejazdu | H60: =H59-H50 -> 00:09:00 | I60: 00:09:00 | J60: 00:09:00 | K60: 00:09:00 | L60: 00:09:00 | M60: 00:09:00 | N60: 00:09:00 | O60: 00:09:00 | P60: 00:09:00 | Q60: 00:09:00 | R60: 00:09:00 | S60: 00:09:00 | T60: 00:09:00 | U60: =U59-U50 -> 00:09:00
B61: Prędkość komunikacyjna (km/h) | H61: 36.7 | I61: 36.7 | J61: 36.7 | K61: 36.7 | L61: 36.7 | M61: 36.7 | N61: 36.7 | O61: 36.7 | P61: 36.7 | Q61: 36.7 | R61: 36.7 | S61: 36.7 | T61: 36.7 | U61: 36.7
B62: Liczba przystanków | H62: 10 | I62: 10 | J62: 10 | K62: 10 | L62: 10 | M62: 10 | N62: 10 | O62: 10 | P62: 10 | Q62: 10 | R62: 10 | S62: 10 | T62: 10 | U62: 10
B63: Oznaczenie linii komunikacyjnej: U
B65: Symbol oraz opis oznaczenia:
B66: D - kursuje od poniedziałku do piątku oprócz świąt
B67: C - kursuje w soboty, niedziele i święta
B68: E - kursuje od poniedziałku do soboty oprócz świąt
B70: Oznaczenia kategorii dróg:
B71: W - droga wojewódzka
B72: P - droga powiatowa
B73: G - droga gminna

Sheet 1_do_PKP_(2)
B3: Linia nr 1 : Nasielsk - Pieścirogi - Mogowo Dworzec Kolejowy
B4: kurs | H4: 247 | I4: 249 | J4: 251 | K4: 253 | L4: 255 | M4: 257 | N4: 259 | O4: 261 | P4: 263 | Q4: 265 | R4: 267 | S4: 269 | T4: 271 | U4: 273
B5: oznaczenie kursu | H5: D | I5: DC | J5: D | K5: DC | L5: D | M5: DC | N5: D | O5: DC | P5: DC | Q5: DC | R5: DC | S5: DC | T5: E | U5: D
B6: Lp. | C6: Przystanek | D6: Kategoria drogi | E6: Odległość między przystankami (km) | F6: Odległość narastająca (km) | G6: Czas przejazdu | H6: godz. | I6: godz. | J6: godz. | K6: godz. | L6: godz. | M6: godz. | N6: godz. | O6: godz. | P6: godz. | Q6: godz. | R6: godz. | S6: godz. | T6: godz. | U6: godz.
B7: 1. | C7: Nasielsk ul. Rynek (Skwer) 01 | D7: P | E7: 0.0 | F7: 0.0 | G7: 00:00:00 | H7: 15:50:00 | I7: 16:10:00 | J7: 16:50:00 | K7: 17:10:00 | L7: 18:00:00 | M7: 18:20:00 | N7: 18:45:00 | O7: 19:20:00 | P7: 19:50:00 | Q7: 20:15:00 | R7: 21:20:00 | S7: 22:15:00 | T7: 22:35:00 | U7: 23:15:00
B8: 2. | C8: Nasielsk ul. Cmentarna 24 | D8: G | E8: 0.8 | F8: =E8+F7 -> 0.8 | G8: 00:01:00 | H8: =G8+H7 -> 15:51:00 | I8: =G8+I7 -> 16:11:00 | J8: =G8+J7 -> 16:51:00 | K8: =G8+K7 -> 17:11:00 | L8: =G8+L7 -> 18:01:00 | M8: =G8+M7 -> 18:21:00 | N8: =G8+N7 -> 18:46:00 | O8: =G8+O7 -> 19:21:00 | P8: =G8+P7 -> 19:51:00 | Q8: =G8+Q7 -> 20:16:00 | R8: =G8+R7 -> 21:21:00 | S8: =G8+S7 -> 22:16:00 | T8: =G8+T7 -> 22:36:00 | U8: =G8+U7 -> 23:16:00
B9: 3. | C9: Nasielsk ul. Kościuszki (Krupki) 02 | D9: W | E9: 0.8 | F9: =F8+E9 -> 1.6 | G9: 00:01:00 | H9: =H8+G9 -> 15:52:00 | I9: =I8+G9 -> 16:12:00 | J9: =J8+G9 -> 16:52:00 | K9: =K8+G9 -> 17:12:00 | L9: =L8+G9 -> 18:02:00 | M9: =M8+G9 -> 18:22:00 | N9: =N8+G9 -> 18:47:00 | O9: =O8+G9 -> 19:22:00 | P9: =P8+G9 -> 19:52:00 | Q9: =Q8+G9 -> 20:17:00 | R9: =R8+G9 -> 21:22:00 | S9: =S8+G9 -> 22:17:00 | T9: =T8+G9 -> 22:37:00 | U9: =U8+G9 -> 23:17:00
B10: 4. | C10: Nasielsk ul. Kolejowa (PKO) 04 | D10: W | E10: 0.4 | F10: 2.0 | G10: 00:01:00 | H10: 15:53:00 | I10: 16:13:00 | J10: 16:53:00 | K10: 17:13:00 | L10: 18:03:00 | M10: 18:23:00 | N10: 18:48:00 | O10: 19:23:00 | P10: 19:53:00 | Q10: 20:18:00 | R10: 21:23:00 | S10: 22:18:00 | T10: 22:38:00 | U10: 23:18:00
B11: 5. | C11: Nasielsk ul. Kolejowa (Wiśniewo) 06 | D11: W | E11: 1.2 | F11: 3.2 | G11: 00:01:00 | H11: 15:54:00 | I11: 16:14:00 | J11: 16:54:00 | K11: 17:14:00 | L11: 18:04:00 | M11: 18:24:00 | N11: 18:49:00 | O11: 19:24:00 | P11: 19:54:00 | Q11: 20:19:00 | R11: 21:24:00 | S11: 22:19:00 | T11: 22:39:00 | U11: 23:19:00
B12: 6. | C12: Kosewo (Przed wiaduktem) 01 | D12: W | E12: 0.6 | F12: 3.8 | G12: 00:01:00 | H12: 15:55:00 | I12: 16:15:00 | J12: 16:55:00 | K12: 17:15:00 | L12: 18:05:00 | M12: 18:25:00 | N12: 18:50:00 | O12: 19:25:00 | P12: 19:55:00 | Q12: 20:20:00 | R12: 21:25:00 | S12: 22:20:00 | T12: 22:40:00 | U12: 23:20:00
B13: 7. | C13: Kosewo (Wiadukt) 03 | D13: W | E13: 0.3 | F13: 4.1 | G13: 00:01:00 | H13: 15:56:00 | I13: 16:16:00 | J13: 16:56:00 | K13: 17:16:00 | L13: 18:06:00 | M13: 18:26:00 | N13: 18:51:00 | O13: 19:26:00 | P13: 19:56:00 | Q13: 20:21:00 | R13: 21:26:00 | S13: 22:21:00 | T13: 22:41:00 | U13: 23:21:00
B14: 8. | C14: Stare Pieścirogi ul. Kolejowa 08 | D14: P | E14: 0.4 | F14: 4.5 | G14: 00:01:00 | H14: 15:57:00 | I14: 16:17:00 | J14: 16:57:00 | K14: 17:17:00 | L14: 18:07:00 | M14: 18:27:00 | N14: 18:52:00 | O14: 19:27:00 | P14: 19:57:00 | Q14: 20:22:00 | R14: 21:27:00 | S14: 22:22:00 | T14: 22:42:00 | U14: 23:22:00
B15: 9. | C15: Nowe Pieścirogi ul. Kolejowa 02 | D15: P | E15: 0.4 | F15: 4.9 | G15: 00:01:00 | H15: 15:58:00 | I15: 16:18:00 | J15: 16:58:00 | K15: 17:18:00 | L15: 18:08:00 | M15: 18:28:00 | N15: 18:53:00 | O15: 19:28:00 | P15: 19:58:00 | Q15: 20:23:00 | R15: 21:28:00 | S15: 22:23:00 | T15: 22:43:00 | U15: 23:23:00
B16: 10. | C16: Mogowo ul. Srebrna (Dworzec PKP) 01 | D16: P | E16: 0.6 | F16: 5.5 | G16: 00:01:00 | H16: 15:59:00 | I16: 16:19:00 | J16: 16:59:00 | K16: 17:19:00 | L16: 18:09:00 | M16: 18:29:00 | N16: 18:54:00 | O16: 19:29:00 | P16: 19:59:00 | Q16: 20:24:00 | R16: 21:29:00 | S16: 22:24:00 | T16: 22:44:00 | U16: 23:24:00
B17: Czas przejazdu | H17: =H16-H7 -> 00:09:00 | I17: 00:09:00 | J17: 00:09:00 | K17: 00:09:00 | L17: 00:09:00 | M17: 00:09:00 | N17: 00:09:00 | O17: 00:09:00 | P17: 00:09:00 | Q17: 00:09:00 | R17: 00:09:00 | S17: 00:09:00 | T17: 00:09:00 | U17: 00:09:00
B18: Prędkość komunikacyjna (km/h) | H18: 36.7 | I18: 36.7 | J18: 36.7 | K18: 36.7 | L18: 36.7 | M18: 36.7 | N18: 36.7 | O18: 36.7 | P18: 36.7 | Q18: 36.7 | R18: 36.7 | S18: 36.7 | T18: 36.7 | U18: 36.7
B19: Liczba przystanków | H19: 10 | I19: 10 | J19: 10 | K19: 10 | L19: 10 | M19: 10 | N19: 10 | O19: 10 | P19: 10 | Q19: 10 | R19: 10 | S19: 10 | T19: 10 | U19: 10
B20: Oznaczenie linii komunikacyjnej: U
B22: Symbol oraz opis oznaczenia:
B23: D - kursuje od poniedziałku do piątku oprócz świąt
B24: C - kursuje w soboty, niedziele i święta
B25: E - kursuje od poniedziałku do soboty oprócz świąt
B27: Oznaczenia kategorii dróg:
B28: W - droga wojewódzka
B29: P - droga powiatowa
B30: G - droga gminna
B32: Osoba zarządzająca transportem | G32: Data | I32: Podpis
B38: Zatwierdzam dnia …..................................... | F38: ….........................................................................
F39: /podpis organizatora/

Sheet 1_do_Nsk_(1)
A1: Organizator:
A2: Gmina Nasielsk
A3: ul. Elektronowa 3
A4: 05-190 Nasielsk
A5: Tel.: 23 693 30 00
A7: Operator:
A8: …..................................................................
A9: …..................................................................
A10: …..................................................................
A11: Tel.: …..........................
A12: KRS: ….........................., NIP: …............................
A14: Rozkład jazdy obowiązuje od 01.01.2026 do 31.12.2026
A16: Nazwa linii komunikacyjnej: linia nr 1 : Mogowo Dworzec Kolejowy - Nasielsk - Pieścirogi
A17: Komunikacja zwykła
A19: ROZKŁAD JAZDY
A20: stanowiący załącznik do Zaświadczenia nr 1/2024 na wykonywanie publicznego transportu zbiorowego
B22: Linia nr 1 : Mogowo Dworzec Kolejowy - Pieścirogi - Nasielsk
B23: kurs | I23: 202 | J23: 204 | K23: 206 | L23: 208 | M23: 210 | N23: 212 | O23: 214 | P23: 216 | Q23: 218 | R23: 220 | S23: 222 | T23: 224 | U23: 226 | V23: 228 | W23: 230 | X23: 232 | Y23: 234 | Z23: 236 | AA23: 238 | AB23: 240 | AC23: 242 | AD23: 244 | AE23: 246 | AF23: 248
B24: oznaczenie kursu | I24: D | J24: DC | K24: DC | L24: E | M24: DC | N24: DC | O24: D | P24: D | Q24: DC | R24: D | S24: D | T24: C | U24: D | V24: DC | W24: D | X24: C | Y24: DC | Z24: DC | AA24: DC | AB24: DC | AC24: D | AD24: C | AE24: DC | AF24: DC
B25: Lp. | C25: Przystanek | D25: Kategoria drogi | E25: Odległość między przystankami (km) | F25: Odległość narastająca (km) dot. kursów nr 222, 228, 236 | G25: Odległość narastająca (km) | H25: Czas przejazdu | I25: godz. | J25: godz. | K25: godz. | L25: godz. | M25: godz. | N25: godz. | O25: godz. | P25: godz. | Q25: godz. | R25: godz. | S25: godz. | T25: godz. | U25: godz. | V25: godz. | W25: godz. | X25: godz. | Y25: godz. | Z25: godz. | AA25: godz. | AB25: godz. | AC25: godz. | AD25: godz. | AE25: godz. | AF25: godz.
B26: 1. | C26: Mogowo ul. Srebrna (Dworzec PKP) 01 | D26: P | E26: 0.0 | F26: 0.0 | G26: 0.0 | H26: 00:00:00 | I26: 03:55 | J26: 04:30 | K26: 04:55 | L26: 05:35 | M26: 05:55:00 | N26: 06:25:00 | O26: 06:50:00 | P26: 07:10:00 | Q26: 07:40 | R26: 08:10 | S26: 08:30:00 | T26: 08:30:00 | U26: 09:00:00 | V26: 09:30:00 | W26: 10:30:00 | X26: 10:30:00 | Y26: 11:30:00 | Z26: 12:30:00 | AA26: 13:25 | AB26: 13:45 | AC26: 14:25:00 | AD26: 14:25:00 | AE26: 15:00:00 | AF26: 15:30
B27: 2. | C27: Nowe Pieścirogi ul. Kolejowa 01 | D27: P | E27: 0.4 | F27: =E27+F26 -> 0.4 | G27: =G26+E27 -> 0.4 | H27: 00:01:00 | I27: =I26+H27 -> 03:56:00 | J27: =J26+H27 -> 04:31:00 | K27: =H27+K26 -> 04:56:00 | L27: =L26+H27 -> 05:36:00 | M27: =M26+H27 -> 05:56:00 | N27: =N26+H27 -> 06:26:00 | O27: =O26+H27 -> 06:51:00 | P27: =H27+P26 -> 07:11:00 | Q27: =Q26+H27 -> 07:41:00 | R27: =R26+H27 -> 08:11:00 | S27: =S26+H27 -> 08:31:00 | T27: =T26+H27 -> 08:31:00 | U27: =U26+H27 -> 09:01:00 | V27: =V26+H27 -> 09:31:00 | W27: =W26+H27 -> 10:31:00 | X27: =X26+H27 -> 10:31:00 | Y27: =Y26+H27 -> 11:31:00 | Z27: =Z26+H27 -> 12:31:00 | AA27: =AA26+H27 -> 13:26:00 | AB27: =AB26+H27 -> 13:46:00 | AC27: =AC26+H27 -> 14:26:00 | AD27: =AD26+H27 -> 14:26:00 | AE27: =AE26+H27 -> 15:01:00 | AF27: =AF26+H27 -> 15:31:00
B28: 3. | C28: Stare Pieścirogi ul. Kolejowa (Szkoła) 03 | D28: P | E28: 0.7 | F28: 1.1 | G28: 1.1 | H28: 00:01:00 | I28: =I27+H28 -> 03:57:00 | J28: 04:32:00 | K28: =K27+H28 -> 04:57:00 | L28: 05:37:00 | M28: 05:57:00 | N28: 06:27:00 | O28: 06:52:00 | P28: 07:12:00 | Q28: 07:42:00 | R28: 08:12:00 | S28: =S27+H28 -> 08:32:00 | T28: =T27+H28 -> 08:32:00 | U28: 09:02:00 | V28: 09:32:00 | W28: 10:32:00 | X28: =X27+H28 -> 10:32:00 | Y28: 11:32:00 | Z28: 12:32:00 | AA28: =AA27+H28 -> 13:27:00 | AB28: =AB27+H28 -> 13:47:00 | AC28: =AC27+H28 -> 14:27:00 | AD28: =AD27+H28 -> 14:27:00 | AE28: 15:02:00 | AF28: 15:32:00
B29: 4. | C29: Stare Pieścirogi ul. Makowa 01 | D29: W | E29: 0.1 | F29: 1.2 | G29: 1.2 | H29: 00:01:00 | I29: 03:58:00 | J29: 04:33:00 | K29: =H29+K28 -> 04:58:00 | L29: 05:38:00 | M29: 05:58:00 | N29: 06:28:00 | O29: 06:53:00 | P29: 07:13:00 | Q29: 07:43:00 | R29: 08:13:00 | S29: 08:33:00 | T29: 08:33:00 | U29: 09:03:00 | V29: 09:33:00 | W29: 10:33:00 | X29: 10:33:00 | Y29: 11:33:00 | Z29: 12:33:00 | AA29: 13:28:00 | AB29: 13:48:00 | AC29: 14:28:00 | AD29: 14:28:00 | AE29: 15:03:00 | AF29: 15:33:00
B30: 5. | C30: Stare Pieścirogi (Wiadukt) 04 | D30: W | E30: 0.3 | F30: 1.5 | G30: 1.5 | H30: 00:01:00 | I30: 03:59:00 | J30: 04:34:00 | K30: =K29+H30 -> 04:59:00 | L30: 05:39:00 | M30: 05:59:00 | N30: 06:29:00 | O30: 06:54:00 | P30: 07:14:00 | Q30: 07:44:00 | R30: 08:14:00 | S30: 08:34:00 | T30: 08:34:00 | U30: 09:04:00 | V30: 09:34:00 | W30: 10:34:00 | X30: 10:34:00 | Y30: 11:34:00 | Z30: 12:34:00 | AA30: 13:29:00 | AB30: 13:49:00 | AC30: 14:29:00 | AD30: 14:29:00 | AE30: 15:04:00 | AF30: 15:34:00
B31: 6. | C31: Stare Pieścirogi ul. Kolejowa (Za wiaduktem) 02 | D31: W | E31: 1.0 | F31: 2.5 | G31: 2.5 | H31: 00:01:00 | I31: 04:00:00 | J31: 04:35:00 | K31: =H31+K30 -> 05:00:00 | L31: 05:40:00 | M31: 06:00:00 | N31: 06:30:00 | O31: 06:55:00 | P31: 07:15:00 | Q31: 07:45:00 | R31: 08:15:00 | S31: 08:35:00 | T31: 08:35:00 | U31: 09:05:00 | V31: 09:35:00 | W31: 10:35:00 | X31: 10:35:00 | Y31: 11:35:00 | Z31: 12:35:00 | AA31: 13:30:00 | AB31: 13:50:00 | AC31: 14:30:00 | AD31: 14:30:00 | AE31: 15:05:00 | AF31: 15:35:00
B32: 7. | C32: Nasielsk ul. Kolejowa 05 | D32: W | E32: 0.5 | F32: 3.0 | G32: 3.0 | H32: 00:01:00 | I32: 04:01:00 | J32: 04:36:00 | K32: =K31+H32 -> 05:01:00 | L32: 05:41:00 | M32: 06:01:00 | N32: 06:31:00 | O32: 06:56:00 | P32: 07:16:00 | Q32: 07:46:00 | R32: 08:16:00 | S32: 08:36:00 | T32: 08:36:00 | U32: 09:06:00 | V32: 09:36:00 | W32: 10:36:00 | X32: 10:36:00 | Y32: 11:36:00 | Z32: 12:36:00 | AA32: 13:31:00 | AB32: 13:51:00 | AC32: 14:31:00 | AD32: 14:31:00 | AE32: 15:06:00 | AF32: 15:36:00
B33: 8. | C33: Nasielsk ul. Kolejowa (PKO) 03 | D33: W | E33: 0.7 | F33: 3.7 | G33: 3.7 | H33: 00:01:00 | I33: 04:02:00 | J33: 04:37:00 | K33: =H33+K32 -> 05:02:00 | L33: 05:42:00 | M33: 06:02:00 | N33: 06:32:00 | O33: 06:57:00 | P33: 07:17:00 | Q33: 07:47:00 | R33: 08:17:00 | S33: 08:37:00 | T33: 08:37:00 | U33: 09:07:00 | V33: 09:37:00 | W33: 10:37:00 | X33: 10:37:00 | Y33: 11:37:00 | Z33: 12:37:00 | AA33: 13:32:00 | AB33: 13:52:00 | AC33: 14:32:00 | AD33: 14:32:00 | AE33: 15:07:00 | AF33: 15:37:00
B34: 9. | C34: Nasielsk ul. Cmentarna 25 | D34: G | E34: 1.0 | F34: 4.7 | G34: 4.7 | H34: 00:01:00 | I34: 04:03:00 | J34: 04:38:00 | K34: =K33+H34 -> 05:03:00 | L34: 05:43:00 | M34: 06:03:00 | N34: 06:33:00 | O34: 06:58:00 | P34: 07:18:00 | Q34: 07:48:00 | R34: 08:18:00 | S34: 08:38:00 | T34: 08:38:00 | U34: 09:08:00 | V34: 09:38:00 | W34: 10:38:00 | X34: 10:38:00 | Y34: 11:38:00 | Z34: 12:38:00 | AA34: 13:33:00 | AB34: 13:53:00 | AC34: 14:33:00 | AD34: 14:33:00 | AE34: 15:08:00 | AF34: 15:38:00
B35: 10. | C35: Nasielsk ul. Rynek (Skwer) 01 | D35: P | E35: 0.8 | F35: 5.5 | G35: 5.5 | H35: 00:01:00 | I35: 04:04:00 | J35: 04:39:00 | K35: =H35+K34 -> 05:04:00 | L35: 05:44:00 | M35: 06:04:00 | N35: 06:34:00 | O35: 06:59:00 | P35: 07:19:00 | Q35: 07:49:00 | R35: 08:19:00 | S35: 08:39:00 | T35: 08:39:00 | U35: 09:09:00 | V35: 09:39:00 | W35: 10:39:00 | X35: 10:39:00 | Y35: 11:39:00 | Z35: 12:39:00 | AA35: 13:34:00 | AB35: 13:54:00 | AC35: 14:34:00 | AD35: 14:34:00 | AE35: 15:09:00 | AF35: 15:39:00
B36: 11. | C36: Nasielsk ul. Elektronowa (Urząd) 28 | D36: G | E36: 1.0 | F36: 6.5 | H36: 00:01:00 | S36: 08:40:00 | W36: =H36+W35 -> 10:40:00 | AC36: 14:35:00
B37: Czas przejazdu | I37: =I35-I26 -> 00:09:00 | J37: 00:09:00 | K37: 00:09:00 | L37: 00:09:00 | M37: 00:09:00 | N37: 00:09:00 | O37: 00:09:00 | P37: 00:09:00 | Q37: 00:09:00 | R37: 00:09:00 | S37: =S36-S26 -> 00:10:00 | T37: =T35-T26 -> 00:09:00 | U37: =U35-U26 -> 00:09:00 | V37: =V35-V26 -> 00:09:00 | W37: =W36-W26 -> 00:10:00 | X37: =X35-X26 -> 00:09:00 | Y37: =Y35-Y26 -> 00:09:00 | Z37: =Z35-Z26 -> 00:09:00 | AA37: =AA35-AA26 -> 00:09:00 | AB37: =AB35-AB26 -> 00:09:00 | AC37: =AC36-AC26 -> 00:10:00 | AD37: =AD35-AD26 -> 00:09:00 | AE37: =AE35-AE26 -> 00:09:00 | AF37: =AF35-AF26 -> 00:09:00
B38: Prędkość komunikacyjna (km/h) | I38: 36.7 | J38: 36.7 | K38: 36.7 | L38: 36.7 | M38: 36.7 | N38: 36.7 | O38: 36.7 | P38: 36.7 | Q38: 36.7 | R38: 36.7 | S38: 39.0 | T38: 36.7 | U38: 36.7 | V38: 36.7 | W38: 39.0 | X38: 36.7 | Y38: 36.7 | Z38: 36.7 | AA38: 36.7 | AB38: 36.7 | AC38: 39.0 | AD38: 36.7 | AE38: 36.7 | AF38: 36.7
B39: Liczba przystanków | I39: 10 | J39: 10 | K39: 10 | L39: 10 | M39: 10 | N39: 10 | O39: 10 | P39: 10 | Q39: 10 | R39: 10 | S39: 11 | T39: 10 | U39: 10 | V39: 10 | W39: 11 | X39: 10 | Y39: 10 | Z39: 10 | AA39: 10 | AB39: 10 | AC39: 11 | AD39: 10 | AE39: 10 | AF39: 10
B49: Linia nr 1 : Mogowo Dworzec Kolejowy - Pieścirogi - Nasielsk
B50: kurs | H50: 248 | I50: 250 | J50: 252 | K50: 254 | L50: 256 | M50: 258 | N50: 260 | O50: 262 | P50: 264 | Q50: 266 | R50: 268 | S50: 270 | T50: 272 | U50: 274
B51: oznaczenie kursu | H51: DC | I51: DC | J51: D | K51: DC | L51: D | M51: DC | N51: D | O51: DC | P51: DC | Q51: DC | R51: DC | S51: DC | T51: E | U51: D
B52: Lp. | C52: Przystanek | D52: Kategoria drogi | E52: Odległość między przystankami (km) | F52: Odległość narastająca (km) | G52: Czas przejazdu | H52: godz. | I52: godz. | J52: godz. | K52: godz. | L52: godz. | M52: godz. | N52: godz. | O52: godz. | P52: godz. | Q52: godz. | R52: godz. | S52: godz. | T52: godz. | U52: godz.
B53: 1. | C53: Mogowo ul. Srebrna (Dworzec PKP) 01 | D53: P | E53: 0.0 | F53: 0.0 | G53: 00:00:00 | H53: 16:00:00 | I53: 16:25:00 | J53: 17:00:00 | K53: 17:25:00 | L53: 18:10:00 | M53: 18:30:00 | N53: 19:00:00 | O53: 19:35:00 | P53: 20:00:00 | Q53: 20:25:00 | R53: 21:30:00 | S53: 22:25:00 | T53: 22:45:00 | U53: 23:25
B54: 2. | C54: Nowe Pieścirogi ul. Kolejowa 01 | D54: P | E54: 0.4 | F54: =F53+E54 -> 0.4 | G54: 00:01:00 | H54: =H53+G54 -> 16:01:00 | I54: =I53+G54 -> 16:26:00 | J54: =J53+G54 -> 17:01:00 | K54: =K53+G54 -> 17:26:00 | L54: =L53+G54 -> 18:11:00 | M54: =M53+G54 -> 18:31:00 | N54: =N53+G54 -> 19:01:00 | O54: =O53+G54 -> 19:36:00 | P54: =P53+G54 -> 20:01:00 | Q54: =Q53+G54 -> 20:26:00 | R54: =R53+G54 -> 21:31:00 | S54: =S53+G54 -> 22:26:00 | T54: =T53+G54 -> 22:46:00 | U54: =G54+U53 -> 23:26:00
B55: 3. | C55: Stare Pieścirogi ul. Kolejowa (Szkoła) 03 | D55: P | E55: 0.7 | F55: 1.1 | G55: 00:01:00 | H55: 16:02:00 | I55: 16:27:00 | J55: 17:02:00 | K55: 17:27:00 | L55: 18:12:00 | M55: 18:32:00 | N55: 19:02:00 | O55: 19:37:00 | P55: 20:02:00 | Q55: 20:27:00 | R55: 21:32:00 | S55: 22:27:00 | T55: 22:47:00 | U55: 23:27:00
B56: 4. | C56: Stare Pieścirogi ul. Makowa 01 | D56: W | E56: 0.1 | F56: 1.2 | G56: 00:01:00 | H56: 16:03:00 | I56: 16:28:00 | J56: 17:03:00 | K56: 17:28:00 | L56: 18:13:00 | M56: 18:33:00 | N56: 19:03:00 | O56: 19:38:00 | P56: 20:03:00 | Q56: 20:28:00 | R56: 21:33:00 | S56: 22:28:00 | T56: 22:48:00 | U56: 23:28:00
B57: 5. | C57: Stare Pieścirogi (Wiadukt) 04 | D57: W | E57: 0.3 | F57: 1.5 | G57: 00:01:00 | H57: 16:04:00 | I57: 16:29:00 | J57: 17:04:00 | K57: 17:29:00 | L57: 18:14:00 | M57: 18:34:00 | N57: 19:04:00 | O57: 19:39:00 | P57: 20:04:00 | Q57: 20:29:00 | R57: 21:34:00 | S57: 22:29:00 | T57: 22:49:00 | U57: 23:29:00
B58: 6. | C58: Stare Pieścirogi ul. Kolejowa (Za wiaduktem) 02 | D58: W | E58: 1.0 | F58: 2.5 | G58: 00:01:00 | H58: 16:05:00 | I58: 16:30:00 | J58: 17:05:00 | K58: 17:30:00 | L58: 18:15:00 | M58: 18:35:00 | N58: 19:05:00 | O58: 19:40:00 | P58: 20:05:00 | Q58: 20:30:00 | R58: 21:35:00 | S58: 22:30:00 | T58: 22:50:00 | U58: 23:30:00
B59: 7. | C59: Nasielsk ul. Kolejowa 05 | D59: W | E59: 0.5 | F59: 3.0 | G59: 00:01:00 | H59: 16:06:00 | I59: 16:31:00 | J59: 17:06:00 | K59: 17:31:00 | L59: 18:16:00 | M59: 18:36:00 | N59: 19:06:00 | O59: 19:41:00 | P59: 20:06:00 | Q59: 20:31:00 | R59: 21:36:00 | S59: 22:31:00 | T59: 22:51:00 | U59: 23:31:00
B60: 8. | C60: Nasielsk ul. Kolejowa (PKO) 03 | D60: W | E60: 0.7 | F60: 3.7 | G60: 00:01:00 | H60: 16:07:00 | I60: 16:32:00 | J60: 17:07:00 | K60: 17:32:00 | L60: 18:17:00 | M60: 18:37:00 | N60: 19:07:00 | O60: 19:42:00 | P60: 20:07:00 | Q60: 20:32:00 | R60: 21:37:00 | S60: 22:32:00 | T60: 22:52:00 | U60: 23:32:00
B61: 9. | C61: Nasielsk ul. Cmentarna 25 | D61: G | E61: 1.0 | F61: 4.7 | G61: 00:01:00 | H61: 16:08:00 | I61: 16:33:00 | J61: 17:08:00 | K61: 17:33:00 | L61: 18:18:00 | M61: 18:38:00 | N61: 19:08:00 | O61: 19:43:00 | P61: 20:08:00 | Q61: 20:33:00 | R61: 21:38:00 | S61: 22:33:00 | T61: 22:53:00 | U61: 23:33:00
B62: 10. | C62: Nasielsk ul. Rynek (Skwer) 01 | D62: P | E62: 0.8 | F62: 5.5 | G62: 00:01:00 | H62: 16:09:00 | I62: 16:34:00 | J62: 17:09:00 | K62: 17:34:00 | L62: 18:19:00 | M62: 18:39:00 | N62: 19:09:00 | O62: 19:44:00 | P62: 20:09:00 | Q62: 20:34:00 | R62: 21:39:00 | S62: 22:34:00 | T62: 22:54:00 | U62: 23:34:00
B63: Czas przejazdu | H63: =H62-H53 -> 00:09:00 | I63: 00:09:00 | J63: 00:09:00 | K63: 00:09:00 | L63: 00:09:00 | M63: 00:09:00 | N63: 00:09:00 | O63: 00:09:00 | P63: 00:09:00 | Q63: 00:09:00 | R63: 00:09:00 | S63: 00:09:00 | T63: 00:09:00 | U63: 00:09:00
B64: Prędkość komunikacyjna (km/h) | H64: 36.7 | I64: 36.7 | J64: 36.7 | K64: 36.7 | L64: 36.7 | M64: 36.7 | N64: 36.7 | O64: 36.7 | P64: 36.7 | Q64: 36.7 | R64: 36.7 | S64: 36.7 | T64: 36.7 | U64: 36.7
B65: Liczba przystanków | H65: 10 | I65: 10 | J65: 10 | K65: 10 | L65: 10 | M65: 10 | N65: 10 | O65: 10 | P65: 10 | Q65: 10 | R65: 10 | S65: 10 | T65: 10 | U65: 10
B66: Oznaczenie linii komunikacyjnej: U
B68: Symbol oraz opis oznaczenia:
B69: D - kursuje od poniedziałku do piątku oprócz świąt
B70: C - kursuje w soboty, niedziele i święta
B71: E - kursuje od poniedziałku do soboty oprócz świąt
B73: Oznaczenia kategorii dróg:
B74: W - droga wojewódzka
B75: P - droga powiatowa
B76: G - droga gminna

Sheet 1_do_Nsk_(2)
B2: Linia nr 1 : Mogowo Dworzec Kolejowy - Pieścirogi - Nasielsk
B3: kurs | H3: 248 | I3: 250 | J3: 252 | K3: 254 | L3: 256 | M3: 258 | N3: 260 | O3: 262 | P3: 264 | Q3: 266 | R3: 268 | S3: 270 | T3: 272 | U3: 274
B4: oznaczenie kursu | H4: DC | I4: DC | J4: D | K4: DC | L4: D | M4: DC | N4: D | O4: DC | P4: DC | Q4: DC | R4: DC | S4: DC | T4: E | U4: D
B5: Lp. | C5: Przystanek | D5: Kategoria drogi | E5: Odległość między przystankami (km) | F5: Odległość narastająca (km) | G5: Czas przejazdu | H5: godz. | I5: godz. | J5: godz. | K5: godz. | L5: godz. | M5: godz. | N5: godz. | O5: godz. | P5: godz. | Q5: godz. | R5: godz. | S5: godz. | T5: godz. | U5: godz.
B6: 1. | C6: Mogowo ul. Srebrna (Dworzec PKP) 01 | D6: P | E6: 0.0 | F6: 0.0 | G6: 00:00:00 | H6: 16:00:00 | I6: 16:25:00 | J6: 17:00:00 | K6: 17:25:00 | L6: 18:10:00 | M6: 18:30:00 | N6: 19:00:00 | O6: 19:35:00 | P6: 20:00:00 | Q6: 20:25:00 | R6: 21:30:00 | S6: 22:25:00 | T6: 22:45:00 | U6: 23:25
B7: 2. | C7: Nowe Pieścirogi ul. Kolejowa 01 | D7: P | E7: 0.4 | F7: =F6+E7 -> 0.4 | G7: 00:01:00 | H7: =H6+G7 -> 16:01:00 | I7: =I6+G7 -> 16:26:00 | J7: =J6+G7 -> 17:01:00 | K7: =K6+G7 -> 17:26:00 | L7: =L6+G7 -> 18:11:00 | M7: =M6+G7 -> 18:31:00 | N7: =N6+G7 -> 19:01:00 | O7: =O6+G7 -> 19:36:00 | P7: =P6+G7 -> 20:01:00 | Q7: =Q6+G7 -> 20:26:00 | R7: =R6+G7 -> 21:31:00 | S7: =S6+G7 -> 22:26:00 | T7: =T6+G7 -> 22:46:00 | U7: =G7+U6 -> 23:26:00
B8: 3. | C8: Stare Pieścirogi ul. Kolejowa (Szkoła) 03 | D8: P | E8: 0.7 | F8: 1.1 | G8: 00:01:00 | H8: 16:02:00 | I8: 16:27:00 | J8: 17:02:00 | K8: 17:27:00 | L8: 18:12:00 | M8: 18:32:00 | N8: 19:02:00 | O8: 19:37:00 | P8: 20:02:00 | Q8: 20:27:00 | R8: 21:32:00 | S8: 22:27:00 | T8: 22:47:00 | U8: 23:27:00
B9: 4. | C9: Stare Pieścirogi ul. Makowa 01 | D9: W | E9: 0.1 | F9: 1.2 | G9: 00:01:00 | H9: 16:03:00 | I9: 16:28:00 | J9: 17:03:00 | K9: 17:28:00 | L9: 18:13:00 | M9: 18:33:00 | N9: 19:03:00 | O9: 19:38:00 | P9: 20:03:00 | Q9: 20:28:00 | R9: 21:33:00 | S9: 22:28:00 | T9: 22:48:00 | U9: 23:28:00
B10: 5. | C10: Stare Pieścirogi (Wiadukt) 04 | D10: W | E10: 0.3 | F10: 1.5 | G10: 00:01:00 | H10: 16:04:00 | I10: 16:29:00 | J10: 17:04:00 | K10: 17:29:00 | L10: 18:14:00 | M10: 18:34:00 | N10: 19:04:00 | O10: 19:39:00 | P10: 20:04:00 | Q10: 20:29:00 | R10: 21:34:00 | S10: 22:29:00 | T10: 22:49:00 | U10: 23:29:00
B11: 6. | C11: Stare Pieścirogi ul. Kolejowa (Za wiaduktem) 02 | D11: W | E11: 1.0 | F11: 2.5 | G11: 00:01:00 | H11: 16:05:00 | I11: 16:30:00 | J11: 17:05:00 | K11: 17:30:00 | L11: 18:15:00 | M11: 18:35:00 | N11: 19:05:00 | O11: 19:40:00 | P11: 20:05:00 | Q11: 20:30:00 | R11: 21:35:00 | S11: 22:30:00 | T11: 22:50:00 | U11: 23:30:00
B12: 7. | C12: Nasielsk ul. Kolejowa 05 | D12: W | E12: 0.5 | F12: 3.0 | G12: 00:01:00 | H12: 16:06:00 | I12: 16:31:00 | J12: 17:06:00 | K12: 17:31:00 | L12: 18:16:00 | M12: 18:36:00 | N12: 19:06:00 | O12: 19:41:00 | P12: 20:06:00 | Q12: 20:31:00 | R12: 21:36:00 | S12: 22:31:00 | T12: 22:51:00 | U12: 23:31:00
B13: 8. | C13: Nasielsk ul. Kolejowa (PKO) 03 | D13: W | E13: 0.7 | F13: 3.7 | G13: 00:01:00 | H13: 16:07:00 | I13: 16:32:00 | J13: 17:07:00 | K13: 17:32:00 | L13: 18:17:00 | M13: 18:37:00 | N13: 19:07:00 | O13: 19:42:00 | P13: 20:07:00 | Q13: 20:32:00 | R13: 21:37:00 | S13: 22:32:00 | T13: 22:52:00 | U13: 23:32:00
B14: 9. | C14: Nasielsk ul. Cmentarna 25 | D14: G | E14: 1.0 | F14: 4.7 | G14: 00:01:00 | H14: 16:08:00 | I14: 16:33:00 | J14: 17:08:00 | K14: 17:33:00 | L14: 18:18:00 | M14: 18:38:00 | N14: 19:08:00 | O14: 19:43:00 | P14: 20:08:00 | Q14: 20:33:00 | R14: 21:38:00 | S14: 22:33:00 | T14: 22:53:00 | U14: 23:33:00
B15: 10. | C15: Nasielsk ul. Rynek (Skwer) 01 | D15: P | E15: 0.8 | F15: 5.5 | G15: 00:01:00 | H15: 16:09:00 | I15: 16:34:00 | J15: 17:09:00 | K15: 17:34:00 | L15: 18:19:00 | M15: 18:39:00 | N15: 19:09:00 | O15: 19:44:00 | P15: 20:09:00 | Q15: 20:34:00 | R15: 21:39:00 | S15: 22:34:00 | T15: 22:54:00 | U15: 23:34:00
B16: Czas przejazdu | H16: =H15-H6 -> 00:09:00 | I16: 00:09:00 | J16: 00:09:00 | K16: 00:09:00 | L16: 00:09:00 | M16: 00:09:00 | N16: 00:09:00 | O16: 00:09:00 | P16: 00:09:00 | Q16: 00:09:00 | R16: 00:09:00 | S16: 00:09:00 | T16: 00:09:00 | U16: 00:09:00
B17: Prędkość komunikacyjna (km/h) | H17: 36.7 | I17: 36.7 | J17: 36.7 | K17: 36.7 | L17: 36.7 | M17: 36.7 | N17: 36.7 | O17: 36.7 | P17: 36.7 | Q17: 36.7 | R17: 36.7 | S17: 36.7 | T17: 36.7 | U17: 36.7
B18: Liczba przystanków | H18: 10 | I18: 10 | J18: 10 | K18: 10 | L18: 10 | M18: 10 | N18: 10 | O18: 10 | P18: 10 | Q18: 10 | R18: 10 | S18: 10 | T18: 10 | U18: 10
B19: Oznaczenie linii komunikacyjnej: U
B21: Symbol oraz opis oznaczenia:
B22: D - kursuje od poniedziałku do piątku oprócz świąt
B23: C - kursuje w soboty, niedziele i święta
B24: E - kursuje od poniedziałku do soboty oprócz świąt
B26: Oznaczenia kategorii dróg:
B27: W - droga wojewódzka
B28: P - droga powiatowa
B29: G - droga gminna
B31: Osoba zarządzająca transportem | G31: Data | I31: Podpis
B36: Zatwierdzam dnia …..................................... | G36: ….........................................................................
G37: /podpis organizatora/

Sheet 2
A1: Organizator:
A2: Gmina Nasielsk
A3: ul. Elektronowa 3
A4: 05-190 Nasielsk
A5: Tel.: 23 693 30 00
A7: Operator:
A8: …................................................
A9: …...............................................
A10: …...............................................
A11: Tel.: …...........................
A12: KRS: …..........................., NIP: …...........................
A14: Rozkład jazdy obowiązuje od 02.01.2026 do 31.12.2026
A16: Nazwa linii komunikacyjnej: linia nr 2 : Nasielsk – Dobra Wola – Nasielsk
A17: Komunikacja zwykła
C19: ROZKŁAD JAZDY
C20: stanowiący załącznik do Zaświadczenia nr 2/2024 na wykonywanie publicznego transportu zbiorowego
C22: Linia nr 2 : Nasielsk – Dobra Wola – Nasielsk
C23: 121 | D23: kurs | O23: 122 | P23: 123 | Q23: 124 | R23: 125
C24: D | D24: oznaczenie kursu | O24: D | P24: D | Q24: D | R24: D
C25: godz. | D25: Czas przejazdu | E25: Odległość narastająca (km) | F25: Odległość między przystankami (km) | G25: Kategoria drogi | H25: Przystanek | I25: Lp. | J25: Przystanek | K25: Kategoria drogi | L25: Odległość między przystankami (km) | M25: Odległość narastająca (km) | N25: Czas przejazdu | O25: godz. | P25: godz. | Q25: godz. | R25: godz.
C26: 06:25:00 | D26: 00:00:00 | E26: 0.0 | F26: 0.0 | G26: P | H26: Nasielsk ul. Rynek (Skwer) 01 | I26: 1. | J26: Nasielsk ul. Rynek (Skwer) 01 | K26: P | L26: 0.0 | M26: 0.0 | N26: 00:00:00 | O26: 11:30:00 | P26: 14:55:00 | Q26: 16:15:00 | R26: 17:10:00
C27: =C26+D27 -> 06:26:00 | D27: 00:01:00 | E27: =F27+E26 -> 0.7 | F27: 0.7 | G27: W | H27: Nasielsk ul. Kościuszki (Krupki) 02 | I27: 2. | J27: Nasielsk ul. Kościuszki (Krupki) 02 | K27: W | L27: 0.7 | M27: =L27+M26 -> 0.7 | N27: 00:01:00 | O27: =N27+O26 -> 11:31:00 | P27: =P26+N27 -> 14:56:00 | Q27: =Q26+N27 -> 16:16:00 | R27: =R26+N27 -> 17:11:00
C28: 06:27:00 | D28: 00:01:00 | E28: 1.1 | F28: 0.4 | G28: W | H28: Nasielsku ul. Kolejowa (PKO) 04 | I28: 3. | J28: Nasielsk ul. Kolejowa (PKO) 04 | K28: W | L28: 0.4 | M28: =M27+L28 -> 1.1 | N28: 00:01:00 | O28: =O27+N28 -> 11:32:00 | P28: 14:57:00 | Q28: 16:17:00 | R28: 17:12:00
C29: 06:28:00 | D29: 00:01:00 | E29: 2.3 | F29: 1.2 | G29: W | H29: Nasielsk ul. Kolejowa (Wiśniewo) 06 | I29: 4. | J29: Nasielsk ul. Kolejowa (Wiśniewo) 06 | K29: W | L29: 1.2 | M29: =L29+M28 -> 2.3 | N29: 00:01:00 | O29: =N29+O28 -> 11:33:00 | P29: 14:58:00 | Q29: 16:18:00 | R29: 17:13:00
C30: 06:29:00 | D30: 00:01:00 | E30: 2.9 | F30: 0.6 | G30: W | H30: Kosewo (Przed wiaduktem) 01 | I30: 5. | J30: Kosewo (Przed wiaduktem) 01 | K30: W | L30: 0.6 | M30: =M29+L30 -> 2.9 | N30: 00:01:00 | O30: =O29+N30 -> 11:34:00 | P30: 14:59:00 | Q30: 16:19:00 | R30: 17:14:00
C31: 06:30:00 | D31: 00:01:00 | E31: 3.2 | F31: 0.3 | G31: W | H31: Kosewo (Wiadukt) 03 | I31: 6. | J31: Kosewo (Wiadukt) 03 | K31: W | L31: 0.3 | M31: =L31+M30 -> 3.2 | N31: 00:01:00 | O31: =N31+O30 -> 11:35:00 | P31: 15:00:00 | Q31: 16:20:00 | R31: 17:15:00
C32: 06:31:00 | D32: 00:01:00 | E32: 3.6 | F32: 0.4 | G32: P | H32: Stare Pieścirogi ul. Kolejowa 08 | I32: 7. | J32: Stare Pieścirogi ul. Kolejowa 08 | K32: P | L32: 0.4 | M32: =M31+L32 -> 3.6 | N32: 00:01:00 | O32: =O31+N32 -> 11:36:00 | P32: 15:01:00 | Q32: 16:21:00 | R32: 17:16:00
C33: 06:32:00 | D33: 00:01:00 | E33: 4.0 | F33: 0.4 | G33: P | H33: Nowe Pieścirogi ul. Kolejowa 02 | I33: 8. | J33: Nowe Pieścirogi ul. Kolejowa 02 | K33: P | L33: 0.4 | M33: =L33+M32 -> 4.0 | N33: 00:01:00 | O33: =N33+O32 -> 11:37:00 | P33: 15:02:00 | Q33: 16:22:00 | R33: 17:17:00
C34: 06:33:00 | D34: 00:01:00 | E34: 4.6 | F34: 0.6 | G34: P | H34: Mogowo ul. Srebrna (Dworzec PKP) 01 | I34: 9. | J34: Mogowo ul. Srebrna (Dworzec PKP) 01 | K34: P | L34: 0.6 | M34: =M33+L34 -> 4.6 | N34: 00:01:00 | O34: =O33+N34 -> 11:38:00 | P34: 15:03:00 | Q34: 16:23:00 | R34: 17:18:00
C35: 06:34:00 | D35: 00:01:00 | E35: 5.0 | F35: 0.4 | G35: P | H35: Nowe Pieścirogi ul. Kolejowa 01 | I35: 10. | J35: Nowe Pieścirogi ul. Kolejowa 01 | K35: P | L35: 0.4 | M35: =L35+M34 -> 5.0 | N35: 00:01:00 | O35: =N35+O34 -> 11:39:00 | P35: 15:04:00 | Q35: 16:24:00 | R35: 17:19:00
C36: 06:35:00 | D36: 00:01:00 | E36: 5.7 | F36: 0.7 | G36: P | H36: Stare Pieścirogi ul. Kolejowa (Szkoła) 03 | I36: 11. | J36: Stare Pieścirogi ul. Kolejowa (Szkoła) 03 | K36: P | L36: 0.7 | M36: =M35+L36 -> 5.7 | N36: 00:01:00 | O36: =O35+N36 -> 11:40:00 | P36: 15:05:00 | Q36: 16:25:00 | R36: 17:20:00
C37: 06:36:00 | D37: 00:01:00 | E37: 5.8 | F37: 0.1 | G37: W | H37: Stare Pieścirogi ul. Makowa 06 | I37: 12. | J37: Stare Pieścirogi ul. Makowa 06 | K37: W | L37: 0.1 | M37: =L37+M36 -> 5.8 | N37: 00:01:00 | O37: =N37+O36 -> 11:41:00 | P37: 15:06:00 | Q37: 16:26:00 | R37: 17:21:00
C38: 06:38:00 | D38: 00:02:00 | E38: 7.9 | F38: 2.1 | G38: W | H38: Mokrzyce Włościańskie 01 | I38: 13. | J38: Mokrzyce Włościańskie 01 | K38: W | L38: 2.1 | M38: =M37+L38 -> 7.9 | N38: 00:02:00 | O38: =O37+N38 -> 11:43:00 | P38: 15:08:00 | Q38: 16:28:00 | R38: 17:23:00
C39: 06:40:00 | D39: 00:02:00 | E39: 9.2 | F39: 1.3 | G39: W | H39: Malczyn (Ruszkowo) 01 | I39: 14. | J39: Malczyn 01 | K39: G | L39: 2.5 | M39: =L39+M38 -> 10.4 | N39: 00:03:00 | O39: =N39+O38 -> 11:46:00 | P39: 15:11:00 | Q39: 16:31:00 | R39: 17:26:00
C40: 06:42:00 | D40: 00:02:00 | E40: 11.2 | F40: 2.0 | G40: W | H40: Cieksyn (Mokrzyce Dworskie) 01 | I40: 15. | J40: Wiktorowo 01 | K40: G | L40: 0.8 | M40: =M39+L40 -> 11.2 | N40: 00:01:00 | O40: =O39+N40 -> 11:47:00 | P40: 15:12:00 | Q40: 16:32:00 | R40: 17:27:00
C41: 06:44:00 | D41: 00:02:00 | E41: 13.3 | F41: 2.1 | G41: W | H41: Borkowo 01 | I41: 16. | J41: Wiktorowo 03 | K41: G | L41: 1.3 | M41: =L41+M40 -> 12.5 | N41: 00:02:00 | O41: =N41+O40 -> 11:49:00 | P41: 15:14:00 | Q41: 16:34:00 | R41: 17:29:00
C42: 06:46:00 | D42: 00:02:00 | E42: 14.9 | F42: 1.6 | G42: W | H42: Dobra Wola 01 | I42: 17. | J42: Andzin 02 | K42: P | L42: 2.6 | M42: =M41+L42 -> 15.1 | N42: 00:04:00 | O42: =O41+N42 -> 11:53:00 | P42: 15:18:00 | Q42: 16:38:00 | R42: 17:33:00
C43: 06:49:00 | D43: 00:03:00 | E43: 16.5 | F43: 1.6 | G43: G | H43: Nowa Wrona 03 | I43: 18. | J43: Cieksyn ul. Piłsudskiego (Szkoła) 04 | K43: P | L43: 1.9 | M43: =L43+M42 -> 17.0 | N43: 00:02:00 | O43: =N43+O42 -> 11:55:00 | P43: 15:20:00 | Q43: 16:40:00 | R43: 17:35:00
C44: 06:51:00 | D44: 00:02:00 | E44: 18.1 | F44: 1.6 | G44: G | H44: Dobra Wola (wiata) 03 | I44: 19. | J44: Cieksyn, ul. Piłsudskiego 06 | K44: P | L44: 1.1 | M44: =M43+L44 -> 18.1 | N44: 00:01:00 | O44: =O43+N44 -> 11:56:00 | P44: 15:21:00 | Q44: 16:41:00 | R44: 17:36:00
C45: 06:52:00 | D45: 00:01:00 | E45: 18.9 | F45: 0.8 | G45: G | H45: Dobra Wola (wiata) 04 | I45: 20. | J45: Borkowo 01 | K45: W | L45: 1.0 | M45: =L45+M44 -> 19.1 | N45: 00:02:00 | O45: =N45+O44 -> 11:58:00 | P45: 15:23:00 | Q45: 16:43:00 | R45: 17:38:00
C46: 06:53:00 | D46: 00:01:00 | E46: 19.5 | F46: 0.6 | G46: G | H46: Dobra Wola (wiata) 05 | I46: 21. | J46: Dobra Wola 01 | K46: W | L46: 1.6 | M46: =M45+L46 -> 20.7 | N46: 00:02:00 | O46: =O45+N46 -> 12:00:00 | P46: 15:25:00 | Q46: 16:45:00 | R46: 17:40:00
C47: 06:54:00 | D47: 00:01:00 | E47: 20.7 | F47: 1.2 | G47: W | H47: Borkowo 02 | I47: 22. | J47: Nowa Wrona 03 | K47: G | L47: 1.6 | M47: =L47+M46 -> 22.3 | N47: 00:02:00 | O47: =N47+O46 -> 12:02:00 | P47: 15:27:00 | Q47: 16:47:00 | R47: 17:42:00
C48: 06:55:00 | D48: 00:01:00 | E48: 21.6 | F48: 0.9 | G48: P | H48: Cieksyn, ul. Piłsudskiego 07 | I48: 23. | J48: Dobra Wola (wiata) 03 | K48: G | L48: 1.6 | M48: =M47+L48 -> 23.9 | N48: 00:03:00 | O48: =O47+N48 -> 12:05:00 | P48: 15:30:00 | Q48: 16:50:00 | R48: 17:45:00
C49: 06:56:00 | D49: 00:01:00 | E49: 22.5 | F49: 0.9 | G49: P | H49: Cieksyn ul. Piłsudskiego 05 | I49: 24. | J49: Dobra Wola (wiata) 04 | K49: G | L49: 0.8 | M49: =L49+M48 -> 24.7 | N49: 00:01:00 | O49: =N49+O48 -> 12:06:00 | P49: 15:31:00 | Q49: 16:51:00 | R49: 17:46:00
C50: 06:58:00 | D50: 00:02:00 | E50: 24.5 | F50: 2.0 | G50: P | H50: Andzin 02 | I50: 25. | J50: Dobra Wola (wiata) 05 | K50: G | L50: 0.6 | M50: =M49+L50 -> 25.3 | N50: 00:01:00 | O50: =O49+N50 -> 12:07:00 | P50: 15:32:00 | Q50: 16:52:00 | R50: 17:47:00
C51: 07:02:00 | D51: 00:04:00 | E51: 27.1 | F51: 2.6 | G51: G | H51: Wiktorowo 04 | I51: 26. | J51: Borkowo 02 | K51: W | L51: 1.2 | M51: =L51+M50 -> 26.5 | N51: 00:01:00 | O51: =N51+O50 -> 12:08:00 | P51: 15:33:00 | Q51: 16:53:00 | R51: 17:48:00
C52: 07:04:00 | D52: 00:02:00 | E52: 28.4 | F52: 1.3 | G52: G | H52: Wiktorowo 02 | I52: 27. | J52: Mokrzyce Dworskie 02 | K52: W | L52: 2.4 | M52: =M51+L52 -> 28.9 | N52: 00:02:00 | O52: =O51+N52 -> 12:10:00 | P52: 15:35:00 | Q52: 16:55:00 | R52: 17:50:00
C53: 07:05:00 | D53: 00:01:00 | E53: 29.3 | F53: 0.9 | G53: P | H53: Malczyn 01 | I53: 28. | J53: Ruszkowo 02 | K53: W | L53: 1.8 | M53: =L53+M52 -> 30.7 | N53: 00:02:00 | O53: =N53+O52 -> 12:12:00 | P53: 15:37:00 | Q53: 16:57:00 | R53: 17:52:00
C54: 07:07:00 | D54: 00:02:00 | E54: 30.7 | F54: 1.4 | G54: W | H54: Ruszkowo 02 | I54: 29. | J54: Mokrzyce Włościańskie 02 | K54: W | L54: 1.1 | M54: =M53+L54 -> 31.8 | N54: 00:01:00 | O54: =O53+N54 -> 12:13:00 | P54: 15:38:00 | Q54: 16:58:00 | R54: 17:53:00
C55: 07:08:00 | D55: 00:01:00 | E55: 31.8 | F55: 1.1 | G55: W | H55: Mokrzyce Włościańskie 02 | I55: 30. | J55: Stare Pieścirogi ul. Kolejowa 08 | K55: P | L55: 2.2 | M55: =L55+M54 -> 34.0 | N55: 00:02:00 | O55: =N55+O54 -> 12:15:00 | P55: 15:40:00 | Q55: 17:00:00 | R55: 17:55:00
C56: 07:10:00 | D56: 00:02:00 | E56: 34.0 | F56: 2.2 | G56: P | H56: Stare Pieścirogi ul. Kolejowa 08 | I56: 31. | J56: Nowe Pieścirogi ul. Kolejowa 02 | K56: P | L56: 0.4 | M56: =M55+L56 -> 34.4 | N56: 00:01:00 | O56: =O55+N56 -> 12:16:00 | P56: 15:41:00 | Q56: 17:01:00 | R56: 17:56:00
C57: 07:11:00 | D57: 00:01:00 | E57: 34.4 | F57: 0.4 | G57: P | H57: Nowe Pieścirogi ul. Kolejowa 02 | I57: 32. | J57: Mogowo ul. Srebrna (Dworzec PKP) 01 | K57: P | L57: 0.6 | M57: =L57+M56 -> 35.0 | N57: 00:01:00 | O57: =N57+O56 -> 12:17:00 | P57: 15:42:00 | Q57: 17:02:00 | R57: 17:57:00
C58: 07:12:00 | D58: 00:01:00 | E58: 35.0 | F58: 0.6 | G58: P | H58: Mogowo ul. Srebrna (Dworzec PKP) 01 | I58: 33. | J58: Nowe Pieścirogi ul. Kolejowa 01 | K58: P | L58: 0.4 | M58: =M57+L58 -> 35.4 | N58: 00:01:00 | O58: =O57+N58 -> 12:18:00 | P58: 15:43:00 | Q58: 17:03:00 | R58: 17:58:00
C59: 07:13:00 | D59: 00:01:00 | E59: 35.4 | F59: 0.4 | G59: P | H59: Nowe Pieścirogi ul. Kolejowa 01 | I59: 34. | J59: Stare Pieścirogi ul. Kolejowa (Szkoła) 03 | K59: P | L59: 0.7 | M59: =L59+M58 -> 36.1 | N59: 00:01:00 | O59: =N59+O58 -> 12:19:00 | P59: 15:44:00 | Q59: 17:04:00 | R59: 17:59:00
C60: 07:14:00 | D60: 00:01:00 | E60: 36.1 | F60: 0.7 | G60: P | H60: Stare Pieścirogi ul. Kolejowa (Szkoła) 03 | I60: 35. | J60: Stare Pieścirogi ul. Makowa 01 | K60: W | L60: 0.1 | M60: =M59+L60 -> 36.2 | N60: 00:01:00 | O60: =O59+N60 -> 12:20:00 | P60: 15:45:00 | Q60: 17:05:00 | R60: 18:00:00
C61: 07:15:00 | D61: 00:01:00 | E61: 36.2 | F61: 0.1 | G61: W | H61: Stare Pieścirogi ul. Makowa 01 | I61: 36. | J61: Stare Pieścirogi (Wiadukt) 04 | K61: W | L61: 0.3 | M61: =L61+M60 -> 36.5 | N61: 00:01:00 | O61: =N61+O60 -> 12:21:00 | P61: 15:46:00 | Q61: 17:06:00 | R61: 18:01:00
C62: 07:16:00 | D62: 00:01:00 | E62: 36.5 | F62: 0.3 | G62: W | H62: Stare Pieścirogi (Wiadukt) 04 | I62: 37. | J62: Stare Pieścirogi ul. Kolejowa (Za wiaduktem) 02 | K62: W | L62: 1.0 | M62: =M61+L62 -> 37.5 | N62: 00:01:00 | O62: =O61+N62 -> 12:22:00 | P62: 15:47:00 | Q62: 17:07:00 | R62: 18:02:00
C63: 07:17:00 | D63: 00:01:00 | E63: 37.5 | F63: 1.0 | G63: W | H63: Stare Pieścirogi ul. Kolejowa (Za wiaduktem) 02 | I63: 38. | J63: Nasielsk ul. Kolejowa 05 | K63: W | L63: 0.5 | M63: =L63+M62 -> 38.0 | N63: 00:01:00 | O63: =N63+O62 -> 12:23:00 | P63: 15:48:00 | Q63: 17:08:00 | R63: 18:03:00
C64: 07:18:00 | D64: 00:01:00 | E64: 38.0 | F64: 0.5 | G64: W | H64: Nasielsk ul. Kolejowa 05 | I64: 39. | J64: Nasielsk ul. Kolejowa (PKO) 03 | K64: W | L64: 0.7 | M64: =M63+L64 -> 38.7 | N64: 00:01:00 | O64: =O63+N64 -> 12:24:00 | P64: 15:49:00 | Q64: 17:09:00 | R64: 18:04:00
C65: 07:19:00 | D65: 00:01:00 | E65: 38.7 | F65: 0.7 | G65: W | H65: Nasielsk ul. Kolejowa (PKO) 03 | I65: 40. | J65: Nasielsk ul. Rynek (Skwer) 01 | K65: P | L65: 0.9 | M65: =L65+M64 -> 39.6 | N65: 00:01:00 | O65: =N65+O64 -> 12:25:00 | P65: 15:50:00 | Q65: 17:10:00 | R65: 18:05:00
C66: 07:20:00 | D66: 00:01:00 | E66: 39.6 | F66: 0.9 | G66: P | H66: Nasielsk ul. Rynek (Skwer) 01 | I66: 41.
C67: =C66-C26 -> 00:55:00 | D67: Czas przejazdu | O67: =O65-O26 -> 00:55:00 | P67: =P65-P26 -> 00:55:00 | Q67: =Q65-Q26 -> 00:55:00 | R67: =R65-R26 -> 00:55:00
C68: 43.2 | D68: Prędkość komunikacyjna (km/h) | O68: 43.2 | P68: 43.2 | Q68: 43.2 | R68: 43.2
C69: 41 | D69: Liczba przystanków | O69: 40 | P69: 40 | Q69: 40 | R69: 40
C70: Oznaczenie linii komunikacyjnej: U
C72: Symbol oraz opis oznaczenia:
C73: D - kursuje od poniedziałku do piątku oprócz świąt
C75: Oznaczenia kategorii dróg:
C76: W - droga wojewódzka
C77: P - droga powiatowa
C78: G - droga gminna

Sheet 3
A2: Organizator:
A3: Gmina Nasielsk
A4: ul. Elektronowa 3
A5: 05-190 Nasielsk
A6: Tel.: 23 693 30 00
A8: Operator:
A9: ….........................................................................
A10: ….........................................................................
A11: …........................................................................
A12: …........................................................................
A13: KRS: …................., NIP: …...........................
A15: Rozkład jazdy obowiązuje od 02.01.2026 do 31.12.2026
A17: Nazwa linii komunikacyjnej: linia nr 3 : Nasielsk – Lubomin – Nasielsk
A18: Komunikacja zwykła
A19: ROZKŁAD JAZDY
A20: stanowiący załącznik do Zaświadczenia nr 3/2024 na wykonywanie publicznego transportu zbiorowego
B22: Linia nr 3 : Nasielsk – Lubomin – Nasielsk
B23: kurs | H23: 131 | I23: 132
B24: oznaczenie kursu | H24: D | I24: D
B25: Lp. | C25: Przystanek | D25: Kategoria drogi | E25: Odległość między przystankami (km) | F25: Odległość narastająca (km) | G25: Czas przejazdu | H25: godz. | I25: godz.
B26: 1. | C26: Nasielsk ul. Rynek (Skwer) 01 | D26: P | E26: 0.0 | F26: 0.0 | G26: 00:00:00 | H26: 08:10:00 | I26: 11:40:00
B27: 2. | C27: Mazewo Włościańskie 01 | D27: P | E27: 2.3 | F27: =E27+F26 -> 2.3 | G27: 00:04:00 | H27: =G27+H26 -> 08:14:00 | I27: =G27+I26 -> 11:44:00
B28: 3. | C28: Jackowo Włościańskie 01 | D28: G | E28: 1.4 | F28: 3.7 | G28: 00:01:00 | H28: 08:15:00 | I28: 11:45:00
B29: 4. | C29: Jackowo Dworskie 01 | D29: G | E29: 1.3 | F29: 5.0 | G29: 00:01:00 | H29: 08:16:00 | I29: 11:46:00
B30: 5. | C30: Jackowo Dworskie 02 | D30: G | E30: 1.7 | F30: 6.7 | G30: 00:02:00 | H30: 08:18:00 | I30: 11:48:00
B31: 6. | C31: Lubomin (Jackowo Oktawin) 01 | D31: G | E31: 2.0 | F31: 8.7 | G31: 00:03:00 | H31: 08:21:00 | I31: 11:51:00
B32: 7. | C32: Lubomin 02 | D32: P | E32: 0.8 | F32: 9.5 | G32: 00:01:00 | H32: 08:22:00 | I32: 11:52:00
B33: 8. | C33: Mazewo Dworskie B 03 | D33: G | E33: 2.2 | F33: 11.7 | G33: 00:03:00 | H33: 08:25:00 | I33: 11:55:00
B34: 9. | C34: Mazewo Dworskie A 01 | D34: W | E34: 2.1 | F34: 13.8 | G34: 00:03:00 | H34: 08:28:00 | I34: 11:58:00
B35: 10. | C35: Słustowo 01 | D35: G | E35: 0.6 | F35: 14.4 | G35: 00:01:00 | H35: 08:29:00 | I35: 11:59:00
B36: 11. | C36: Mazewo Dworskie A (Słustowo) 04 | D36: W | E36: 0.1 | F36: 14.5 | G36: 00:01:00 | H36: 08:30:00 | I36: 12:00:00
B37: 12. | C37: Mazewo Dworskie A 02 | D37: W | E37: 0.5 | F37: 15.0 | G37: 00:01:00 | H37: 08:31:00 | I37: 12:01:00
B38: 13. | C38: Kątne 01 | D38: G | E38: 1.6 | F38: 16.6 | G38: 00:02:00 | H38: 08:33:00 | I38: 12:03:00
B39: 14. | C39: Kątne 02 | D39: G | E39: 0.8 | F39: 17.4 | G39: 00:01:00 | H39: 08:34:00 | I39: 12:04:00
B40: 15. | C40: Chlebiotki 01 | D40: G | E40: 1.0 | F40: 18.4 | G40: 00:01:00 | H40: 08:35:00 | I40: 12:05:00
B41: 16. | C41: Kosewo 04 | D41: P | E41: 1.1 | F41: 19.5 | G41: 00:01:00 | H41: 08:36:00 | I41: 12:06:00
B42: 17. | C42: Kosewo 05 | D42: P | E42: 0.9 | F42: 20.4 | G42: 00:01:00 | H42: 08:37:00 | I42: 12:07:00
B43: 18. | C43: Nasielsk ul. Kolejowa (PKO) 03 | D43: W | E43: 1.7 | F43: 22.1 | G43: 00:02:00 | H43: 08:39:00 | I43: 12:09:00
B44: 19. | C44: Nasielsk ul. Rynek (Skwer) 01 | D44: P | E44: 0.9 | F44: 23.0 | G44: 00:01:00 | H44: 08:40:00 | I44: 12:10:00
B45: Czas przejazdu | H45: =H44-H26 -> 00:30:00 | I45: =I44-I26 -> 00:30:00
B46: Prędkość komunikacyjna (km/h) | H46: 46.0 | I46: 46.0
B47: Liczba przystanków | H47: 19 | I47: 19
B48: Oznaczenie linii komunikacyjnej: U
B50: Symbol oraz opis oznaczenia:
B51: D - kursuje od poniedziałku do piątku oprócz świąt
B53: Oznaczenia kategorii dróg:
B54: W - droga wojewódzka
B55: P - droga powiatowa
B56: G - droga gminna

Sheet 4
A1: Organizator:
A2: Gmina Nasielsk
A3: ul. Elektronowa 3
A4: 05-190 Nasielsk
A5: Tel.: 23 693 30 00
A7: Operator:
A8: …..................................................................
A9: …..................................................................
A10: …..................................................................
A11: Tel.: …....................
A12: KRS: …......................., NIP: …..........................
A14: Rozkład jazdy obowiązuje od 02.01.2026 do 31.12.2026
A16: Nazwa linii komunikacyjnej: linia nr 4: Nasielsk – Nuna – Nasielsk
A17: Komunikacja zwykła
A19: ROZKŁAD JAZDY
A20: stanowiący załącznik do Zaświadczenia nr 4/20224 na wykonywanie publicznego transportu zbiorowego
B22: Linia nr 4 : Nasielsk – Nuna – Nasielsk
B23: kurs | E23: 141 | I23: 142 | M23: 143
B24: oznaczenie kursu | E24: D | I24: 2, 5 | M24: D
B25: Lp. | C25: Przystanek | D25: Kategoria drogi | E25: Odległość między przystankami (km) | F25: Odległość narastająca (km) | G25: Czas przejazdu | H25: godz. | I25: Odległość między przystankami (km) | J25: Odległość narastająca (km) | K25: Czas przejazdu | L25: godz. | M25: Odległość między przystankami (km) | N25: Odległość narastająca (km) | O25: Czas przejazdu | P25: godz.
B26: 1. | C26: Nasielsk ul. Lipowa (Szkoła) 27 | D26: G | M26: 0.0 | N26: 0.0 | O26: 00:00:00 | P26: 15:05:00
B27: 2. | C27: Nasielsk ul. Kolejowa (PKO) 03 | D27: W | M27: 0.5 | N27: =M27+N26 -> 0.5 | O27: 00:01:00 | P27: =O27+P26 -> 15:06:00
B28: 3. | C28: Nasielsk ul. Rynek (Skwer) 01 | D28: P | E28: 0.0 | F28: 0.0 | G28: 00:00:00 | H28: 06:15:00 | I28: 0.0 | J28: 0.0 | K28: 00:00:00 | L28: 11:30:00 | M28: 0.9 | N28: 1.4 | O28: 00:01:00 | P28: 15:07:00
B29: 4. | C29: Nasielsk ul. Warszawska (Sanibud) 12 | D29: W | E29: 0.9 | F29: =E29+F28 -> 0.9 | G29: 00:01:00 | H29: =H28+G29 -> 06:16:00 | I29: 0.9 | J29: =I29+J28 -> 0.9 | K29: 00:01:00 | L29: =L28+K29 -> 11:31:00 | M29: 0.9 | N29: 2.3 | O29: 00:01:00 | P29: 15:08:00
B30: 5. | C30: Pniewo (Stacja Paliw) 02 | D30: W | E30: 0.9 | F30: 1.8 | G30: 00:01:00 | H30: 06:17:00 | I30: 0.9 | J30: 1.8 | K30: 00:01:00 | L30: 11:32:00 | M30: 0.9 | N30: 3.2 | O30: 00:01:00 | P30: 15:09:00
B31: 6. | C31: Chrcynno 02 | D31: W | E31: 3.0 | F31: 4.8 | G31: 00:04:00 | H31: 06:21:00 | I31: 3.0 | J31: 4.8 | K31: 00:04:00 | L31: 11:36:00 | M31: 3.0 | N31: 6.2 | O31: 00:04:00 | P31: 15:13:00
B32: 7. | C32: Chechnówka 02 | D32: W | E32: 2.0 | F32: 6.8 | G32: 00:02:00 | H32: 06:23:00 | I32: 2.0 | J32: 6.8 | K32: 00:02:00 | L32: 11:38:00 | M32: 2.0 | N32: 8.2 | O32: 00:02:00 | P32: 15:15:00
B33: 8. | C33: Lorcin (Klusówka) 02 | D33: W | E33: 0.7 | F33: 7.5 | G33: 00:01:00 | H33: 06:24:00 | I33: 0.7 | J33: 7.5 | K33: 00:01:00 | L33: 11:39:00 | M33: 0.7 | N33: 8.9 | O33: 00:01:00 | P33: 15:16:00
B34: 9. | C34: Popowo Borowe (Nuna) 01 | D34: W | E34: 1.5 | F34: 9.0 | G34: 00:02:00 | H34: 06:26:00 | I34: 1.5 | J34: 9.0 | K34: 00:02:00 | L34: 11:41:00 | M34: 1.5 | N34: 10.4 | O34: 00:02:00 | P34: 15:18:00
B35: 10. | C35: Nuna 01 | D35: P | E35: 1.9 | F35: 10.9 | G35: 00:02:00 | H35: 06:28:00 | I35: 1.9 | J35: 10.9 | K35: 00:02:00 | L35: 11:43:00 | M35: 1.9 | N35: 12.3 | O35: 00:02:00 | P35: 15:20:00
B36: 11. | C36: Nuna 02 | D36: P | E36: 0.9 | F36: 11.8 | G36: 00:01:00 | H36: 06:29:00 | I36: 0.9 | J36: 11.8 | K36: 00:01:00 | L36: 11:44:00 | M36: 0.9 | N36: 13.2 | O36: 00:01:00 | P36: 15:21:00
B37: 12. | C37: Nuna 03 | D37: P | E37: 0.9 | F37: 12.7 | G37: 00:01:00 | H37: 06:30:00 | I37: 0.9 | J37: 12.7 | K37: 00:01:00 | L37: 11:45:00 | M37: 0.9 | N37: 14.1 | O37: 00:01:00 | P37: 15:22:00
B38: 13. | C38: Nuna 04 | D38: P | E38: 0.7 | F38: 13.4 | G38: 00:01:00 | H38: 06:31:00 | I38: 0.7 | J38: 13.4 | K38: 00:01:00 | L38: 11:46:00 | M38: 0.7 | N38: 14.8 | O38: 00:01:00 | P38: 15:23:00
B39: 14. | C39: Nuna 05 | D39: P | E39: 0.8 | F39: 14.2 | G39: 00:01:00 | H39: 06:32:00 | I39: 0.8 | J39: 14.2 | K39: 00:01:00 | L39: 11:47:00 | M39: 0.8 | N39: 15.6 | O39: 00:01:00 | P39: 15:24:00
B40: 15. | C40: Młodzianowo 01 | D40: G | E40: 2.5 | F40: 16.7 | G40: 00:04:00 | H40: 06:36:00 | I40: 2.5 | J40: 16.7 | K40: 00:04:00 | L40: 11:51:00 | M40: 2.5 | N40: 18.1 | O40: 00:04:00 | P40: 15:28:00
B41: 16. | C41: Krogule 01 | D41: P | E41: 2.8 | F41: 19.5 | G41: 00:04:00 | H41: 06:40:00 | I41: 2.8 | J41: 19.5 | K41: 00:04:00 | L41: 11:55:00 | M41: 2.8 | N41: 20.9 | O41: 00:04:00 | P41: 15:32:00
B42: 17. | C42: Budy Siennickie 01 | D42: P | E42: 1.7 | F42: 21.2 | G42: 00:02:00 | H42: 06:42:00 | I42: 1.7 | J42: 21.2 | K42: 00:02:00 | L42: 11:57:00 | M42: 1.7 | N42: 22.6 | O42: 00:02:00 | P42: 15:34:00
B43: 18. | C43: Cegielnia Psucka 01 | D43: P | E43: 0.9 | F43: 22.1 | G43: 00:01:00 | H43: 06:43:00 | I43: 0.9 | J43: 22.1 | K43: 00:01:00 | L43: 11:58:00 | M43: 0.9 | N43: 23.5 | O43: 00:01:00 | P43: 15:35:00
B44: 19. | C44: Psucin ul. Warszawska (OSP) 03 | D44: P | E44: 2.4 | F44: 24.5 | G44: 00:03:00 | H44: 06:46:00 | I44: 2.4 | J44: 24.5 | K44: 00:03:00 | L44: 12:01:00 | M44: 2.4 | N44: 25.9 | O44: 00:03:00 | P44: 15:38:00
B45: 20. | C45: Miękoszynek 02 | D45: G | E45: 3.9 | F45: 28.4 | G45: 00:04:00 | H45: 06:50:00 | I45: 3.9 | J45: 28.4 | K45: 00:04:00 | L45: 12:05:00 | M45: 3.9 | N45: 29.8 | O45: 00:04:00 | P45: 15:42:00
B46: 21. | C46: Studzianki (PKP) 01 | D46: P | E46: 1.2 | F46: 29.6 | G46: 00:02:00 | H46: 06:52:00 | I46: 1.2 | J46: 29.6 | K46: 00:02:00 | L46: 12:07:00 | M46: 1.2 | N46: 31.0 | O46: 00:02:00 | P46: 15:44:00
B47: 22. | C47: Studzianki 02 | D47: P | E47: 0.6 | F47: 30.2 | G47: 00:01:00 | H47: 06:53:00 | I47: 0.6 | J47: 30.2 | K47: 00:01:00 | L47: 12:08:00 | M47: 0.6 | N47: 31.6 | O47: 00:01:00 | P47: 15:45:00
B48: 23. | C48: Wągrodno 04 | D48: P | E48: 2.7 | F48: 32.9 | G48: 00:03:00 | H48: 06:56:00 | I48: 2.7 | J48: 32.9 | K48: 00:03:00 | L48: 12:11:00 | M48: 2.7 | N48: 34.3 | O48: 00:03:00 | P48: 15:48:00
B49: 24. | C49: Wągrodno 02 | D49: P | E49: 1.3 | F49: 34.2 | G49: 00:02:00 | H49: 06:58:00 | I49: 1.3 | J49: 34.2 | K49: 00:02:00 | L49: 12:13:00 | M49: 1.3 | N49: 35.6 | O49: 00:02:00 | P49: 15:50:00
B50: 25. | C50: Siennica ul. Akacjowa 02 | D50: P | E50: 1.3 | F50: 35.5 | G50: 00:01:00 | H50: 06:59:00 | I50: 1.3 | J50: 35.5 | K50: 00:01:00 | L50: 12:14:00 | M50: 1.3 | N50: 36.9 | O50: 00:01:00 | P50: 15:51:00
B51: 26. | C51: Nasielsk ul. POW 16 | D51: P | E51: 0.7 | F51: 36.2 | G51: 00:01:00 | H51: 07:00:00 | I51: 0.7 | J51: 36.2 | K51: 00:01:00 | L51: 12:15:00 | M51: 0.7 | N51: 37.6 | O51: 00:01:00 | P51: 15:52:00
B52: 27. | C52: Nasielsk ul. POW (ul. Wyszyńskiego) 18 | D52: P | E52: 0.8 | F52: 37.0 | G52: 00:01:00 | H52: 07:01:00 | I52: 0.8 | J52: 37.0 | K52: 00:01:00 | L52: 12:16:00 | M52: 0.8 | N52: 38.4 | O52: 00:01:00 | P52: 15:53:00
B53: 28. | C53: Nasielsk ul. Rynek (Skwer) 01 | D53: P | E53: 0.7 | F53: 37.7 | G53: 00:01:00 | H53: 07:02:00 | I53: 0.7 | J53: 37.7 | K53: 00:01:00 | L53: 12:17:00 | M53: 0.7 | N53: 39.1 | O53: 00:01:00 | P53: 15:54:00
B54: 29. | C54: Nasielsk ul. Kościuszki (Krupki) 02 | D54: W | E54: 0.7 | F54: 38.4 | G54: 00:01:00 | H54: 07:03:00
B55: 30. | C55: Nasielsk ul. Lipowa (Szkoła) 26 | D55: G | E55: 0.7 | F55: 39.1 | G55: 00:01:00 | H55: 07:04:00
E56: Czas przejazdu | H56: =H55-H28 -> 00:49:00 | I56: Czas przejazdu | L56: =L53-L28 -> 00:47:00 | M56: Czas przejazdu | P56: =P53-P26 -> 00:49:00
E57: Prędkość komunikacyjna (km/h) | H57: 47.9 | I57: Prędkość komunikacyjna (km/h) | L57: 48.1 | M57: Prędkość komunikacyjna (km/h) | P57: 47.9
E58: Liczba przystanków | H58: 28 | I58: Liczba przystanków | L58: 26 | M58: Liczba przystanków | P58: 28
B59: Oznaczenie linii komunikacyjnej: U
B61: Symbol oraz opis oznaczenia:
B62: D - kursuje od poniedziałku do piątku oprócz świąt
B63: 2 - kursuje we wtorki
B64: 5 - kursuje w piątki
B66: Oznaczenia kategorii dróg:
B67: W - droga wojewódzka
B68: P - droga powiatowa
B69: G - droga gminna

Sheet 5
B2: Organizator:
A3: Gmina Nasielsk
A4: ul. Elektronowa 3
A5: 05-190 Nasielsk
A6: Tel.: 23 693 30 00
A8: Operator:
A9: ….................................................................................
A10: ….................................................................................
A11: …................................................................................
A12: Tel.: …............................................
A13: KRS: …......................., NIP: ….....................
A15: Rozkład jazdy obowiązuje od 02.01.2026 do 31.12.2026
A18: Nazwa linii komunikacyjnej: linia nr 5: Nasielsk - Krzyczki - Nasielsk
A19: Komunikacja zwykła
A20: ROZKŁAD JAZDY
A21: stanowiący załącznik do Zaświadczenia nr 5/2024 na wykonywanie publicznego transportu zbiorowego
B23: Linia nr 5 : Nasielsk – Krzyczki – Nasielsk
B24: kurs | H24: 151 | I24: 152
B25: oznaczenie kursu | H25: D | I25: D
B26: Lp. | C26: Przystanek | D26: Kategoria drogi | E26: Odległość między przystankami (km) | F26: Odległość narastająca (km) | G26: Czas przejazdu | H26: godz. | I26: godz.
B27: 1. | C27: Nasielsk ul. Rynek (Skwer) 01 | D27: P | E27: 0.0 | F27: 0.0 | G27: 00:00:00 | H27: 08:45:00 | I27: 14:05:00
B28: 2. | C28: Nasielsk ul. Pniewska Górka 20 | D28: G | E28: 2.0 | F28: =F27+E28 -> 2.0 | G28: 00:03:00 | H28: =H27+G28 -> 08:48:00 | I28: =I27+G28 -> 14:08:00
B29: 3. | C29: Krzyczki Żabiczki 01 | D29: G | E29: 2.6 | F29: 4.6 | G29: 00:03:00 | H29: 08:51:00 | I29: 14:11:00
B30: 4. | C30: Krzyczki-Pieniążki 05 | D30: G | E30: 1.2 | F30: 5.8 | G30: 00:01:00 | H30: 08:52:00 | I30: 14:12:00
B31: 5. | C31: Krzyczki Szumne 02 | D31: P | E31: 0.7 | F31: 6.5 | G31: 00:01:00 | H31: 08:53:00 | I31: 14:13:00
B32: 6. | C32: Krzyczki Szumne 01 | D32: W | E32: 0.6 | F32: 7.1 | G32: 00:01:00 | H32: 08:54:00 | I32: 14:14:00
B33: 7. | C33: Krzyczki Pieniążki (Glice) 01 | D33: W | E33: 1.1 | F33: 8.2 | G33: 00:01:00 | H33: 08:55:00 | I33: 14:15:00
B34: 8. | C34: Głodowo Wielkie 01 | D34: G | E34: 1.7 | F34: 9.9 | G34: 00:02:00 | H34: 08:57:00 | I34: 14:17:00
B35: 9. | C35: Głodowo Wielkie 02 | D35: G | E35: 1.4 | F35: 11.3 | G35: 00:02:00 | H35: 08:59:00 | I35: 14:19:00
B36: 10. | C36: Nasielsk ul. Topolowa 21 | D36: P | E36: 1.3 | F36: 12.6 | G36: 00:01:00 | H36: 09:00:00 | I36: 14:20:00
B37: 11. | C37: Nasielsk ul. Młynarska (Osiedle Brzozowa) 22 | D37: P | E37: 1.2 | F37: 13.8 | G37: 00:01:00 | H37: 09:01:00 | I37: 14:21:00
B38: 12. | C38: Nasielsk ul. Rynek (Skwer) 01 | D38: P | E38: 0.7 | F38: 14.5 | G38: 00:01:00 | H38: 09:02:00 | I38: 14:22:00
B39: Czas przejazdu | H39: =H38-H27 -> 00:17:00 | I39: =I38-I27 -> 00:17:00
B40: Prędkość komunikacyjna (km/h) | H40: 51.2 | I40: 51.2
B41: Liczba przystanków | H41: 12 | I41: 12
B42: Oznaczenie linii komunikacyjnej: U
B44: Symbol oraz opis oznaczenia:
B45: D - kursuje od poniedziałku do piątku oprócz świąt
B47: Oznaczenia kategorii dróg:
B48: W - droga wojewódzka
B49: P - droga powiatowa
B50: G - droga gminna

Sheet 6
A1: Organizator:
A2: Gmina Nasielsk
A3: ul. Elektronowa 3
A4: 05-190 Nasielsk
A5: Tel.: 23 693 30 00
A7: Operator:
A8: ….......................................................................
A9: ….......................................................................
A10: ….......................................................................
A11: Tel.: …..................................
A12: KRS: ….................., NIP: ….......................
A14: Rozkład jazdy obowiązuje od 02.01.2026 do 31.12.2026
A17: Nazwa linii komunikacyjnej: linia nr 6 : Nasielsk – Popowo Borowe – Nasielsk
A18: Komunikacja zwykła
A20: ROZKŁAD JAZDY
A21: stanowiący załącznik do Zaświadczenia nr 6/2024 na wykonywanie publicznego transportu zbiorowego
B23: Linia nr 6 : Nasielsk – Popowo Borowe – Nasielsk
B24: kurs | E24: 161 | I24: 162 | M24: 163
B25: oznaczenie kursu | E25: D | I25: D | M25: D
B26: Lp. | C26: Przystanek | D26: Kategoria drogi | E26: Odległość między przystankami (km) | F26: Odległość narastająca (km) | G26: Czas przejazdu | H26: godz. | I26: Odległość między przystankami (km) | J26: Odległość narastająca (km) | K26: Czas przejazdu | L26: godz. | M26: Odległość między przystankami (km) | N26: Odległość narastająca (km) | O26: Czas przejazdu | P26: godz.
B27: 1. | C27: Nasielsk ul. Lipowa (Szkoła) 27 | D27: G | M27: 0.0 | N27: 0.0 | O27: 00:00:00 | P27: 15:15:00
B28: 2. | C28: Nasielsk ul. Kolejowa (PKO) 03 | D28: W | M28: 0.5 | N28: =M28+N27 -> 0.5 | O28: 00:01:00 | P28: =O28+P27 -> 15:16:00
B29: 3. | C29: Nasielsk ul. Rynek (Skwer) 01 | D29: P | E29: 0.0 | F29: 0.0 | G29: 00:00:00 | H29: 07:10:00 | I29: 0.0 | J29: 0.0 | K29: 00:00:00 | L29: 10:35:00 | M29: 0.9 | N29: 1.4 | O29: 00:01:00 | P29: 15:17:00
B30: 4. | C30: Nasielsk ul. Warszawska (Sanibud) 12 | D30: W | E30: 0.9 | F30: =F29+E30 -> 0.9 | G30: 00:01:00 | H30: =H29+G30 -> 07:11:00 | I30: 0.9 | J30: =J29+I30 -> 0.9 | K30: 00:01:00 | L30: =L29+K30 -> 10:36:00 | M30: 0.9 | N30: 2.3 | O30: 00:01:00 | P30: 15:18:00
B31: 5. | C31: Pniewo (Stacja Paliw) 02 | D31: W | E31: 0.9 | F31: 1.8 | G31: 00:01:00 | H31: 07:12:00 | I31: 0.9 | J31: 1.8 | K31: 00:01:00 | L31: 10:37:00 | M31: 0.9 | N31: 3.2 | O31: 00:01:00 | P31: 15:19:00
B32: 6. | C32: Chrcynno 02 | D32: W | E32: 3.0 | F32: 4.8 | G32: 00:04:00 | H32: 07:16:00 | I32: 3.0 | J32: 4.8 | K32: 00:04:00 | L32: 10:41:00 | M32: 3.0 | N32: 6.2 | O32: 00:04:00 | P32: 15:23:00
B33: 7. | C33: Popowo Borowe 05 | D33: W | E33: 2.8 | F33: 7.6 | G33: 00:04:00 | H33: 07:20:00 | I33: 2.8 | J33: 7.6 | K33: 00:04:00 | L33: 10:45:00 | M33: 2.8 | N33: 9.0 | O33: 00:04:00 | P33: 15:27:00
B34: 8. | C34: Jaskółowo 01 | D34: W | E34: 0.9 | F34: 8.5 | G34: 00:01:00 | H34: 07:21:00 | I34: 0.9 | J34: 8.5 | K34: 00:01:00 | L34: 10:46:00 | M34: 0.9 | N34: 9.9 | O34: 00:01:00 | P34: 15:28:00
B35: 9. | C35: Popowo Borowe (Południe) 04 | D35: G | E35: 5.1 | F35: 13.6 | G35: 00:07:00 | H35: 07:28:00 | I35: 5.1 | J35: 13.6 | K35: 00:07:00 | L35: 10:53:00 | M35: 5.1 | N35: 15.0 | O35: 00:07:00 | P35: 15:35:00
B36: 10. | C36: Popowo Borowe (Nuna) 01 | D36: W | E36: 3.4 | F36: 17.0 | G36: 00:04:00 | H36: 07:32:00 | I36: 3.4 | J36: 17.0 | K36: 00:04:00 | L36: 10:57:00 | M36: 3.4 | N36: 18.4 | O36: 00:04:00 | P36: 15:39:00
B37: 11. | C37: Lorcin 03 | D37: P | E37: 2.9 | F37: 19.9 | G37: 00:04:00 | H37: 07:36:00 | I37: 2.9 | J37: 19.9 | K37: 00:04:00 | L37: 11:01:00 | M37: 2.9 | N37: 21.3 | O37: 00:04:00 | P37: 15:43:00
B38: 12. | C38: Żabiczyn 01 | D38: G | E38: 0.8 | F38: =E38+F37 -> 20.7 | G38: 00:01:00 | H38: =G38+H37 -> 07:37:00 | I38: 0.8 | J38: =I38+J37 -> 20.7 | K38: 00:01:00 | L38: 11:02:00 | M38: 0.8 | N38: 22.1 | O38: 00:01:00 | P38: 15:44:00
B39: 13. | C39: Lorcin (Klusówka) 01 | D39: W | E39: 1.6 | F39: =F38+E39 -> 22.3 | G39: 00:02:00 | H39: =H38+G39 -> 07:39:00 | I39: 1.6 | J39: =J38+I39 -> 22.3 | K39: 00:02:00 | L39: 11:04:00 | M39: 1.6 | N39: 23.7 | O39: 00:02:00 | P39: 15:46:00
B40: 14. | C40: Chechnówka 01 | D40: W | E40: 0.7 | F40: =E40+F39 -> 23.0 | G40: 00:01:00 | H40: =H39+G40 -> 07:40:00 | I40: 0.7 | J40: =I40+J39 -> 23.0 | K40: 00:01:00 | L40: 11:05:00 | M40: 0.7 | N40: 24.4 | O40: 00:01:00 | P40: 15:47:00
B41: 15. | C41: Chrcynno 01 | D41: W | E41: 2.1 | F41: =F40+E41 -> 25.1 | G41: 00:02:00 | H41: =H40+G41 -> 07:42:00 | I41: 2.1 | J41: =J40+I41 -> 25.1 | K41: 00:02:00 | L41: 11:07:00 | M41: 2.1 | N41: 26.5 | O41: 00:02:00 | P41: 15:49:00
B42: 16. | C42: Nasielsk, ul. Warszawska (Chorten) 13 | D42: W | E42: 2.9 | F42: =E42+F41 -> 28.0 | G42: 00:03:00 | H42: =H41+G42 -> 07:45:00 | I42: 2.9 | J42: =I42+J41 -> 28.0 | K42: 00:03:00 | L42: 11:10:00 | M42: 2.9 | N42: 29.4 | O42: 00:03:00 | P42: 15:52:00
B43: 17. | C43: Nasielsk ul. Warszawska (Apteka) 11 | D43: W | E43: 1.1 | F43: =F42+E43 -> 29.1 | G43: 00:01:00 | H43: =H42+G43 -> 07:46:00 | I43: 1.1 | J43: =J42+I43 -> 29.1 | K43: 00:01:00 | L43: 11:11:00 | M43: 1.1 | N43: 30.5 | O43: 00:01:00 | P43: 15:53:00
B44: 18. | C44: Nasielsk ul. Rynek (Skwer) 01 | D44: P | E44: 0.7 | F44: =E44+F43 -> 29.8 | G44: 00:01:00 | H44: =G44+H43 -> 07:47:00 | I44: 0.7 | J44: =I44+J43 -> 29.8 | K44: 00:01:00 | L44: =K44+L43 -> 11:12:00 | M44: 0.7 | N44: 31.2 | O44: 00:01:00 | P44: 15:54:00
B45: 19. | C45: Nasielsk ul. Kościuszki (Krupki) 02 | D45: W | E45: 0.7 | F45: =F44+E45 -> 30.5 | G45: 00:01:00 | H45: =H44+G45 -> 07:48:00
B46: 20. | C46: Nasielsk ul. Lipowa (Szkoła) 26 | D46: G | E46: 0.7 | F46: =E46+F45 -> 31.2 | G46: 00:01:00 | H46: =H45+G46 -> 07:49:00
E47: Czas przejazdu | H47: =H46-H29 -> 00:39:00 | I47: Czas przejazdu | L47: =L44-L29 -> 00:37:00 | M47: Czas przejazdu | P47: =P44-P27 -> 00:39:00
E48: Prędkość komunikacyjna (km/h) | H48: 48.0 | I48: Prędkość komunikacyjna (km/h) | L48: 48.3 | M48: Prędkość komunikacyjna (km/h) | P48: 48.0
E49: Liczba przystanków | H49: 18 | I49: Liczba przystanków | L49: 16 | M49: Liczba przystanków | P49: 18
B50: Oznaczenie linii komunikacyjnej: U
B52: Symbol oraz opis oznaczenia:
B53: D - kursuje od poniedziałku do piątku oprócz świąt
B55: Oznaczenia kategorii dróg:
B56: W - droga wojewódzka
B57: P - droga powiatowa
B58: G - droga gminna

Sheet 7
A1: Organizator:
A2: Gmina Nasielsk
A3: ul. Elektronowa 3
A4: 05-190 Nasielsk
A5: Tel.: 23 693 30 00
A7: Operator:
A8: ….................................................................................
A9: ….................................................................................
A10: ….................................................................................
A11: Tel.: ..................................................
A12: KRS: …......................., NIP: …............................
A14: Rozkład jazdy obowiązuje od 02.01.2026 do 31.12.2026
A16: Nazwa linii komunikacyjnej: linia nr 7: Nasielsk - Dębinki - Nasielsk
A17: Komunikacja zwykła
A19: ROZKŁAD JAZDY
A20: stanowiący załącznik do Zaświadczenia nr 7/2024 na wykonywanie publicznego transportu zbiorowego
C22: Linia nr 7: Nasielsk – Dębinki – Nasielsk
C23: kurs | F23: 171 | K23: 172 | O23: 173 | S23: 174
C24: oznaczenie kursu | F24: D | K24: D | O24: D | S24: D
C25: Lp. | D25: Przystanek | E25: Kategoria drogi | F25: Odległość między przystankami (km) | G25: Odległość narastająca (km) | H25: Czas przejazdu | I25: godz. | K25: Odległość narastająca (km) | L25: Odległość między przystankami (km) | M25: Czas przejazdu | N25: godz. | O25: Czas przejazdu | P25: Odległość narastająca (km) | Q25: Odległość między przystankami (km) | R25: godz. | S25: Odległość między przystankami (km) | T25: Odległość narastająca (km) | U25: Czas przejazdu | V25: godz. | W25: godz. | X25: godz. | Y25: godz.
C26: 1. | D26: Nasielsk ul. Lipowa (Szkoła) 27 | E26: G | O26: 0.0 | P26: 0.0 | Q26: 00:00:00 | R26: 15:00:00
C27: 2. | D27: Nasielsk ul. Kolejowa (PKO) 03 | E27: W | O27: 0.5 | P27: =O27+P26 -> 0.5 | Q27: 00:01:00 | R27: =Q27+R26 -> 15:01:00
C28: 3. | D28: Nasielsk ul. Rynek (Skwer) 01 | E28: P | F28: 0.0 | G28: 0.0 | H28: 00:00:00 | I28: 06:20:00 | K28: 0.0 | L28: 0.0 | M28: 00:00:00 | N28: 10:30:00 | O28: 0.9 | P28: 1.4 | Q28: 00:01:00 | R28: 15:02:00 | S28: 0.0 | T28: 0.0 | U28: 00:00:00 | V28: 06:40:00 | W28: 10:30:00 | X28: 15:00:00 | Y28: 16:10:00
C29: 4. | D29: Nasielsk ul. POW (ul. Podmiejska) 19 | E29: P | F29: 0.9 | G29: =F29+G28 -> 0.9 | H29: 00:03:00 | I29: =I28+H29 -> 06:23:00 | K29: 0.9 | L29: =L28+K29 -> 0.9 | M29: 00:03:00 | N29: =M29+N28 -> 10:33:00 | O29: 0.9 | P29: 2.3 | Q29: 00:03:00 | R29: 15:05:00 | S29: 0.9 | T29: =T28+S29 -> 0.9 | U29: 00:03:00 | V29: =V28+U29 -> 06:43:00 | W29: =U29+W28 -> 10:33:00 | X29: =X28+U29 -> 15:03:00 | Y29: =Y28+U29 -> 16:13:00
C30: 5. | D30: Nasielsk ul. POW (ul. Piaskowa) 17 | E30: P | F30: 0.6 | G30: =F30+G29 -> 1.5 | H30: 00:01:00 | I30: 06:24:00 | K30: 0.6 | L30: 1.5 | M30: 00:01:00 | N30: 10:34:00 | O30: 0.6 | P30: 2.9 | Q30: 00:01:00 | R30: 15:06:00 | S30: 0.6 | T30: 1.5 | U30: 00:01:00 | V30: 06:44:00 | W30: 10:34:00 | X30: 15:04:00 | Y30: 16:14:00
C31: 6. | D31: Siennica ul. Akacjowa 01 | E31: P | F31: 0.8 | G31: =G30+F31 -> 2.3 | H31: 00:01:00 | I31: 06:25:00 | K31: 0.8 | L31: 2.3 | M31: 00:01:00 | N31: 10:35:00 | O31: 0.8 | P31: 3.7 | Q31: 00:01:00 | R31: 15:07:00 | S31: 0.8 | T31: 2.3 | U31: 00:01:00 | V31: 06:45:00 | W31: 10:35:00 | X31: 15:05:00 | Y31: 16:15:00
C32: 7. | D32: Mogowo ul. Długa 01 | E32: G | F32: 1.9 | G32: =G31+F32 -> 4.2 | H32: 00:03:00 | I32: 06:28:00 | K32: 1.9 | L32: 4.2 | M32: 00:03:00 | N32: 10:38:00 | O32: 1.9 | P32: 5.6 | Q32: 00:03:00 | R32: 15:10:00 | S32: 1.9 | T32: 4.2 | U32: 00:03:00 | V32: 06:48:00 | W32: 10:38:00 | X32: 15:08:00 | Y32: 16:18:00
C33: 8. | D33: Mogowo ul. Srebrna (Dworzec PKP) 01 | E33: P | F33: 2.2 | G33: =G32+F33 -> 6.4 | H33: 00:04:00 | I33: 06:32:00 | K33: 2.2 | L33: 6.4 | M33: 00:04:00 | N33: 10:42:00 | O33: 2.2 | P33: 7.8 | Q33: 00:04:00 | R33: 15:14:00 | S33: 2.2 | T33: 6.4 | U33: 00:04:00 | V33: 06:52:00 | W33: 10:42:00 | X33: 15:12:00 | Y33: 16:22:00
C34: 9. | D34: Nowe Pieścirogi ul. Kolejowa 01 | E34: P | F34: 0.4 | G34: =G33+F34 -> 6.8 | H34: 00:01:00 | I34: 06:33:00 | K34: 0.4 | L34: 6.8 | M34: 00:01:00 | N34: 10:43:00 | O34: 0.4 | P34: 8.2 | Q34: 00:01:00 | R34: 15:15:00 | S34: 0.4 | T34: 6.8 | U34: 00:01:00 | V34: 06:53:00 | W34: 10:43:00 | X34: 15:13:00 | Y34: 16:23:00
C35: 10. | D35: Stare Pieścirogi ul. Kolejowa (Szkoła) 03 | E35: P | O35: 0.7 | P35: 8.9 | Q35: 00:01:00 | R35: 15:16:00
C36: 11. | D36: Stare Pieścirogi ul. Kolejowa 08 | E36: P | O36: 0.2 | P36: 9.1 | Q36: 00:01:00 | R36: 15:17:00
C37: 12. | D37: Morgi 01 | E37: G | F37: 1.8 | G37: =F37+G34 -> 8.6 | H37: 00:02:00 | I37: =I34+H37 -> 06:35:00 | K37: 1.8 | L37: =L34+K37 -> 8.6 | M37: 00:02:00 | N37: =M37+N34 -> 10:45:00 | O37: 1.8 | P37: 10.9 | Q37: 00:02:00 | R37: 15:19:00 | S37: 1.8 | T37: =T34+S37 -> 8.6 | U37: 00:02:00 | V37: =V34+U37 -> 06:55:00 | W37: =U37+W34 -> 10:45:00 | X37: =X34+U37 -> 15:15:00 | Y37: =Y34+U37 -> 16:25:00
C38: 13. | D38: Czajki 01 | E38: P | F38: 2.0 | G38: =G37+F38 -> 10.6 | H38: 00:02:00 | I38: =I37+H38 -> 06:37:00 | K38: 2.0 | L38: =L37+K38 -> 10.6 | M38: 00:02:00 | N38: =M38+N37 -> 10:47:00 | O38: 2.0 | P38: 12.9 | Q38: 00:02:00 | R38: 15:21:00 | S38: 2.0 | T38: =T37+S38 -> 10.6 | U38: 00:02:00 | V38: =V37+U38 -> 06:57:00 | W38: =U38+W37 -> 10:47:00 | X38: =X37+U38 -> 15:17:00 | Y38: =Y37+U38 -> 16:27:00
C39: 14. | D39: Cieksyn (Lelewo) 02 | E39: G | F39: 3.6 | G39: =G38+F39 -> 14.2 | H39: 00:04:00 | I39: 06:41:00 | K39: 3.6 | L39: 14.2 | M39: 00:04:00 | N39: 10:51:00 | O39: 3.6 | P39: 16.5 | Q39: 00:04:00 | R39: 15:25:00 | S39: 3.6 | T39: 14.2 | U39: 00:04:00 | V39: 07:01:00 | W39: 10:51:00 | X39: 15:21:00 | Y39: 16:31:00
C40: 15. | D40: Zaborze 01 | E40: G | F40: 2.9 | G40: =G39+F40 -> 17.1 | H40: 00:03:00 | I40: 06:44:00 | K40: 2.9 | L40: 17.1 | M40: 00:03:00 | N40: 10:54:00 | O40: 2.9 | P40: 19.4 | Q40: 00:03:00 | R40: 15:28:00 | S40: 2.9 | T40: 17.1 | U40: 00:03:00 | V40: 07:04:00 | W40: 10:54:00 | X40: 15:24:00 | Y40: 16:34:00
C41: 16. | D41: Miękoszyn 01 | E41: G | F41: 1.7 | G41: =G40+F41 -> 18.8 | H41: 00:02:00 | I41: 06:46:00 | K41: 1.7 | L41: 18.8 | M41: 00:02:00 | N41: 10:56:00 | O41: 1.7 | P41: 21.1 | Q41: 00:02:00 | R41: 15:30:00 | S41: 1.7 | T41: 18.8 | U41: 00:02:00 | V41: 07:06:00 | W41: 10:56:00 | X41: 15:26:00 | Y41: 16:36:00
C42: 17. | D42: Toruń Dworski 01 | E42: G | F42: 2.7 | G42: =G41+F42 -> 21.5 | H42: 00:03:00 | I42: 06:49:00 | K42: 2.7 | L42: 21.5 | M42: 00:03:00 | N42: 10:59:00 | O42: 2.7 | P42: 23.8 | Q42: 00:03:00 | R42: 15:33:00 | S42: 2.7 | T42: 21.5 | U42: 00:03:00 | V42: 07:09:00 | W42: 10:59:00 | X42: 15:29:00 | Y42: 16:39:00
C43: 18. | D43: Miękoszyn ul. Polnych Kwiatów 02 | E43: G | F43: 3.1 | G43: =F43+G42 -> 24.6 | H43: 00:04:00 | I43: 06:53:00 | K43: 3.1 | L43: 24.6 | M43: 00:04:00 | N43: 11:03:00 | O43: 3.1 | P43: 26.9 | Q43: 00:04:00 | R43: 15:37:00 | S43: 3.1 | T43: 24.6 | U43: 00:04:00 | V43: 07:13:00 | W43: 11:03:00 | X43: 15:33:00 | Y43: 16:43:00
C44: 19. | D44: Studzianki (PKP) 03 | E44: G | F44: 0.4 | G44: =F44+G43 -> 25.0 | H44: 00:01:00 | I44: 06:54:00 | K44: 0.4 | L44: 25.0 | M44: 00:01:00 | N44: 11:04:00 | O44: 0.4 | P44: 27.3 | Q44: 00:01:00 | R44: 15:38:00 | S44: 0.4 | T44: 25.0 | U44: 00:01:00 | V44: 07:14:00 | W44: 11:04:00 | X44: 15:34:00 | Y44: 16:44:00
C45: 20. | D45: Dębinki 01 | E45: P | F45: 1.3 | G45: =G44+F45 -> 26.3 | H45: 00:02:00 | I45: 06:56:00 | K45: 1.3 | L45: 26.3 | M45: 00:02:00 | N45: 11:06:00 | O45: 1.3 | P45: 28.6 | Q45: 00:02:00 | R45: 15:40:00 | S45: 1.3 | T45: 26.3 | U45: 00:02:00 | V45: 07:16:00 | W45: 11:06:00 | X45: 15:36:00 | Y45: 16:46:00
C46: 21. | D46: Morgi 02 | E46: G | F46: 4.2 | G46: =G45+F46 -> 30.5 | H46: 00:04:00 | I46: 07:00:00 | K46: 4.2 | L46: 30.5 | M46: 00:04:00 | N46: 11:10:00 | O46: 4.2 | P46: 32.8 | Q46: 00:04:00 | R46: 15:44:00 | S46: 4.2 | T46: 30.5 | U46: 00:04:00 | V46: 07:20:00 | W46: 11:10:00 | X46: 15:40:00 | Y46: 16:50:00
C47: 22. | D47: Stare Pieścirogi ul. Kolejowa (Szkoła) 03 | E47: P | F47: 2.0 | G47: =F47+G46 -> 32.5 | H47: 00:01:00 | I47: 07:01:00
C48: 23. | D48: Stare Pieścirogi ul. Kolejowa 08 | E48: P | F48: 0.2 | G48: =G47+F48 -> 32.7 | H48: 00:01:00 | I48: 07:02:00
C49: 24. | D49: Nowe Pieścirogi ul. Kolejowa 02 | E49: P | F49: 0.4 | G49: =F49+G48 -> 33.1 | H49: 00:01:00 | I49: 07:03:00 | K49: 1.7 | L49: =L46+K49 -> 32.2 | M49: 00:02:00 | N49: =M49+N46 -> 11:12:00 | O49: 1.7 | P49: =O49+P46 -> 34.5 | Q49: 00:01:00 | R49: =R46+Q49 -> 15:45:00 | S49: 1.7 | T49: =T46+S49 -> 32.2 | U49: 00:02:00 | V49: =V46+U49 -> 07:22:00 | W49: =U49+W46 -> 11:12:00 | X49: =X46+U49 -> 15:42:00 | Y49: =Y46+U49 -> 16:52:00
C50: 25. | D50: Mogowo ul. Srebrna (Dworzec PKP) 01 | E50: P | F50: 0.6 | G50: =F50+G49 -> 33.7 | H50: 00:01:00 | I50: 07:04:00 | K50: 0.6 | L50: =L49+K50 -> 32.8 | M50: 00:01:00 | N50: =M50+N49 -> 11:13:00 | O50: 0.6 | P50: =O50+P49 -> 35.1 | Q50: 00:01:00 | R50: =R49+Q50 -> 15:46:00 | S50: 0.6 | T50: =T49+S50 -> 32.8 | U50: 00:01:00 | V50: =V49+U50 -> 07:23:00 | W50: =U50+W49 -> 11:13:00 | X50: =X49+U50 -> 15:43:00 | Y50: =Y49+U50 -> 16:53:00
C51: 26. | D51: Mogowo ul. Długa 02 | E51: G | F51: 2.2 | G51: =F51+G50 -> 35.9 | H51: 00:04:00 | I51: 07:08:00 | K51: 2.2 | L51: 35.0 | M51: 00:04:00 | N51: 11:17:00 | O51: 2.2 | P51: 37.3 | Q51: 00:04:00 | R51: 15:50:00 | S51: 2.2 | T51: 35.0 | U51: 00:04:00 | V51: 07:27:00 | W51: 11:17:00 | X51: 15:47:00 | Y51: 16:57:00
C52: 27. | D52: Siennica ul. Akacjowa 02 | E52: P | F52: 2.0 | G52: =G51+F52 -> 37.9 | H52: 00:03:00 | I52: 07:11:00 | K52: 2.0 | L52: 37.0 | M52: 00:03:00 | N52: 11:20:00 | O52: 2.0 | P52: 39.3 | Q52: 00:03:00 | R52: 15:53:00 | S52: 2.0 | T52: 37.0 | U52: 00:03:00 | V52: 07:30:00 | W52: 11:20:00 | X52: 15:50:00 | Y52: 17:00:00
C53: 28. | D53: Nasielsk ul. POW 16 | E53: P | F53: 0.7 | G53: =G52+F53 -> 38.6 | H53: 00:01:00 | I53: 07:12:00 | K53: 0.7 | L53: 37.7 | M53: 00:01:00 | N53: 11:21:00 | O53: 0.7 | P53: 40.0 | Q53: 00:01:00 | R53: 15:54:00 | S53: 0.7 | T53: 37.7 | U53: 00:01:00 | V53: 07:31:00 | W53: 11:21:00 | X53: 15:51:00 | Y53: 17:01:00
C54: 29. | D54: Nasielsk ul. POW (ul. Wyszyńskiego) 18 | E54: P | F54: 0.8 | G54: =G53+F54 -> 39.4 | H54: 00:01:00 | I54: 07:13:00 | K54: 0.8 | L54: 38.5 | M54: 00:01:00 | N54: 11:22:00 | O54: 0.8 | P54: 40.8 | Q54: 00:01:00 | R54: 15:55:00 | S54: 0.8 | T54: 38.5 | U54: 00:01:00 | V54: 07:32:00 | W54: 11:22:00 | X54: 15:52:00 | Y54: 17:02:00
C55: 30. | D55: Nasielsk ul. Rynek (Skwer) 01 | E55: P | F55: 0.7 | G55: =F55+G54 -> 40.1 | H55: 00:01:00 | I55: 07:14:00 | K55: 0.7 | L55: 39.2 | M55: 00:01:00 | N55: 11:23:00 | O55: 0.7 | P55: 41.5 | Q55: 00:01:00 | R55: 15:56:00 | S55: 0.7 | T55: 39.2 | U55: 00:01:00 | V55: 07:33:00 | W55: 11:23:00 | X55: 15:53:00 | Y55: 17:03:00
C56: 31. | D56: Nasielsk ul. Kościuszki (Krupki) 02 | E56: W | F56: 0.7 | G56: =F56+G55 -> 40.8 | H56: 00:01:00 | I56: 07:15:00
C57: 32. | D57: Nasielsk ul. Lipowa (Szkoła) 26 | E57: G | F57: 0.7 | G57: =F57+G56 -> 41.5 | H57: 00:01:00 | I57: 07:16:00
F58: Czas przejazdu | I58: =I57-I28 -> 00:56:00 | K58: Czas przejazdu | N58: =N55-N28 -> 00:53:00 | O58: Czas przejazdu | R58: =R55-R26 -> 00:56:00 | S58: Czas przejazdu | V58: =V55-V28 -> 00:53:00 | W58: =W55-W28 -> 00:53:00 | X58: =X55-X28 -> 00:53:00 | Y58: =Y55-Y28 -> 00:53:00
F59: Prędkość komunikacyjna (km/h) | I59: 43.07 | K59: Prędkość komunikacyjna (km/h) | N59: 44.2 | O59: Prędkość komunikacyjna (km/h) | R59: 43.07 | S59: Prędkość komunikacyjna (km/h) | V59: 44.2 | W59: 44.2 | X59: 44.2 | Y59: 44.2
F60: Liczba przystanków | I60: 28 | K60: Liczba przystanków | N60: 24 | O60: Liczba przystanków | R60: 28 | S60: Liczba przystanków | V60: 24 | W60: 24 | X60: 24 | Y60: 24
C61: Oznaczenie linii komunikacyjnej: U
C63: Symbol oraz opis oznaczenia:
C64: D - kursuje od poniedziałku do piątku oprócz świąt
C66: Oznaczenia kategorii dróg:
C67: W - droga wojewódzka
C68: P - droga powiatowa
C69: G - droga gminna

Sheet 8
A1: Organizator:
A2: Gmina Nasielsk
A3: ul. Elektronowa 3
A4: 05-190 Nasielsk
A5: Tel.: 23 693 30 00
A7: Operator:
A8: …................................................
A9: …................................................
A10: …................................................
A11: Tel.: …..............................
A12: KRS:….............................., NIP: …....................
A14: Rozkład jazdy obowiązuje od 02.01.2026 do 31.12.2026
A16: Nazwa linii komunikacyjnej: linia nr 8 : Nasielsk – Pianowo Daczki – Kędzierzawice
A17: Komunikacja zwykła
C19: ROZKŁAD JAZDY
C20: stanowiący załącznik do Zaświadczenia nr 8/2024 na wykonywanie publicznego transportu zbiorowego
B22: Linia nr 8 : Nasielsk – Pianowo Daczki – Kędzierzawice
B23: 181 | C23: 183 | D23: kurs | O23: 182 | P23: 184
B24: D | C24: D | D24: oznaczenie kursu | O24: D | P24: D
B25: godz. | C25: godz. | D25: Czas przejazdu | E25: Odległość narastająca (km) | F25: Odległość między przystankami (km) | G25: Kategoria drogi | H25: Przystanek | I25: Lp. | J25: Przystanek | K25: Kategoria drogi | L25: Odległość między przystankami (km) | M25: Odległość narastająca (km) | N25: Czas przejazdu | O25: godz. | P25: godz.
B26: 09:10 | C26: 14:30:00 | D26: 00:00:00 | E26: 0.0 | F26: 0.0 | G26: P | H26: Nasielsk ul. Rynek (Skwer) 01 | I26: 1. | J26: Kędzierzawice 01 | K26: G | L26: 0.0 | M26: 0.0 | N26: 00:00:00 | O26: 09:18:00 | P26: 14:38:00
B27: =B26+D27 -> 09:11:00 | C27: =D27+C26 -> 14:31:00 | D27: 00:01:00 | E27: =F27+E26 -> 0.7 | F27: 0.7 | G27: P | H27: Nasielsk ul. Młynarska (Osiedle Brzozowa) 23 | I27: 2. | J27: Pianowo Daczki 02 | K27: P | L27: 2.2 | M27: =M26+L27 -> 2.2 | N27: 00:04:00 | O27: =O26+N27 -> 09:22:00 | P27: =P26+N27 -> 14:42:00
B28: =B27+D28 -> 09:13:00 | C28: =D28+C27 -> 14:33:00 | D28: 00:02:00 | E28: =F28+E27 -> 2.1 | F28: 1.4 | G28: P | H28: Nasielsk ul. Młynarska (ul. Jesionowa) 15 | I28: 3. | J28: Nasielsk ul. Młynarska (ul. Broninek) 14 | K28: P | L28: 1.0 | M28: =M27+L28 -> 3.2 | N28: 00:01:00 | O28: =O27+N28 -> 09:23:00 | P28: =P27+N28 -> 14:43:00
B29: =B28+D29 -> 09:14:00 | C29: =D29+C28 -> 14:34:00 | D29: 00:01:00 | E29: =F29+E28 -> 2.8 | F29: 0.7 | G29: P | H29: Pianowo Daczki 01 | I29: 4. | J29: Nasielsk ul. Młynarska (Osiedle Brzozowa) 22 | K29: P | L29: 1.3 | M29: =M28+L29 -> 4.5 | N29: 00:02:00 | O29: =O28+N29 -> 09:25:00 | P29: =P28+N29 -> 14:45:00
B30: =B29+D30 -> 09:18:00 | C30: =D30+C29 -> 14:38:00 | D30: 00:04:00 | E30: =F30+E29 -> 5.2 | F30: 2.4 | G30: G | H30: Kędzierzawice 01 | I30: 5. | J30: Nasielsk ul. Rynek (Skwer) 01 | K30: P | L30: 0.7 | M30: =M29+L30 -> 5.2 | N30: 00:01:00 | O30: =O29+N30 -> 09:26:00 | P30: =P29+N30 -> 14:46:00
B31: =B30-B26 -> 00:08:00 | C31: =C30-C26 -> 00:08:00 | D31: Czas przejazdu | O31: =O30-O26 -> 00:08:00 | P31: =P30-P26 -> 00:08:00
B32: 39.0 | C32: 39.0 | D32: Prędkość komunikacyjna (km/h) | O32: 39.0 | P32: 39.0
B33: 5 | C33: 5 | D33: Liczba przystanków | O33: 5 | P33: 5
B34: Oznaczenie linii komunikacyjnej: U
B36: Symbol oraz opis oznaczenia:
B37: D - kursuje od poniedziałku do piątku oprócz świąt
B39: Oznaczenia kategorii dróg:
B40: W - droga wojewódzka
B41: P - droga powiatowa
B42: G - droga gminna

Sheet 9
A1: Organizator:
A2: Gmina Nasielsk
A3: ul. Elektronowa 3
A4: 05-190 Nasielsk
A5: Tel.: 23 693 30 00
A7: Operator:
A8: …...........................................................
A9: …...........................................................
A10: …..........................................................
A11: Tel.: …........................................
A12: KRS: …......................., NIP: …................................
A14: Rozkład jazdy obowiązuje od 02.01.2026 do 31.12.2026
A16: Nazwa linii komunikacyjnej: linia nr 9 : Nasielsk – Cieksyn – Nasielsk
A17: Komunikacja zwykła
C22: Linia nr 9 : Nasielsk – Cieksyn – Nasielsk
C23: kurs | I23: 191 | J23: 192 | K23: 193 | L23: 194 | M23: 195 | N23: 196 | O23: 197 | P23: 198
C24: oznaczenie kursu | I24: DC | J24: C | K24: DC | L24: C | M24: C | N24: DC | O24: DC | P24: DC
C25: Lp. | D25: Przystanek | E25: Kategoria drogi | F25: Odległość między przystankami (km) | G25: Odległość narastająca (km) | H25: Czas przejazdu | I25: godz. | J25: godz. | K25: godz. | L25: godz. | M25: godz. | N25: godz. | O25: godz. | P25: godz.
C26: 1. | D26: Nasielsk ul. Rynek (Skwer) 01 | E26: P | F26: 0.0 | G26: 0.0 | H26: 00:00:00 | I26: 04:30:00 | J26: 06:00:00 | K26: 10:30:00 | L26: 12:00:00 | M26: 16:00:00 | N26: 18:00:00 | O26: 20:00:00 | P26: 22:00:00
C27: 2. | D27: Nasielsk ul. Kościuszki (Krupki) 02 | E27: W | F27: 0.7 | G27: =F27+G26 -> 0.7 | H27: 00:01:00 | I27: =H27+I26 -> 04:31:00 | J27: =H27+J26 -> 06:01:00 | K27: =H27+K26 -> 10:31:00 | L27: =H27+L26 -> 12:01:00 | M27: =H27+M26 -> 16:01:00 | N27: =N26+H27 -> 18:01:00 | O27: =O26+H27 -> 20:01:00 | P27: =P26+H27 -> 22:01:00
C28: 3. | D28: Nasielsk ul. Kolejowa (PKO) 04 | E28: W | F28: 0.4 | G28: =G27+F28 -> 1.1 | H28: 00:01:00 | I28: =I27+H28 -> 04:32:00 | J28: 06:02:00 | K28: =K27+H28 -> 10:32:00 | L28: 12:02:00 | M28: 16:02:00 | N28: 18:02:00 | O28: 20:02:00 | P28: 22:02:00
C29: 4. | D29: Nasielsk ul. Kolejowa (Wiśniewo) 06 | E29: W | F29: 1.2 | G29: =F29+G28 -> 2.3 | H29: 00:01:00 | I29: =H29+I28 -> 04:33:00 | J29: 06:03:00 | K29: =H29+K28 -> 10:33:00 | L29: 12:03:00 | M29: 16:03:00 | N29: 18:03:00 | O29: 20:03:00 | P29: 22:03:00
C30: 5. | D30: Kosewo (Przed wiaduktem) 01 | E30: W | F30: 0.6 | G30: =G29+F30 -> 2.9 | H30: 00:01:00 | I30: =I29+H30 -> 04:34:00 | J30: 06:04:00 | K30: =K29+H30 -> 10:34:00 | L30: 12:04:00 | M30: 16:04:00 | N30: 18:04:00 | O30: 20:04:00 | P30: 22:04:00
C31: 6. | D31: Kosewo (Wiadukt) 03 | E31: W | F31: 0.3 | G31: =F31+G30 -> 3.2 | H31: 00:01:00 | I31: =H31+I30 -> 04:35:00 | J31: 06:05:00 | K31: =H31+K30 -> 10:35:00 | L31: 12:05:00 | M31: 16:05:00 | N31: 18:05:00 | O31: 20:05:00 | P31: 22:05:00
C32: 7. | D32: Stare Pieścirogi ul. Kolejowa 08 | E32: P | F32: 0.4 | G32: =G31+F32 -> 3.6 | H32: 00:01:00 | I32: =I31+H32 -> 04:36:00 | J32: 06:06:00 | K32: =K31+H32 -> 10:36:00 | L32: 12:06:00 | M32: 16:06:00 | N32: 18:06:00 | O32: 20:06:00 | P32: 22:06:00
C33: 8. | D33: Nowe Pieścirogi ul. Kolejowa 02 | E33: P | F33: 0.4 | G33: =F33+G32 -> 4.0 | H33: 00:01:00 | I33: =H33+I32 -> 04:37:00 | J33: 06:07:00 | K33: =H33+K32 -> 10:37:00 | L33: 12:07:00 | M33: 16:07:00 | N33: 18:07:00 | O33: 20:07:00 | P33: 22:07:00
C34: 9. | D34: Mogowo ul. Srebrna (Dworzec PKP) 01 | E34: P | F34: 0.6 | G34: =G33+F34 -> 4.6 | H34: 00:01:00 | I34: =I33+H34 -> 04:38:00 | J34: 06:08:00 | K34: =K33+H34 -> 10:38:00 | L34: 12:08:00 | M34: 16:08:00 | N34: 18:08:00 | O34: 20:08:00 | P34: 22:08:00
C35: 10. | D35: Nowe Pieścirogi ul. Kolejowa 01 | E35: P | F35: 0.4 | G35: =F35+G34 -> 5.0 | H35: 00:01:00 | I35: =H35+I34 -> 04:39:00 | J35: 06:09:00 | K35: =H35+K34 -> 10:39:00 | L35: 12:09:00 | M35: 16:09:00 | N35: 18:09:00 | O35: 20:09:00 | P35: 22:09:00
C36: 11. | D36: Stare Pieścirogi ul. Kolejowa (Szkoła) 03 | E36: P | F36: 0.7 | G36: =G35+F36 -> 5.7 | H36: 00:01:00 | I36: =I35+H36 -> 04:40:00 | J36: 06:10:00 | K36: =K35+H36 -> 10:40:00 | L36: 12:10:00 | M36: 16:10:00 | N36: 18:10:00 | O36: 20:10:00 | P36: 22:10:00
C37: 12. | D37: Stare Pieścirogi ul. Makowa 06 | E37: W | F37: 0.1 | G37: =F37+G36 -> 5.8 | H37: 00:01:00 | I37: =H37+I36 -> 04:41:00 | J37: 06:11:00 | K37: =H37+K36 -> 10:41:00 | L37: 12:11:00 | M37: 16:11:00 | N37: 18:11:00 | O37: 20:11:00 | P37: 22:11:00
C38: 13. | D38: Mokrzyce Włościańskie 01 | E38: W | F38: 2.1 | G38: =G37+F38 -> 7.9 | H38: 00:02:00 | I38: =I37+H38 -> 04:43:00 | J38: 06:13:00 | K38: =K37+H38 -> 10:43:00 | L38: 12:13:00 | M38: 16:13:00 | N38: 18:13:00 | O38: 20:13:00 | P38: 22:13:00
C39: 14. | D39: Malczyn (Ruszkowo) 01 | E39: W | F39: 1.3 | G39: =F39+G38 -> 9.2 | H39: 00:02:00 | I39: =H39+I38 -> 04:45:00 | J39: 06:15:00 | K39: =H39+K38 -> 10:45:00 | L39: 12:15:00 | M39: 16:15:00 | N39: 18:15:00 | O39: 20:15:00 | P39: 22:15:00
C40: 15. | D40: Cieksyn (Mokrzyce Dworskie) 01 | E40: W | F40: 2.0 | G40: =G39+F40 -> 11.2 | H40: 00:02:00 | I40: =I39+H40 -> 04:47:00 | J40: 06:17:00 | K40: =K39+H40 -> 10:47:00 | L40: 12:17:00 | M40: 16:17:00 | N40: 18:17:00 | O40: 20:17:00 | P40: 22:17:00
C41: 16. | D41: Cieksyn, ul. Piłsudskiego 07 | E41: P | F41: 1.4 | G41: =F41+G40 -> 12.6 | H41: 00:01:00 | I41: =H41+I40 -> 04:48:00 | J41: 06:18:00 | K41: =H41+K40 -> 10:48:00 | L41: 12:18:00 | M41: 16:18:00 | N41: 18:18:00 | O41: 20:18:00 | P41: 22:18:00
C42: 17. | D42: Cieksyn ul. Piłsudskiego 05 | E42: P | F42: 0.9 | G42: =G41+F42 -> 13.5 | H42: 00:01:00 | I42: =I41+H42 -> 04:49:00 | J42: 06:19:00 | K42: =K41+H42 -> 10:49:00 | L42: 12:19:00 | M42: 16:19:00 | N42: 18:19:00 | O42: 20:19:00 | P42: 22:19:00
C43: 18. | D43: Cieksyn ul. Piłsudskiego (Szkoła) 04 | E43: P | F43: 0.3 | G43: =F43+G42 -> 13.8 | H43: 00:01:00 | I43: =H43+I42 -> 04:50:00 | J43: 06:20:00 | K43: =H43+K42 -> 10:50:00 | L43: 12:20:00 | M43: 16:20:00 | N43: 18:20:00 | O43: 20:20:00 | P43: 22:20:00
C44: 19. | D44: Cieksyn, ul. Piłsudskiego 06 | E44: P | F44: 1.1 | G44: =G43+F44 -> 14.9 | H44: 00:01:00 | I44: =I43+H44 -> 04:51:00 | J44: 06:21:00 | K44: =K43+H44 -> 10:51:00 | L44: 12:21:00 | M44: 16:21:00 | N44: 18:21:00 | O44: 20:21:00 | P44: 22:21:00
C45: 20. | D45: Mokrzyce Dworskie 02 | E45: W | F45: 1.4 | G45: =F45+G44 -> 16.3 | H45: 00:01:00 | I45: =H45+I44 -> 04:52:00 | J45: 06:22:00 | K45: =H45+K44 -> 10:52:00 | L45: 12:22:00 | M45: 16:22:00 | N45: 18:22:00 | O45: 20:22:00 | P45: 22:22:00
C46: 21. | D46: Ruszkowo 02 | E46: W | F46: 1.8 | G46: =G45+F46 -> 18.1 | H46: 00:02:00 | I46: =I45+H46 -> 04:54:00 | J46: 06:24:00 | K46: =K45+H46 -> 10:54:00 | L46: 12:24:00 | M46: 16:24:00 | N46: 18:24:00 | O46: 20:24:00 | P46: 22:24:00
C47: 22. | D47: Mokrzyce Włościańskie 02 | E47: W | F47: 1.1 | G47: =F47+G46 -> 19.2 | H47: 00:01:00 | I47: =H47+I46 -> 04:55:00 | J47: 06:25:00 | K47: =H47+K46 -> 10:55:00 | L47: 12:25:00 | M47: 16:25:00 | N47: 18:25:00 | O47: 20:25:00 | P47: 22:25:00
C48: 23. | D48: Stare Pieścirogi ul. Kolejowa 08 | E48: P | F48: 2.2 | G48: =G47+F48 -> 21.4 | H48: 00:02:00 | I48: =I47+H48 -> 04:57:00 | J48: 06:27:00 | K48: =K47+H48 -> 10:57:00 | L48: 12:27:00 | M48: 16:27:00 | N48: 18:27:00 | O48: 20:27:00 | P48: 22:27:00
C49: 24. | D49: Nowe Pieścirogi ul. Kolejowa 02 | E49: P | F49: 0.4 | G49: =F49+G48 -> 21.8 | H49: 00:01:00 | I49: =H49+I48 -> 04:58:00 | J49: 06:28:00 | K49: =H49+K48 -> 10:58:00 | L49: 12:28:00 | M49: 16:28:00 | N49: 18:28:00 | O49: 20:28:00 | P49: 22:28:00
C50: 25. | D50: Mogowo ul. Srebrna (Dworzec PKP) 01 | E50: P | F50: 0.6 | G50: =G49+F50 -> 22.4 | H50: 00:01:00 | I50: =I49+H50 -> 04:59:00 | J50: 06:29:00 | K50: =K49+H50 -> 10:59:00 | L50: 12:29:00 | M50: 16:29:00 | N50: 18:29:00 | O50: 20:29:00 | P50: 22:29:00
C51: 26. | D51: Nowe Pieścirogi ul. Kolejowa 01 | E51: P | F51: 0.4 | G51: =F51+G50 -> 22.8 | H51: 00:01:00 | I51: =H51+I50 -> 05:00:00 | J51: 06:30:00 | K51: =H51+K50 -> 11:00:00 | L51: 12:30:00 | M51: 16:30:00 | N51: 18:30:00 | O51: 20:30:00 | P51: 22:30:00
C52: 27. | D52: Stare Pieścirogi ul. Kolejowa (Szkoła) 03 | E52: P | F52: 0.7 | G52: =G51+F52 -> 23.5 | H52: 00:01:00 | I52: =I51+H52 -> 05:01:00 | J52: 06:31:00 | K52: =K51+H52 -> 11:01:00 | L52: 12:31:00 | M52: 16:31:00 | N52: 18:31:00 | O52: 20:31:00 | P52: 22:31:00
C53: 28. | D53: Stare Pieścirogi ul. Makowa 01 | E53: W | F53: 0.1 | G53: =F53+G52 -> 23.6 | H53: 00:01:00 | I53: =H53+I52 -> 05:02:00 | J53: 06:32:00 | K53: =H53+K52 -> 11:02:00 | L53: 12:32:00 | M53: 16:32:00 | N53: 18:32:00 | O53: 20:32:00 | P53: 22:32:00
C54: 29. | D54: Stare Pieścirogi (Wiadukt) 04 | E54: W | F54: 0.3 | G54: =G53+F54 -> 23.9 | H54: 00:01:00 | I54: =I53+H54 -> 05:03:00 | J54: 06:33:00 | K54: =K53+H54 -> 11:03:00 | L54: 12:33:00 | M54: 16:33:00 | N54: 18:33:00 | O54: 20:33:00 | P54: 22:33:00
C55: 30. | D55: Stare Pieścirogi ul. Kolejowa (Za wiaduktem) 02 | E55: W | F55: 1.0 | G55: =F55+G54 -> 24.9 | H55: 00:01:00 | I55: =H55+I54 -> 05:04:00 | J55: 06:34:00 | K55: =H55+K54 -> 11:04:00 | L55: 12:34:00 | M55: 16:34:00 | N55: 18:34:00 | O55: 20:34:00 | P55: 22:34:00
C56: 31. | D56: Nasielsk ul. Kolejowa 05 | E56: W | F56: 0.5 | G56: =G55+F56 -> 25.4 | H56: 00:01:00 | I56: =I55+H56 -> 05:05:00 | J56: 06:35:00 | K56: =K55+H56 -> 11:05:00 | L56: 12:35:00 | M56: 16:35:00 | N56: 18:35:00 | O56: 20:35:00 | P56: 22:35:00
C57: 32. | D57: Nasielsk ul. Kolejowa (PKO) 03 | E57: W | F57: 0.7 | G57: =F57+G56 -> 26.1 | H57: 00:01:00 | I57: =H57+I56 -> 05:06:00 | J57: 06:36:00 | K57: =H57+K56 -> 11:06:00 | L57: 12:36:00 | M57: 16:36:00 | N57: 18:36:00 | O57: 20:36:00 | P57: 22:36:00
C58: 33. | D58: Nasielsk ul. Rynek (Skwer) 01 | E58: P | F58: 0.9 | G58: =G57+F58 -> 27.0 | H58: 00:01:00 | I58: =I57+H58 -> 05:07:00 | J58: 06:37:00 | K58: =K57+H58 -> 11:07:00 | L58: 12:37:00 | M58: 16:37:00 | N58: 18:37:00 | O58: 20:37:00 | P58: 22:37:00
I59: =I58-I26 -> 00:37:00 | J59: 00:37:00 | K59: 00:37:00 | L59: 00:37:00 | M59: 00:37:00 | N59: 00:37:00 | O59: 00:37:00 | P59: 00:37:00
I60: 43.8 | J60: 43.8 | K60: 43.8 | L60: 43.8 | M60: 43.8 | N60: 43.8 | O60: 43.8 | P60: 43.8
I61: 33 | J61: 33 | K61: 33 | L61: 33 | M61: 33 | N61: 33 | O61: 33 | P61: 33
C62: Oznaczenie linii komunikacyjnej: U
C64: Symbol oraz opis oznaczenia:
C65: D - kursuje od poniedziałku do piątku oprócz świąt
C66: C - kursuje w soboty, niedziele i święta
C68: Oznaczenia kategorii dróg:
C69: W - droga wojewódzka
C70: P - droga powiatowa
C71: G - droga gminna
